Service Area,Service Division,Expense Type,Expense Code,Detailed Expense Type,Payment Date,Transaction Number,Amount Exc VAT,Supplier Name
Regeneration and Local Services,Technical Services CM0300,Supplies and Services,304221,Equipment and Materials,03/06/2019,3596753-28210804,552.16,AGGREGATE INDUSTRIES UK LTD.
Regeneration and Local Services,Technical Services CM0300,Supplies and Services,304221,Equipment and Materials,03/06/2019,3596753-28217564,570.72,AGGREGATE INDUSTRIES UK LTD.
Regeneration and Local Services,Technical Services CM0300,Supplies and Services,304221,Equipment and Materials,03/06/2019,3596753-28223927,622.92,AGGREGATE INDUSTRIES UK LTD.
Regeneration and Local Services,Technical Services CM0300,Supplies and Services,304221,Equipment and Materials,03/06/2019,3596753-28223932,"2,309.56",AGGREGATE INDUSTRIES UK LTD.
Regeneration and Local Services,Technical Services CM0300,Supplies and Services,304221,Equipment and Materials,03/06/2019,3596753-28223933,"1,140.28",AGGREGATE INDUSTRIES UK LTD.
Regeneration and Local Services,Technical Services CM0300,Supplies and Services,304221,Equipment and Materials,03/06/2019,3596753-28223935,"1,399.24",AGGREGATE INDUSTRIES UK LTD.
Regeneration and Local Services,Technical Services CM0300,Supplies and Services,304221,Equipment and Materials,03/06/2019,3596753-28223936,914.08,AGGREGATE INDUSTRIES UK LTD.
Regeneration and Local Services,Technical Services CM0300,Supplies and Services,304221,Equipment and Materials,03/06/2019,3596753-28223940,687.68,AGGREGATE INDUSTRIES UK LTD.
Regeneration and Local Services,Technical Services CM0300,Supplies and Services,304221,Equipment and Materials,03/06/2019,3596753-28230901,"3,468.40",AGGREGATE INDUSTRIES UK LTD.
Regeneration and Local Services,Technical Services CM0300,Supplies and Services,304221,Equipment and Materials,03/06/2019,3596753-28230903,"1,567.16",AGGREGATE INDUSTRIES UK LTD.
Regeneration and Local Services,Technical Services CM0300,Supplies and Services,304221,Equipment and Materials,03/06/2019,3596753-28230904,580.00,AGGREGATE INDUSTRIES UK LTD.
Regeneration and Local Services,Technical Services CM0300,Supplies and Services,304221,Equipment and Materials,03/06/2019,3596753-28230906,671.64,AGGREGATE INDUSTRIES UK LTD.
Regeneration and Local Services,Technical Services CM0300,Supplies and Services,304221,Equipment and Materials,03/06/2019,3596753-29230902,"1,119.40",AGGREGATE INDUSTRIES UK LTD.
Children and Young Peoples Services,Head of Early Help Inclusion & Vulnerable Children.,Supplies and Services,304252,Equipment and Materials,03/06/2019,3596754-53704,"1,128.50",ALARM RADIO MONITORING LTD.
Resources BK0010,Legal & Democratic Services,Supplies and Services,338102,Services,03/06/2019,3596756-0000033265,835.00,ALERE FORENSICS.
Regeneration and Local Services,Development and Housing,Supplies and Services,372009,Subscriptions E372,03/06/2019,3596760-SO2005462,"2,340.00",ASSESSMENT SERVICES LTD.
Regeneration and Local Services,Technical Services CM0300,Supplies and Services,304358,Equipment and Materials,03/06/2019,3596765-MG06530,"1,200.00",BAILEY CONCRETE PUMPING LTD.
Regeneration and Local Services,Culture Sport and Tourism,Premises,145023,Cleaning and Domestic Supplies,03/06/2019,3596773-22SI2248375,"1,535.87",BRENNTAG UK LTD.
Regeneration and Local Services,Culture Sport and Tourism,Premises,145023,Cleaning and Domestic Supplies,03/06/2019,3596773-22SI2248376,"2,632.28",BRENNTAG UK LTD.
Regeneration and Local Services,Environmental Services,Transport,215023,Running Costs of Vehicles,03/06/2019,3596773-50SI5077454,520.00,BRENNTAG UK LTD.
Regeneration and Local Services,Business Durham CL0850,Third Party Payments 4THIRD,460305,Contract Payments,03/06/2019,3596776-RED-05-2019- 138,"69,025.36",BUSINESS & ENTERPRISE COMMERCIAL LTD T/A BE GROUP.
Regeneration and Local Services,Environmental Services,Premises,120037,Energy Costs,03/06/2019,3596778-31719304,676.45,CALOR GAS LTD.
Regeneration and Local Services,Environmental Services,Premises,120037,Energy Costs,03/06/2019,3596778-31719305,601.75,CALOR GAS LTD.
Children and Young Peoples Services,Childrens Services Operational Support CG0080,Supplies and Services,338026,Services,03/06/2019,3596784-BT56,"1,260.00",CHOICES & VOICES CARE LTD.
Regeneration and Local Services,Technical Services CM0300,Stock A926,926900,Stock in hand-Inventory system,03/06/2019,3596788-526229,902.00,CMT EQUIPMENT LTD.
Regeneration and Local Services,Business Durham CL0850,Premises,120021,Energy Costs,03/06/2019,3596793-14028208,857.77,CORONA ENERGY RETAIL 2 LTD.
Regeneration and Local Services,Business Durham CL0850,Premises,120021,Energy Costs,03/06/2019,3596794-14027649,855.10,CORONA ENERGY RETAIL 2 LTD.
Regeneration and Local Services,Business Durham CL0850,Premises,120021,Energy Costs,03/06/2019,3596794-14027952,"1,431.65",CORONA ENERGY RETAIL 2 LTD.
Regeneration and Local Services,Culture Sport and Tourism,Supplies and Services,384999,Miscellaneous Expenses,03/06/2019,3596803-SGA00663,689.04,DEBORAH MCKENNA LTD.
Children and Young Peoples Services,Head of Childrens Social Care,Supplies and Services,338044,Services,03/06/2019,3596808-CAS-05-2019-174,571.75,DR STEPHANIE HILL.
Adult and Health Services,Head of Adults,Supplies and Services,338365,Services,03/06/2019,3596811-44482,994.64,EASIBATHE LTD.
Regeneration and Local Services,Corporate Property and Land,Supplies and Services,304221,Equipment and Materials,03/06/2019,3596814-059-244046,879.16,EDMUNDSON ELECTRICAL LTD.
Regeneration and Local Services,Technical Services CM0300,Supplies and Services,338066,Services,03/06/2019,3596817-5179,"15,895.00",ELVET CONSTRUCTION CONSULTANTS LTD.
Regeneration and Local Services,Environmental Services,Supplies and Services,304221,Equipment and Materials,03/06/2019,3596818-113425,675.00,EMORSGATE SEEDS.
Regeneration and Local Services,Technical Services CM0300,Supplies and Services,338027,Services,03/06/2019,3596820-NEI-EXP-05-2019-006,"1,023.00",ENVIRONMENT AGENCY.
Regeneration and Local Services,Technical Services CM0300,Stock A926,926900,Stock in hand-Inventory system,03/06/2019,3596820-Y00003419T,"4,599.90",ENVIRONMENT AGENCY.
Regeneration and Local Services,Technical Services CM0300,Third Party Payments 4THIRD,430101,Rendered by Private Contractors,03/06/2019,3596821-SI-258,637.50,ENVIROROD LTD.
Regeneration and Local Services,Transport and Contracted Services,Third Party Payments 4THIRD,430106,Rendered by Private Contractors,03/06/2019,3596823-PUBLICSERVICEAPRIL/MAY19,"5,365.24",FERRYHILL VILLAGE TRAVEL.
Regeneration and Local Services,Transport and Contracted Services,Third Party Payments 4THIRD,430106,Rendered by Private Contractors,03/06/2019,3596823-PUBLICSERVICEAPRIL19,"4,295.23",FERRYHILL VILLAGE TRAVEL.
Regeneration and Local Services,Business Durham CL0850,Supplies and Services,344033,Telephones,03/06/2019,3596828-DERW01-0011,857.26,FREEDOM COMMUNICATIONS (UK) LTD.
Regeneration and Local Services,Technical Services CM0300,Supplies and Services,304357,Equipment and Materials,03/06/2019,3596830-DCC190519,"16,619.85",GAP GROUP LTD.
Regeneration and Local Services,Transport and Contracted Services,Third Party Payments 4THIRD,430106,Rendered by Private Contractors,03/06/2019,3596836-69599,"60,049.11",GO GATESHEAD LTD.
Resources BK0010,Legal & Democratic Services,Supplies and Services,338025,Services,03/06/2019,3596838-F1671,540.00,GORDON FLETCHER & SONS LTD.
Children and Young Peoples Services,Head of Education and Skills,Supplies and Services,338089,Services,03/06/2019,3596844-1160,"2,771.18",H TALENT MANAGEMENT LTD.
Regeneration and Local Services,Technical Services CM0300,Stock A926,926900,Stock in hand-Inventory system,03/06/2019,3596846-9595,"1,280.00",HALT HIRE LTD.
Regeneration and Local Services,Culture Sport and Tourism,Supplies and Services,338047,Services,03/06/2019,3596848-0030/19,"10,718.22",HANDSHAKE LTD.
Dedicated Schools Grant BG0015,DSG High Needs Block,Central Support and Other Recharges,689988,Unclassified E690,03/06/2019,3596850-CAS-05-2019-190,"9,410.63",HARTSIDE PRIMARY ACADEMY.
Regeneration and Local Services,Technical Services CM0300,Stock A926,926900,Stock in hand-Inventory system,03/06/2019,3596857-683115,"2,380.00",INSTARMAC GROUP PLC.
Children and Young Peoples Services,Head of Childrens Social Care,Third Party Payments 4THIRD,425028,Rendered by Voluntary Organisations,03/06/2019,3596859-201920/IC/001,"16,872.50",INTEGRATING CHILDREN.
Children and Young Peoples Services,Head of Childrens Social Care,Third Party Payments 4THIRD,425028,Rendered by Voluntary Organisations,03/06/2019,3596859-201920/IC/002,"16,872.50",INTEGRATING CHILDREN.
Regeneration and Local Services,Technical Services CM0300,Supplies and Services,304358,Equipment and Materials,03/06/2019,3596862-5305687,525.00,JA GILSON (AGRICULTURAL CONTRACTORS) LTD.
Regeneration and Local Services,Technical Services CM0300,Construction work A908,908105,Construction work,03/06/2019,3596863-22913,"3,518.13",JACK COUPE & SONS LTD T/A COUPE LINE.
Regeneration and Local Services,Technical Services CM0300,Supplies and Services,304358,Equipment and Materials,03/06/2019,3596867-29530,"1,291.50",JOHN R BUTTERFIELD LTD.
Regeneration and Local Services,Technical Services CM0300,Supplies and Services,304358,Equipment and Materials,03/06/2019,3596867-29553,672.00,JOHN R BUTTERFIELD LTD.
Regeneration and Local Services,Technical Services CM0300,Supplies and Services,304358,Equipment and Materials,03/06/2019,3596867-29572,"1,155.00",JOHN R BUTTERFIELD LTD.
Regeneration and Local Services,Environmental Services,Supplies and Services,304358,Equipment and Materials,03/06/2019,3596867-29577,592.00,JOHN R BUTTERFIELD LTD.
Regeneration and Local Services,Culture Sport and Tourism,Supplies and Services,304259,Equipment and Materials,03/06/2019,3596868-935481,"1,617.90",JP LENNARD LTD.
Regeneration and Local Services,Technical Services CM0300,Supplies and Services,304221,Equipment and Materials,03/06/2019,3596871-BII287700,790.80,JT DOVE LTD.
Regeneration and Local Services,Corporate Property and Land,Supplies and Services,304221,Equipment and Materials,03/06/2019,3596871-PHBI144213,619.87,JT DOVE LTD.
Regeneration and Local Services,Corporate Property and Land,Supplies and Services,304221,Equipment and Materials,03/06/2019,3596871-PHBI144236,"1,134.39",JT DOVE LTD.
Children and Young Peoples Services,Head of Education and Skills,Transport,230007,Contract Hire,03/06/2019,92-DEC/JANDR,"22,864.51",K SHAW.
Regeneration and Local Services,Culture Sport and Tourism,Supplies and Services,384199,Miscellaneous Expenses,03/06/2019,3596872-INV1932,"2,150.00",KAYLEIGH LAVERICK T/A THE GARAGE URBAN STYLES.
Regeneration and Local Services,Environmental Services,Stock A926,926900,Stock in hand-Inventory system,03/06/2019,3596874-SI02-0226523,"1,470.56",KILLGERM CHEMICALS LTD.
Regeneration and Local Services,Culture Sport and Tourism,Supplies and Services,338042,Services,03/06/2019,3596875-421675,550.00,KINGS CHAMBERS.
Regeneration and Local Services,Culture Sport and Tourism,Supplies and Services,338047,Services,03/06/2019,3596879-1573117407,"3,424.31",LIVE NATION (MUSIC) UK LTD.
Regeneration and Local Services,Culture Sport and Tourism,Supplies and Services,312010,Newspapers books and periodicals E312,03/06/2019,3596880-79519,525.00,LIVING NORTH LTD.
Regeneration and Local Services,Technical Services CM0300,Supplies and Services,304358,Equipment and Materials,03/06/2019,3596882-MS1595,835.20,M SPENCE SURFACING LTD.
Regeneration and Local Services,Technical Services CM0300,Supplies and Services,304358,Equipment and Materials,03/06/2019,3596882-MS1597,"1,776.60",M SPENCE SURFACING LTD.
Regeneration and Local Services,Technical Services CM0300,Stock A926,926900,Stock in hand-Inventory system,03/06/2019,3596883-146552,"11,592.60",MALLATITE LTD T/A MALLATITE PLASTICS LTD.
Regeneration and Local Services,Technical Services CM0300,Stock A926,926900,Stock in hand-Inventory system,03/06/2019,3596883-146554,"3,253.00",MALLATITE LTD T/A MALLATITE PLASTICS LTD.
Regeneration and Local Services,Corporate Property and Land,Construction work A908,908105,Construction work,03/06/2019,3596884-19035,650.00,MARIA FERGUSON PLANNING LTD.
Regeneration and Local Services,Culture Sport and Tourism,Supplies and Services,324117,Provisions E324,03/06/2019,3596886-207698,796.39,MARK TONEY & CO LTD.
Regeneration and Local Services,Environmental Services,Transport,230005,Contract Hire,03/06/2019,3596896-125740,917.96,ND BROWN LTD.
Regeneration and Local Services,Culture Sport and Tourism,Supplies and Services,338047,Services,03/06/2019,3596898-02A/19,"1,000.00",NEIL ARMSTRONG..
Regeneration and Local Services,Development and Housing,Supplies and Services,336005,Advertising E336,03/06/2019,3596900-29353871,671.76,NEWSQUEST (YORKSHIRE & NORTH EAST) LTD.
Regeneration and Local Services,Environmental Services,Supplies and Services,338066,Services,03/06/2019,3596901-470,800.00,NLG PARTNERS LTD.
Dedicated Schools Grant BG0015,DSG High Needs Block,Central Support and Other Recharges,689988,Unclassified E690,03/06/2019,3596904-CAS-05-2019-185,"10,427.99",NORTH EAST LEARNING TRUST (NELT).
Resources BK0010,Legal & Democratic Services,Supplies and Services,384199,Miscellaneous Expenses,03/06/2019,3596906-22213336,"73,834.47",NORTH TYNESIDE COUNCIL.
Transformation and Partnerships,Communications Management,Supplies and Services,336005,Advertising E336,03/06/2019,3596910-OCC7108,550.00,OCCUCOM LTD.
Regeneration and Local Services,Environmental Services,Transport,215022,Running Costs of Vehicles,03/06/2019,3596911-416229,"1,171.55",OIL NRG LTD.
Regeneration and Local Services,Environmental Services,Transport,215005,Running Costs of Vehicles,03/06/2019,3596911-424124,"16,755.20",OIL NRG LTD.
Regeneration and Local Services,Environmental Services,Transport,215005,Running Costs of Vehicles,03/06/2019,3596911-424133,"4,224.69",OIL NRG LTD.
Regeneration and Local Services,Corporate Property and Land,Construction work A908,908105,Construction work,03/06/2019,3596912-657878,714.99,OPENREACH LLU.
Regeneration and Local Services,Corporate Property and Land,Third Party Payments 4THIRD,430100,Rendered by Private Contractors,03/06/2019,3596913-9722-32,877.15,OPUS BUILDING SERVICES LTD.
Regeneration and Local Services,Corporate Property and Land,Third Party Payments 4THIRD,430100,Rendered by Private Contractors,03/06/2019,3596913-9722-33,"1,098.05",OPUS BUILDING SERVICES LTD.
Regeneration and Local Services,Corporate Property and Land,Third Party Payments 4THIRD,430100,Rendered by Private Contractors,03/06/2019,3596913-9722-34,"1,064.65",OPUS BUILDING SERVICES LTD.
Regeneration and Local Services,Corporate Property and Land,Third Party Payments 4THIRD,430100,Rendered by Private Contractors,03/06/2019,3596913-9722-36,880.00,OPUS BUILDING SERVICES LTD.
Regeneration and Local Services,Corporate Property and Land,Third Party Payments 4THIRD,430100,Rendered by Private Contractors,03/06/2019,3596913-9722-37,906.72,OPUS BUILDING SERVICES LTD.
Regeneration and Local Services,Corporate Property and Land,Third Party Payments 4THIRD,430100,Rendered by Private Contractors,03/06/2019,3596913-9722-38,906.72,OPUS BUILDING SERVICES LTD.
Regeneration and Local Services,Corporate Property and Land,Third Party Payments 4THIRD,430100,Rendered by Private Contractors,03/06/2019,3596913-9722-39,746.72,OPUS BUILDING SERVICES LTD.
Regeneration and Local Services,Corporate Property and Land,Third Party Payments 4THIRD,430100,Rendered by Private Contractors,03/06/2019,3596913-9722-41,837.97,OPUS BUILDING SERVICES LTD.
Regeneration and Local Services,Corporate Property and Land,Third Party Payments 4THIRD,430100,Rendered by Private Contractors,03/06/2019,3596913-9722-42,690.47,OPUS BUILDING SERVICES LTD.
Regeneration and Local Services,Corporate Property and Land,Third Party Payments 4THIRD,430100,Rendered by Private Contractors,03/06/2019,3596913-9722-43,811.25,OPUS BUILDING SERVICES LTD.
Regeneration and Local Services,Corporate Property and Land,Third Party Payments 4THIRD,430100,Rendered by Private Contractors,03/06/2019,3596913-9722-45,837.97,OPUS BUILDING SERVICES LTD.
Regeneration and Local Services,Corporate Property and Land,Third Party Payments 4THIRD,430100,Rendered by Private Contractors,03/06/2019,3596913-9722-46,680.94,OPUS BUILDING SERVICES LTD.
Regeneration and Local Services,Corporate Property and Land,Third Party Payments 4THIRD,430100,Rendered by Private Contractors,03/06/2019,3596913-9722-48,"1,031.25",OPUS BUILDING SERVICES LTD.
Regeneration and Local Services,Corporate Property and Land,Third Party Payments 4THIRD,430100,Rendered by Private Contractors,03/06/2019,3596913-9722-49,906.72,OPUS BUILDING SERVICES LTD.
Regeneration and Local Services,Corporate Property and Land,Third Party Payments 4THIRD,430100,Rendered by Private Contractors,03/06/2019,3596913-9722-50,877.15,OPUS BUILDING SERVICES LTD.
Regeneration and Local Services,Environmental Services,Supplies and Services,338066,Services,03/06/2019,3596914-OHS19001,"2,730.00",ORACLE HERITAGE SERVICES.
Children and Young Peoples Services,Head of Education and Skills,Supplies and Services,338099,Services,03/06/2019,3596915-125534,750.00,ORAL HEALTH FOUNDATION.
Children and Young Peoples Services,Head of Education and Skills,Supplies and Services,338099,Services,03/06/2019,3596915-125537,"3,821.60",ORAL HEALTH FOUNDATION.
Dedicated Schools Grant BG0015,DSG High Needs Block,Central Support and Other Recharges,689989,Unclassified E690,03/06/2019,3596916-CAS-05-2019-186,"4,550.19",OUSTON PRIMARY SCHOOL (PART OF JIGSAW LEARNING TRUST).
Regeneration and Local Services,Technical Services CM0300,Stock A926,926900,Stock in hand-Inventory system,03/06/2019,3596918-XL239915,"2,338.20",PARK ELECTRICAL DISTRIBUTORS LTD.
Regeneration and Local Services,Technical Services CM0300,Supplies and Services,338027,Services,03/06/2019,3596921-64006291,"5,306.78",PELL FRISCHMANN CONSULTANTS LTD.
Transformation and Partnerships,Business Support,Supplies and Services,304245,Equipment and Materials,03/06/2019,3596931-9815404,512.00,PREMIER PAPER GROUP LTD.
Regeneration and Local Services,Transport and Contracted Services,Supplies and Services,384199,Miscellaneous Expenses,03/06/2019,3596932-158835,"1,639.00",PREMIER TRAFFIC MANAGEMENT LTD.
Regeneration and Local Services,Environmental Services,Third Party Payments 4THIRD,430100,Rendered by Private Contractors,03/06/2019,3596932-158849,"1,120.00",PREMIER TRAFFIC MANAGEMENT LTD.
Regeneration and Local Services,EnvironmentHealth & Consumer Protection,Supplies and Services,304999,Equipment and Materials,03/06/2019,3596940-15764,"2,080.00",RH ENVIRONMENTAL LTD.
Adult and Health Services,Head of Adults,Third Party Payments 4THIRD,478151,Purchase of Care,03/06/2019,3596942-AD012001561,"8,211.40",RICHMOND FELLOWSHIP.
Regeneration and Local Services,Environmental Services,Supplies and Services,304221,Equipment and Materials,03/06/2019,3596943-RSIN0299772,"3,964.64",RIGBY TAYLOR LTD.
Regeneration and Local Services,Technical Services CM0300,Supplies and Services,304358,Equipment and Materials,03/06/2019,3596949-2044,"2,952.00",S & R LANDSCAPES.
Regeneration and Local Services,Technical Services CM0300,Supplies and Services,304358,Equipment and Materials,03/06/2019,3596949-2046,"3,093.50",S & R LANDSCAPES.
Resources BK0010,Digital and Customer Services,Supplies and Services,338066,Services,03/06/2019,3596953-0033602314,950.00,SERVELEC LTD.
Regeneration and Local Services,Technical Services CM0300,Stock A926,926900,Stock in hand-Inventory system,03/06/2019,3596957-193182,"2,712.60",SNAPFAST.
Regeneration and Local Services,Technical Services CM0300,Stock A926,926900,Stock in hand-Inventory system,03/06/2019,3596957-193183,"2,712.60",SNAPFAST.
Dedicated Schools Grant BG0015,DSG High Needs Block,Central Support and Other Recharges,689989,Unclassified E690,03/06/2019,3596962-CAS-05-2019-187,"1,309.05",STANLEY LEARNING PARTNERSHIP.
Dedicated Schools Grant BG0015,DSG High Needs Block,Central Support and Other Recharges,689988,Unclassified E690,03/06/2019,3596962-CAS-05-2019-188,"2,296.58",STANLEY LEARNING PARTNERSHIP.
Dedicated Schools Grant BG0015,DSG High Needs Block,Central Support and Other Recharges,689988,Unclassified E690,03/06/2019,3596962-CAS-05-2019-189,"4,229.43",STANLEY LEARNING PARTNERSHIP.
Regeneration and Local Services,Environmental Services,Supplies and Services,338078,Services,03/06/2019,3596964-14276,637.00,STEADFAST SECURITY SOLUTIONS LTD.
Children and Young Peoples Services,Childrens Services Operational Support CG0080,Supplies and Services,338066,Services,03/06/2019,3596965-01008000861383,"5,280.00",STHREE PARTNERSHIP LLP T/A PROGRESSIVE.
Regeneration and Local Services,Technical Services CM0300,Third Party Payments 4THIRD,430100,Rendered by Private Contractors,03/06/2019,3596966-117350,"2,204.68",STONEGRAVE AGGREGATES LTD.
Regeneration and Local Services,Technical Services CM0300,Third Party Payments 4THIRD,430100,Rendered by Private Contractors,03/06/2019,3596966-117616,"1,294.64",STONEGRAVE AGGREGATES LTD.
Regeneration and Local Services,Technical Services CM0300,Third Party Payments 4THIRD,430100,Rendered by Private Contractors,03/06/2019,3596966-117675,"1,779.80",STONEGRAVE AGGREGATES LTD.
Regeneration and Local Services,Technical Services CM0300,Third Party Payments 4THIRD,430100,Rendered by Private Contractors,03/06/2019,3596966-117836,"1,075.88",STONEGRAVE AGGREGATES LTD.
Resources BK0010,Legal & Democratic Services,Supplies and Services,332047,Printing Stationery and Gen Off Exps,03/06/2019,3596968-3751993,526.20,SUPPLIES TEAM LTD NOW KNOWN AS BANNER GROUP LTD.
Regeneration and Local Services,Transport and Contracted Services,Supplies and Services,336005,Advertising E336,03/06/2019,3596973-122590,"1,394.40",TEESDALE MERCURY LTD.
Regeneration and Local Services,Culture Sport and Tourism,Supplies and Services,384199,Miscellaneous Expenses,03/06/2019,3596975-7309,"3,950.00",THE CORPORATE GROUP T/A CHEFS ON STAGE.
Regeneration and Local Services,Culture Sport and Tourism,Supplies and Services,308011,Furniture,03/06/2019,3596976-3744,654.70,THE DESIGN CONCEPT.
Dedicated Schools Grant BG0015,DSG High Needs Block,Central Support and Other Recharges,689988,Unclassified E690,03/06/2019,3596978-CAS-05-2019-184,"9,743.11",THE ROMERO CATHOLIC EDUCATION TRUST.
Children and Young Peoples Services,Childrens Services Operational Support CG0080,Supplies and Services,338089,Services,03/06/2019,3596981-1031,"2,280.15",TRACEY HILL TRAINING & CONSULTANCY LTD.
Dedicated Schools Grant BG0015,DSG High Needs Block,Central Support and Other Recharges,689989,Unclassified E690,03/06/2019,3596983-CAS-05-2019-183,"1,602.05",TUDHOE LEARNING TRUST T/A SOUTH HETTON PRIMARY SCHOOL.
Regeneration and Local Services,Technical Services CM0300,Supplies and Services,304221,Equipment and Materials,03/06/2019,3596985-199500,600.00,TYNEDALE ROADSTONE LTD.
Regeneration and Local Services,Corporate Property and Land,Supplies and Services,304221,Equipment and Materials,03/06/2019,3596986-04015978,"1,209.46",UK ELECTRIC LTD.
Regeneration and Local Services,Culture Sport and Tourism,Supplies and Services,304259,Equipment and Materials,03/06/2019,3596988-US2557,585.00,ULTIMATE SUPPLIES (NORTH) LTD.
Resources BK0010,Digital and Customer Services,Supplies and Services,332001,Printing Stationery and Gen Off Exps,03/06/2019,3596993-851,951.15,VINOVIUM ASSOCIATES LTD.
Regeneration and Local Services,Culture Sport and Tourism,Supplies and Services,338099,Services,03/06/2019,3596993-850,"1,202.93",VINOVIUM ASSOCIATES LTD.
Children and Young Peoples Services,Head of Childrens Social Care,Third Party Payments 4THIRD,440038,Other third party payments E440,03/06/2019,3596997-INV-0876,"1,255.53",WE CARE RECRUITMENT SOLUTIONS LTD.
Regeneration and Local Services,Technical Services CM0300,Stock A926,926900,Stock in hand-Inventory system,03/06/2019,3596999-60424077,834.00,WOLSELEY UK LTD.
Adult and Health Services,Commissioning inc Supporting People,Supplies and Services,338045,Services,03/06/2019,3597001-3381261,700.00,WOMBLE BOND DICKINSON (UK) LLP.
Children and Young Peoples Services,Head of Childrens Social Care,Transport,235073,Public Transport,03/06/2019,3597002-38310,891.50,WRIXON SECURITY SERVICES LTD T/A WRIXON CARE.
Children and Young Peoples Services,Head of Education and Skills,Transport,230008,Contract Hire,04/06/2019,3597768-A220809,"1,173.00",A MURRAY TRAVEL.
Children and Young Peoples Services,Head of Education and Skills,Transport,230008,Contract Hire,04/06/2019,3597768-EA220805,"2,075.53",A MURRAY TRAVEL.
Children and Young Peoples Services,Head of Education and Skills,Transport,230008,Contract Hire,04/06/2019,3597768-GC019,863.43,A MURRAY TRAVEL.
Children and Young Peoples Services,Head of Education and Skills,Transport,230006,Contract Hire,04/06/2019,3597768-HA220811,863.43,A MURRAY TRAVEL.
Regeneration and Local Services,Corporate Property and Land,Supplies and Services,304221,Equipment and Materials,04/06/2019,3597769-16688,"1,500.00",ABERCORN HEATING LTD.
Dedicated Schools Grant BG0015,DSG High Needs Block,Central Support and Other Recharges,689988,Unclassified E690,04/06/2019,3597770-CAS-05-2019-176,"4,013.10",ACRE RIGG ACADEMY.
Dedicated Schools Grant BG0015,DSG High Needs Block,Central Support and Other Recharges,689988,Unclassified E690,04/06/2019,3597772-CAS-05-2019-201,"2,146.08",ADVANCE LEARNING PARTNERSHIP.
Children and Young Peoples Services,Head of Early Help Inclusion & Vulnerable Children.,Premises,108099,Service Repairs and Maintenance,04/06/2019,3597774-4100651054,"2,228.00",ADVANCED DECORATING.
Regeneration and Local Services,Technical Services CM0300,Supplies and Services,304221,Equipment and Materials,04/06/2019,3597776-28238297,596.48,AGGREGATE INDUSTRIES UK LTD.
Regeneration and Local Services,Technical Services CM0300,Supplies and Services,304221,Equipment and Materials,04/06/2019,3597776-28238298,923.72,AGGREGATE INDUSTRIES UK LTD.
Children and Young Peoples Services,Head of Education and Skills,Transport,230007,Contract Hire,04/06/2019,3597781-03963,616.00,ATLAS TAXIS CONSETT.
Children and Young Peoples Services,Head of Education and Skills,Transport,230007,Contract Hire,04/06/2019,3597781-03965,948.84,ATLAS TAXIS CONSETT.
Children and Young Peoples Services,Head of Education and Skills,Transport,230006,Contract Hire,04/06/2019,3597781-03969,"1,292.50",ATLAS TAXIS CONSETT.
Regeneration and Local Services,Transport and Contracted Services,Third Party Payments 4THIRD,440999,Other third party payments E440,04/06/2019,3597783-68462,"3,704.00",BAYDALE CONTROL SYSTEMS LTD.
Children and Young Peoples Services,Head of Education and Skills,Transport,230008,Contract Hire,04/06/2019,3597784-853,"1,306.96",BEELINE MINI BUSES.
Children and Young Peoples Services,Head of Education and Skills,Transport,230008,Contract Hire,04/06/2019,3597784-854,608.94,BEELINE MINI BUSES.
Children and Young Peoples Services,Head of Education and Skills,Transport,230008,Contract Hire,04/06/2019,3597784-855,582.42,BEELINE MINI BUSES.
Children and Young Peoples Services,Head of Education and Skills,Transport,230008,Contract Hire,04/06/2019,3597784-856,538.05,BEELINE MINI BUSES.
Children and Young Peoples Services,Head of Education and Skills,Transport,230008,Contract Hire,04/06/2019,3597789-A017-MAY,"1,632.00",BIG MAMA`S TAXI.
Children and Young Peoples Services,Head of Education and Skills,Transport,230006,Contract Hire,04/06/2019,3597789-F728-MAY,"1,094.40",BIG MAMA`S TAXI.
Children and Young Peoples Services,Head of Education and Skills,Supplies and Services,304252,Equipment and Materials,04/06/2019,3597792-13,625.00,BRASS (INSTRUMENT REPAIRER).
Regeneration and Local Services,Business Durham CL0850,Construction work A908,908105,Construction work,04/06/2019,3597795-J0001,"138,273.00",BUCKINGHAMSHIRE PROPERTIES LTD.
Regeneration and Local Services,Business Durham CL0850,Construction work A908,908105,Construction work,04/06/2019,3597795-J0002,"43,595.00",BUCKINGHAMSHIRE PROPERTIES LTD.
Children and Young Peoples Services,Head of Education and Skills,Transport,230008,Contract Hire,04/06/2019,3597797-S026020,"1,261.23",C & R TAXIS.
Children and Young Peoples Services,Head of Education and Skills,Transport,230008,Contract Hire,04/06/2019,3597797-W078020,"2,093.04",C & R TAXIS.
Regeneration and Local Services,Technical Services CM0300,Supplies and Services,338027,Services,04/06/2019,3597800-6017116117,600.00,CAPITA PROPERTY & INFRASTRUCTURE LTD.
Regeneration and Local Services,Corporate Property and Land,Third Party Payments 4THIRD,430100,Rendered by Private Contractors,04/06/2019,3597801-398,"1,084.16",CEILINGS DIRECT LTD.
Children and Young Peoples Services,Head of Education and Skills,Transport,230008,Contract Hire,04/06/2019,3597803-028,"2,360.91",CHANNER`S CABS.
Dedicated Schools Grant BG0015,DSG High Needs Block,Central Support and Other Recharges,689988,Unclassified E690,04/06/2019,3597805-CAS-05-2019-175,"11,142.98",CHILTON ACADEMY.
Children and Young Peoples Services,Head of Education and Skills,Transport,230008,Contract Hire,04/06/2019,3597806-ES09,"1,232.50",CHIPPERS TAXIS.
Children and Young Peoples Services,Head of Education and Skills,Transport,230003,Contract Hire,04/06/2019,3597811-46698,"2,598.79",CHRISTOPHER JAMES GRIERSON T/A GRIERSONS COACHES.
Children and Young Peoples Services,Head of Education and Skills,Transport,230003,Contract Hire,04/06/2019,3597811-46701,"6,488.39",CHRISTOPHER JAMES GRIERSON T/A GRIERSONS COACHES.
Children and Young Peoples Services,Head of Education and Skills,Transport,230003,Contract Hire,04/06/2019,3597811-46702,"2,441.88",CHRISTOPHER JAMES GRIERSON T/A GRIERSONS COACHES.
Regeneration and Local Services,Corporate Property and Land,Third Party Payments 4THIRD,430100,Rendered by Private Contractors,04/06/2019,3597812-5775,"2,648.00",CITY FABRICATIONS LTD.
Regeneration and Local Services,EnvironmentHealth & Consumer Protection,Intangible Assets,917003,Software capitalised implementation fees,04/06/2019,3597813-C/HR179729,"3,000.00",CIVICA UK LTD.
Dedicated Schools Grant BG0015,DSG High Needs Block,Central Support and Other Recharges,689989,Unclassified E690,04/06/2019,3597816-CAS-05-2019-191,"6,432.24",CLEVES CROSS ACADEMY.
Dedicated Schools Grant BG0015,DSG High Needs Block,Central Support and Other Recharges,689989,Unclassified E690,04/06/2019,3597817-CAS-05-2019-180,"9,441.50",CLEVES CROSS LEARNING TRUST T/A ROSA STREET PRIMARY SCHOOL.
Adult and Health Services,Head of Adults,Transport,230005,Contract Hire,04/06/2019,3597819-WV104/0519,608.00,COLVIN`S CABS.
Children and Young Peoples Services,Head of Childrens Social Care,Supplies and Services,338044,Services,04/06/2019,3597820-104179,946.89,COMPLEMENT GENOMICS LTD.
Children and Young Peoples Services,Head of Education and Skills,Transport,230007,Contract Hire,04/06/2019,3597822-7,"1,190.00",CRAIG MASSEY`S TAXIS.
Children and Young Peoples Services,Head of Education and Skills,Transport,230008,Contract Hire,04/06/2019,3597823-109185,"2,375.92",CROFT BUSINESS SERVICES (UK) LTD T/A CROFT TAXIS.
Children and Young Peoples Services,Head of Education and Skills,Transport,230008,Contract Hire,04/06/2019,3597823-109197,"2,284.82",CROFT BUSINESS SERVICES (UK) LTD T/A CROFT TAXIS.
Children and Young Peoples Services,Head of Education and Skills,Transport,230008,Contract Hire,04/06/2019,3597823-109199,"2,435.06",CROFT BUSINESS SERVICES (UK) LTD T/A CROFT TAXIS.
Children and Young Peoples Services,Head of Education and Skills,Transport,230008,Contract Hire,04/06/2019,3597827-3438,"1,482.57",DAVES MINIBUSES.
Children and Young Peoples Services,Head of Education and Skills,Transport,230008,Contract Hire,04/06/2019,3597827-3439,"2,145.40",DAVES MINIBUSES.
Children and Young Peoples Services,Head of Education and Skills,Transport,230008,Contract Hire,04/06/2019,3597827-3440,"1,445.00",DAVES MINIBUSES.
Children and Young Peoples Services,Head of Education and Skills,Transport,230008,Contract Hire,04/06/2019,3597827-3442,"1,700.00",DAVES MINIBUSES.
Children and Young Peoples Services,Head of Education and Skills,Transport,230008,Contract Hire,04/06/2019,3597830-0519-001,"1,640.00",DCM TAXIS.
Dedicated Schools Grant BG0015,DSG High Needs Block,Central Support and Other Recharges,689988,Unclassified E690,04/06/2019,3597831-CAS-05-2019-182,"2,424.92",DENE HOUSE PRIMARY SCHOOL (ACADEMY).
Dedicated Schools Grant BG0015,DSG High Needs Block,Central Support and Other Recharges,689988,Unclassified E690,04/06/2019,3597832-CAS-05-2019-208,"4,399.35",DURHAM MARTYRS MULTI ACADEMY TRUST T/A ST LEONARD`S CATHOLIC SCHOOL.
Children and Young Peoples Services,Head of Education and Skills,Transport,230008,Contract Hire,04/06/2019,3597833-01062019/2,"2,108.00",EAST DURHAM TAXIS.
Children and Young Peoples Services,Head of Education and Skills,Transport,230008,Contract Hire,04/06/2019,3597833-01062019/3,"1,938.00",EAST DURHAM TAXIS.
Children and Young Peoples Services,Head of Education and Skills,Transport,230008,Contract Hire,04/06/2019,3597833-01062019/4,"2,431.00",EAST DURHAM TAXIS.
Dedicated Schools Grant BG0015,DSG High Needs Block,Central Support and Other Recharges,689988,Unclassified E690,04/06/2019,3597834-CAS-05-2019-202,"4,482.64",EDEN LEARNING TRUST T/A FERRYHILL BUSINESS & ENTERPRISE COLLEGE.
Dedicated Schools Grant BG0015,DSG High Needs Block,Central Support and Other Recharges,689988,Unclassified E690,04/06/2019,3597835-CAS-05-2019-203,"10,815.74",EDEN LEARNING TRUST T/A WOODHAM ACADEMY.
Children and Young Peoples Services,Head of Education and Skills,Transport,230007,Contract Hire,04/06/2019,3597836-4402/0519,555.20,ELLIOTTS OF TRIMDON.
Children and Young Peoples Services,Head of Education and Skills,Transport,230007,Contract Hire,04/06/2019,3597836-5124/0519,"1,063.01",ELLIOTTS OF TRIMDON.
Children and Young Peoples Services,Head of Education and Skills,Transport,230007,Contract Hire,04/06/2019,3597836-5182/0519,592.96,ELLIOTTS OF TRIMDON.
Children and Young Peoples Services,Head of Education and Skills,Transport,230008,Contract Hire,04/06/2019,3597836-E065/0519,"1,224.00",ELLIOTTS OF TRIMDON.
Children and Young Peoples Services,Head of Education and Skills,Transport,230008,Contract Hire,04/06/2019,3597836-E122/0519,"1,029.01",ELLIOTTS OF TRIMDON.
Children and Young Peoples Services,Head of Education and Skills,Transport,230008,Contract Hire,04/06/2019,3597840-1905,"1,569.78",FRANK ATKINSON T/A FJ MINIBUS TRAVEL.
Children and Young Peoples Services,Head of Education and Skills,Transport,230003,Contract Hire,04/06/2019,3597843-101255,"3,453.55",G & P JOHNSON LTD T/A NIGHTINGALE COACHES.
Children and Young Peoples Services,Head of Education and Skills,Transport,230007,Contract Hire,04/06/2019,3597843-101256,"1,020.00",G & P JOHNSON LTD T/A NIGHTINGALE COACHES.
Children and Young Peoples Services,Head of Education and Skills,Transport,230007,Contract Hire,04/06/2019,3597843-101257,"1,008.00",G & P JOHNSON LTD T/A NIGHTINGALE COACHES.
Children and Young Peoples Services,Head of Education and Skills,Transport,230008,Contract Hire,04/06/2019,3597843-101258,"2,068.90",G & P JOHNSON LTD T/A NIGHTINGALE COACHES.
Children and Young Peoples Services,Head of Education and Skills,Transport,230007,Contract Hire,04/06/2019,3597843-101260,884.00,G & P JOHNSON LTD T/A NIGHTINGALE COACHES.
Dedicated Schools Grant BG0015,DSG High Needs Block,Transport,230010,Contract Hire,04/06/2019,3597843-101261,"1,105.00",G & P JOHNSON LTD T/A NIGHTINGALE COACHES.
Children and Young Peoples Services,Head of Education and Skills,Transport,230008,Contract Hire,04/06/2019,3597843-101262,"1,808.00",G & P JOHNSON LTD T/A NIGHTINGALE COACHES.
Children and Young Peoples Services,Head of Education and Skills,Transport,230008,Contract Hire,04/06/2019,3597843-101263,"1,220.94",G & P JOHNSON LTD T/A NIGHTINGALE COACHES.
Children and Young Peoples Services,Head of Education and Skills,Transport,230008,Contract Hire,04/06/2019,3597843-101264,"1,220.94",G & P JOHNSON LTD T/A NIGHTINGALE COACHES.
Children and Young Peoples Services,Head of Education and Skills,Transport,230008,Contract Hire,04/06/2019,3597843-101265,854.59,G & P JOHNSON LTD T/A NIGHTINGALE COACHES.
Children and Young Peoples Services,Head of Education and Skills,Transport,230008,Contract Hire,04/06/2019,3597843-101266,"1,214.82",G & P JOHNSON LTD T/A NIGHTINGALE COACHES.
Children and Young Peoples Services,Head of Education and Skills,Transport,230008,Contract Hire,04/06/2019,3597843-101267,"1,514.36",G & P JOHNSON LTD T/A NIGHTINGALE COACHES.
Children and Young Peoples Services,Head of Education and Skills,Transport,230008,Contract Hire,04/06/2019,3597843-101268,"1,411.00",G & P JOHNSON LTD T/A NIGHTINGALE COACHES.
Children and Young Peoples Services,Head of Education and Skills,Transport,230008,Contract Hire,04/06/2019,3597843-101269,"1,831.41",G & P JOHNSON LTD T/A NIGHTINGALE COACHES.
Children and Young Peoples Services,Head of Education and Skills,Transport,230008,Contract Hire,04/06/2019,3597843-101270,"1,482.57",G & P JOHNSON LTD T/A NIGHTINGALE COACHES.
Children and Young Peoples Services,Head of Education and Skills,Transport,230008,Contract Hire,04/06/2019,3597843-101271,784.89,G & P JOHNSON LTD T/A NIGHTINGALE COACHES.
Children and Young Peoples Services,Head of Education and Skills,Transport,230008,Contract Hire,04/06/2019,3597843-101272,"1,360.51",G & P JOHNSON LTD T/A NIGHTINGALE COACHES.
Children and Young Peoples Services,Head of Education and Skills,Transport,230008,Contract Hire,04/06/2019,3597843-101273,"1,513.00",G & P JOHNSON LTD T/A NIGHTINGALE COACHES.
Children and Young Peoples Services,Head of Education and Skills,Transport,230008,Contract Hire,04/06/2019,3597843-101274,782.00,G & P JOHNSON LTD T/A NIGHTINGALE COACHES.
Children and Young Peoples Services,Head of Education and Skills,Transport,230008,Contract Hire,04/06/2019,3597843-101275,952.00,G & P JOHNSON LTD T/A NIGHTINGALE COACHES.
Regeneration and Local Services,Technical Services CM0300,Premises,150015,Apportioned Exps of Operational Blds,04/06/2019,3597844-409263934,830.85,GAP GROUP LTD.
Regeneration and Local Services,Technical Services CM0300,Supplies and Services,304357,Equipment and Materials,04/06/2019,3597844-DCC120519,"13,461.24",GAP GROUP LTD.
Regeneration and Local Services,Technical Services CM0300,Supplies and Services,304358,Equipment and Materials,04/06/2019,3597846-75169,612.63,GEORGE VARDY HAULAGE.
Regeneration and Local Services,Technical Services CM0300,Supplies and Services,304358,Equipment and Materials,04/06/2019,3597846-75170,633.75,GEORGE VARDY HAULAGE.
Children and Young Peoples Services,Head of Education and Skills,Transport,230008,Contract Hire,04/06/2019,3597848-03-W063,"1,785.00",GRAHAM WILLIAMS T/A BUS 2 MINIBUS HIRE.
Transformation and Partnerships,Partnerships & Community Engagement Div.,Supplies and Services,384086,Miscellaneous Expenses,04/06/2019,3597849-VOUCHER17NB-CHES001,"1,000.00",GREAT LUMLEY FESTIVAL.
Regeneration and Local Services,Culture Sport and Tourism,Premises,145023,Cleaning and Domestic Supplies,04/06/2019,3597850-06/798519,560.08,GREENHAM TRADING LTD.
Regeneration and Local Services,Technical Services CM0300,Stock A926,926900,Stock in hand-Inventory system,04/06/2019,93-7866.,521.10,HALT HIRE LTD.
Children and Young Peoples Services,Head of Childrens Social Care,Third Party Payments 4THIRD,425021,Rendered by Voluntary Organisations,04/06/2019,3597851-6861710,"25,650.06",HENNESSY GROUP.
Dedicated Schools Grant BG0015,DSG High Needs Block,Central Support and Other Recharges,689988,Unclassified E690,04/06/2019,3597852-CAS-05-2019-200,"8,183.91",HERMITAGE ACADEMY.
Children and Young Peoples Services,Head of Childrens Social Care,Third Party Payments 4THIRD,440038,Other third party payments E440,04/06/2019,3597855-10001056-686179-70101959,"1,143.24",HOME GROUP LTD FORMERLY STONHAM HOUSING ASSOCIATION LTD.
Adult and Health Services,Public Health CC0450,Third Party Payments 4THIRD,460803,Contract Payments,04/06/2019,3597857-133/20/1801,"374,752.10",HUMANKIND CHARITY.
Children and Young Peoples Services,Head of Education and Skills,Transport,230016,Contract Hire,04/06/2019,3597858-IR1905003,"1,656.99",I & R EXECUTIVE TRAVEL.
Children and Young Peoples Services,Head of Education and Skills,Transport,230008,Contract Hire,04/06/2019,3597858-IRI905001,"1,774.97",I & R EXECUTIVE TRAVEL.
Children and Young Peoples Services,Head of Education and Skills,Transport,230009,Contract Hire,04/06/2019,3597860-0690,662.83,JACKSON`S TAXI.
Children and Young Peoples Services,Head of Education and Skills,Transport,230008,Contract Hire,04/06/2019,3597860-0691,"1,122.00",JACKSON`S TAXI.
Children and Young Peoples Services,Head of Education and Skills,Transport,230008,Contract Hire,04/06/2019,3597860-0692,"2,019.09",JACKSON`S TAXI.
Children and Young Peoples Services,Head of Education and Skills,Transport,230009,Contract Hire,04/06/2019,3597860-0693,"1,146.82",JACKSON`S TAXI.
Regeneration and Local Services,Culture Sport and Tourism,Supplies and Services,338047,Services,04/06/2019,3597862-1052,"1,500.00",JAMES CUMMINGS T/A CUT & SUSSED RECORDS.
Children and Young Peoples Services,Head of Education and Skills,Transport,230008,Contract Hire,04/06/2019,3597864-1511,"1,661.32",JDS PRIVATE HIRE DURHAM.
Children and Young Peoples Services,Head of Education and Skills,Transport,230006,Contract Hire,04/06/2019,3597864-1527,"1,380.15",JDS PRIVATE HIRE DURHAM.
Children and Young Peoples Services,Head of Education and Skills,Transport,230008,Contract Hire,04/06/2019,3597865-2886,"1,472.37",JEFF ANDERSON COACHES LTD.
Children and Young Peoples Services,Head of Education and Skills,Transport,230007,Contract Hire,04/06/2019,3597865-2891,"1,264.29",JEFF ANDERSON COACHES LTD.
Regeneration and Local Services,Environmental Services,Premises,108099,Service Repairs and Maintenance,04/06/2019,3597866-178,935.00,JN KEARTON.
Regeneration and Local Services,Technical Services CM0300,Supplies and Services,304221,Equipment and Materials,04/06/2019,3597868-STI502063,528.60,JT DOVE LTD.
Children and Young Peoples Services,Head of Education and Skills,Transport,230008,Contract Hire,04/06/2019,3597869-M053/5/19,"2,672.57",K & R TAXIS (STANLEY).
Children and Young Peoples Services,Head of Education and Skills,Transport,230008,Contract Hire,04/06/2019,3597871-N083-9,"2,034.00",KD TAXIS.
Dedicated Schools Grant BG0015,DSG High Needs Block,Central Support and Other Recharges,689988,Unclassified E690,04/06/2019,3597872-CAS-05-2019-204,"8,857.66",KING JAMES I ACADEMY.
Children and Young Peoples Services,Head of Education and Skills,Transport,230008,Contract Hire,04/06/2019,3597875-1732,"1,360.00",LD TAXIS.
Adult and Health Services,Head of Adults,Transport,230005,Contract Hire,04/06/2019,3597875-1733,"1,470.00",LD TAXIS.
Children and Young Peoples Services,Head of Education and Skills,Transport,230007,Contract Hire,04/06/2019,3597875-1734,"1,360.00",LD TAXIS.
Children and Young Peoples Services,Head of Education and Skills,Transport,230006,Contract Hire,04/06/2019,3597875-1736,660.00,LD TAXIS.
Children and Young Peoples Services,Head of Education and Skills,Transport,230008,Contract Hire,04/06/2019,3597875-1737,"2,115.00",LD TAXIS.
Children and Young Peoples Services,Head of Education and Skills,Transport,230008,Contract Hire,04/06/2019,3597876-260,850.00,LEE`S TAXIS (SACRISTON).
Children and Young Peoples Services,Head of Education and Skills,Transport,230008,Contract Hire,04/06/2019,3597878-4026,"1,846.62",LINCAB TAXIS.
Regeneration and Local Services,Technical Services CM0300,Supplies and Services,304358,Equipment and Materials,04/06/2019,3597881-MS1596,"1,044.00",M SPENCE SURFACING LTD.
Regeneration and Local Services,Technical Services CM0300,Supplies and Services,304358,Equipment and Materials,04/06/2019,3597881-MS1598,"1,118.70",M SPENCE SURFACING LTD.
Regeneration and Local Services,Technical Services CM0300,Supplies and Services,304358,Equipment and Materials,04/06/2019,3597881-MS1599,806.85,M SPENCE SURFACING LTD.
Regeneration and Local Services,Technical Services CM0300,Supplies and Services,304358,Equipment and Materials,04/06/2019,3597881-MS1614,603.00,M SPENCE SURFACING LTD.
Regeneration and Local Services,Culture Sport and Tourism,Supplies and Services,384199,Miscellaneous Expenses,04/06/2019,3597882-5786,906.80,MAKEPEACE MOTORS.
Children and Young Peoples Services,Head of Education and Skills,Transport,230008,Contract Hire,04/06/2019,3597884-31,"1,098.48",MARK SUMMERS T/A MARK`S TAXI.
Children and Young Peoples Services,Head of Education and Skills,Transport,230008,Contract Hire,04/06/2019,3597884-32,"1,876.57",MARK SUMMERS T/A MARK`S TAXI.
Children and Young Peoples Services,Head of Education and Skills,Transport,230008,Contract Hire,04/06/2019,3597889-CEW510,"1,482.57",MOOR PRIVATE HIRE.
Children and Young Peoples Services,Head of Education and Skills,Transport,230006,Contract Hire,04/06/2019,3597890-151,"1,122.00",MR DAVID CULLEN T/A JED`S TAXIS.
Dedicated Schools Grant BG0015,DSG High Needs Block,Transport,230010,Contract Hire,04/06/2019,3597890-152,816.00,MR DAVID CULLEN T/A JED`S TAXIS.
Children and Young Peoples Services,Head of Education and Skills,Transport,230007,Contract Hire,04/06/2019,3597891-0519,510.00,MR DEREK HENDERSON.
Children and Young Peoples Services,Head of Education and Skills,Transport,230008,Contract Hire,04/06/2019,3597892-177-25-50,"1,266.50",MR GS ANDERSON.
Children and Young Peoples Services,Head of Education and Skills,Transport,230008,Contract Hire,04/06/2019,3597892-178-26-51,"1,264.63",MR GS ANDERSON.
Children and Young Peoples Services,Head of Education and Skills,Transport,230012,Contract Hire,04/06/2019,3597894-083,"1,583.64",MR LJ TARRY T/A TARRY`S TAXI`S.
Children and Young Peoples Services,Head of Education and Skills,Transport,230008,Contract Hire,04/06/2019,3597895-037,"1,453.50",MR NEIL LEONARD T/A LENNY`S TAXIS.
Children and Young Peoples Services,Head of Education and Skills,Transport,230012,Contract Hire,04/06/2019,3597895-038,"1,394.00",MR NEIL LEONARD T/A LENNY`S TAXIS.
Children and Young Peoples Services,Head of Education and Skills,Transport,230008,Contract Hire,04/06/2019,3597895-039,"1,615.00",MR NEIL LEONARD T/A LENNY`S TAXIS.
Children and Young Peoples Services,Head of Education and Skills,Transport,230008,Contract Hire,04/06/2019,3597896-3080,"1,632.00",MR S BOWERS T/A DH7 TAXIS.
Children and Young Peoples Services,Head of Education and Skills,Transport,230008,Contract Hire,04/06/2019,3597896-3081,"3,227.05",MR S BOWERS T/A DH7 TAXIS.
Children and Young Peoples Services,Head of Education and Skills,Transport,230008,Contract Hire,04/06/2019,3597896-3082,"1,785.00",MR S BOWERS T/A DH7 TAXIS.
Children and Young Peoples Services,Head of Education and Skills,Transport,230006,Contract Hire,04/06/2019,3597896-3083,990.00,MR S BOWERS T/A DH7 TAXIS.
Regeneration and Local Services,Technical Services CM0300,Third Party Payments 4THIRD,430100,Rendered by Private Contractors,04/06/2019,3597900-1246463,"9,452.72",NETWORK RAIL.
Dedicated Schools Grant BG0015,DSG High Needs Block,Central Support and Other Recharges,689988,Unclassified E690,04/06/2019,3597901-CAS-05-2019-195,"3,394.92",NEW COLLEGE ACADEMIES TRUST - CONSETT ACADEMY.
Dedicated Schools Grant BG0015,DSG High Needs Block,Central Support and Other Recharges,689988,Unclassified E690,04/06/2019,3597904-CAS-05-2019-194,"4,990.44",NORTH DURHAM ACADEMY.
Dedicated Schools Grant BG0015,DSG High Needs Block,Central Support and Other Recharges,689988,Unclassified E690,04/06/2019,3597906-CAS-05-2019-179,"7,459.36",NORTH EAST LEARNING TRUST (NELT).
Dedicated Schools Grant BG0015,DSG High Needs Block,Central Support and Other Recharges,689988,Unclassified E690,04/06/2019,3597909-CAS-05-2019-199,"8,840.66",PARK VIEW ACADEMY.
Children and Young Peoples Services,Head of Education and Skills,Transport,230007,Contract Hire,04/06/2019,3597910-02-5260,612.00,PAUL ROSE T/A PAUL`S TAXIS.
Children and Young Peoples Services,Head of Education and Skills,Transport,230007,Contract Hire,04/06/2019,3597911-1729,"2,093.04",PAUL WATSON TRAVEL.
Children and Young Peoples Services,Head of Education and Skills,Transport,230007,Contract Hire,04/06/2019,3597911-1730,"1,918.62",PAUL WATSON TRAVEL.
Children and Young Peoples Services,Head of Education and Skills,Transport,230008,Contract Hire,04/06/2019,3597912-DCC249,"1,020.00",PAUL`S TAXIS..
Children and Young Peoples Services,Head of Education and Skills,Transport,230008,Contract Hire,04/06/2019,3597912-DCC250,"1,395.36",PAUL`S TAXIS..
Regeneration and Local Services,Technical Services CM0300,Third Party Payments 4THIRD,430100,Rendered by Private Contractors,04/06/2019,3597916-5481,"4,687.86",PINKNEY BUILDING CONTRACTORS LTD.
Regeneration and Local Services,Technical Services CM0300,Third Party Payments 4THIRD,430100,Rendered by Private Contractors,04/06/2019,3597916-5482,"4,687.86",PINKNEY BUILDING CONTRACTORS LTD.
Regeneration and Local Services,Technical Services CM0300,Third Party Payments 4THIRD,430100,Rendered by Private Contractors,04/06/2019,3597916-5483,"4,687.86",PINKNEY BUILDING CONTRACTORS LTD.
Regeneration and Local Services,Technical Services CM0300,Third Party Payments 4THIRD,430100,Rendered by Private Contractors,04/06/2019,3597916-5484,"4,784.18",PINKNEY BUILDING CONTRACTORS LTD.
Regeneration and Local Services,Technical Services CM0300,Third Party Payments 4THIRD,430100,Rendered by Private Contractors,04/06/2019,3597916-5489,"3,738.42",PINKNEY BUILDING CONTRACTORS LTD.
Regeneration and Local Services,Technical Services CM0300,Third Party Payments 4THIRD,430100,Rendered by Private Contractors,04/06/2019,3597916-5490,"3,738.42",PINKNEY BUILDING CONTRACTORS LTD.
Regeneration and Local Services,Technical Services CM0300,Third Party Payments 4THIRD,430100,Rendered by Private Contractors,04/06/2019,3597916-5491,"3,738.42",PINKNEY BUILDING CONTRACTORS LTD.
Regeneration and Local Services,Technical Services CM0300,Third Party Payments 4THIRD,430100,Rendered by Private Contractors,04/06/2019,3597916-5492,"3,408.72",PINKNEY BUILDING CONTRACTORS LTD.
Regeneration and Local Services,Technical Services CM0300,Third Party Payments 4THIRD,430100,Rendered by Private Contractors,04/06/2019,3597916-5500,"4,687.86",PINKNEY BUILDING CONTRACTORS LTD.
Regeneration and Local Services,Technical Services CM0300,Third Party Payments 4THIRD,430100,Rendered by Private Contractors,04/06/2019,3597916-5501,"4,687.86",PINKNEY BUILDING CONTRACTORS LTD.
Regeneration and Local Services,Technical Services CM0300,Third Party Payments 4THIRD,430100,Rendered by Private Contractors,04/06/2019,3597916-5502,"4,687.86",PINKNEY BUILDING CONTRACTORS LTD.
Regeneration and Local Services,Technical Services CM0300,Third Party Payments 4THIRD,430100,Rendered by Private Contractors,04/06/2019,3597916-5503,"5,157.42",PINKNEY BUILDING CONTRACTORS LTD.
Regeneration and Local Services,Technical Services CM0300,Third Party Payments 4THIRD,430100,Rendered by Private Contractors,04/06/2019,3597916-5509,"4,514.28",PINKNEY BUILDING CONTRACTORS LTD.
Regeneration and Local Services,Technical Services CM0300,Third Party Payments 4THIRD,430100,Rendered by Private Contractors,04/06/2019,3597916-5510,"2,257.14",PINKNEY BUILDING CONTRACTORS LTD.
Regeneration and Local Services,Technical Services CM0300,Third Party Payments 4THIRD,430100,Rendered by Private Contractors,04/06/2019,3597916-5518,"3,599.24",PINKNEY BUILDING CONTRACTORS LTD.
Regeneration and Local Services,Technical Services CM0300,Third Party Payments 4THIRD,430100,Rendered by Private Contractors,04/06/2019,3597916-5519,"3,599.24",PINKNEY BUILDING CONTRACTORS LTD.
Regeneration and Local Services,Technical Services CM0300,Third Party Payments 4THIRD,430100,Rendered by Private Contractors,04/06/2019,3597916-5520,"1,799.62",PINKNEY BUILDING CONTRACTORS LTD.
Dedicated Schools Grant BG0015,DSG High Needs Block,Central Support and Other Recharges,689988,Unclassified E690,04/06/2019,3597919-CAS-05-2019-192,"8,889.69",RIBBON ACADEMY TRUST.
Children and Young Peoples Services,Head of Childrens Social Care,Third Party Payments 4THIRD,425021,Rendered by Voluntary Organisations,04/06/2019,3597920-30930,"24,500.00",RIGHT-TRAK LTD.
Children and Young Peoples Services,Head of Education and Skills,Transport,230008,Contract Hire,04/06/2019,3597922-9/5/19,"1,020.00",ROUTE 1.
Regeneration and Local Services,Technical Services CM0300,Supplies and Services,304358,Equipment and Materials,04/06/2019,3597924-2040,"3,020.75",S & R LANDSCAPES.
Regeneration and Local Services,Technical Services CM0300,Supplies and Services,304358,Equipment and Materials,04/06/2019,3597924-2048,"2,590.50",S & R LANDSCAPES.
Regeneration and Local Services,Technical Services CM0300,Supplies and Services,304358,Equipment and Materials,04/06/2019,3597924-2049,"1,616.50",S & R LANDSCAPES.
Regeneration and Local Services,Technical Services CM0300,Supplies and Services,304358,Equipment and Materials,04/06/2019,3597924-2379,"3,688.00",S & R LANDSCAPES.
Regeneration and Local Services,Technical Services CM0300,Supplies and Services,304358,Equipment and Materials,04/06/2019,3597924-2381,"1,429.75",S & R LANDSCAPES.
Regeneration and Local Services,Technical Services CM0300,Supplies and Services,304358,Equipment and Materials,04/06/2019,3597924-2382,726.00,S & R LANDSCAPES.
Regeneration and Local Services,Technical Services CM0300,Supplies and Services,304358,Equipment and Materials,04/06/2019,3597924-2383,795.50,S & R LANDSCAPES.
Transformation and Partnerships,Partnerships & Community Engagement Div.,Cap Exp on Grants & Other Financial Assistance (REFCUS),918004,Contributions to other bodies 918004,04/06/2019,3597925-VOUCHER19NB-CHES004,"3,780.00",SACRISTON COLLIERY CRICKET CLUB.
Children and Young Peoples Services,Head of Education and Skills,Transport,230008,Contract Hire,04/06/2019,3597926-A070010718/MAY,680.00,SAFELINE TRAVEL.
Children and Young Peoples Services,Head of Education and Skills,Transport,230008,Contract Hire,04/06/2019,3597926-W002010918/MAY,"1,054.00",SAFELINE TRAVEL.
Regeneration and Local Services,Environmental Services,Supplies and Services,304221,Equipment and Materials,04/06/2019,3597930-20191000008246,"2,293.09",SCARAB SWEEPERS LTD.
Dedicated Schools Grant BG0015,DSG High Needs Block,Transfer Payments,510034,School Children,04/06/2019,3597932-LACPP1819SPRING-DUR,750.00,SHIELD ROW ACADEMY.
Dedicated Schools Grant BG0015,DSG High Needs Block,Central Support and Other Recharges,689988,Unclassified E690,04/06/2019,3597932-CAS-05-2019-181,"9,984.53",SHIELD ROW ACADEMY.
Children and Young Peoples Services,Head of Education and Skills,Transport,230008,Contract Hire,04/06/2019,3597933-018/MAY,"1,395.36",SHOEY`S TAXIS.
Children and Young Peoples Services,Head of Education and Skills,Transport,230008,Contract Hire,04/06/2019,3597934-75135,"2,117.50",SHOTTON PRIVATE HIRE.
Children and Young Peoples Services,Head of Education and Skills,Transport,230012,Contract Hire,04/06/2019,3597936-1345,"1,421.31",SIMONS TAXIS.
Children and Young Peoples Services,Head of Education and Skills,Transport,230008,Contract Hire,04/06/2019,3597936-1346,"1,564.00",SIMONS TAXIS.
Regeneration and Local Services,Culture Sport and Tourism,Third Party Payments 4THIRD,430100,Rendered by Private Contractors,04/06/2019,3597939-13954,671.07,SMITH CONSTRUCTION (HECKINGTON) LTD.
Children and Young Peoples Services,Head of Education and Skills,Transport,230008,Contract Hire,04/06/2019,3597942-81241,"1,360.00",SPENNYMOOR TAXIS.
Children and Young Peoples Services,Head of Education and Skills,Transport,230008,Contract Hire,04/06/2019,3597942-BKD84932,"1,950.00",SPENNYMOOR TAXIS.
Children and Young Peoples Services,Head of Education and Skills,Transport,230008,Contract Hire,04/06/2019,3597942-JJD85346,"1,508.58",SPENNYMOOR TAXIS.
Children and Young Peoples Services,Head of Education and Skills,Transport,230008,Contract Hire,04/06/2019,3597942-LP2249,700.00,SPENNYMOOR TAXIS.
Dedicated Schools Grant BG0015,DSG High Needs Block,Central Support and Other Recharges,689988,Unclassified E690,04/06/2019,3597943-CAS-05-2019-209,"8,361.94",ST BEDES CATHOLIC ACADEMY (LANCHESTER).
Dedicated Schools Grant BG0015,DSG High Needs Block,Central Support and Other Recharges,689988,Unclassified E690,04/06/2019,3597944-CAS-05-2019-207,"6,215.44",ST JOHN`S SCHOOL & SIXTH FORM COLLEGE A CATHOLIC ACADEMY.
Dedicated Schools Grant BG0015,DSG High Needs Block,Central Support and Other Recharges,689988,Unclassified E690,04/06/2019,3597945-CAS-05-2019-197,"23,739.61",STAINDROP ACADEMY.
Dedicated Schools Grant BG0015,DSG High Needs Block,Central Support and Other Recharges,689988,Unclassified E690,04/06/2019,3597946-CAS-05-2019-193,"3,963.74",STANLEY LEARNING PARTNERSHIP.
Children and Young Peoples Services,Head of Education and Skills,Transport,230003,Contract Hire,04/06/2019,3597947-53239,"1,916.24",STANLEY TRAVEL (NORTH EAST) LTD.
Children and Young Peoples Services,Head of Education and Skills,Transport,230003,Contract Hire,04/06/2019,3597947-53240,"2,147.10",STANLEY TRAVEL (NORTH EAST) LTD.
Children and Young Peoples Services,Head of Education and Skills,Transport,230003,Contract Hire,04/06/2019,3597947-53241,"2,147.10",STANLEY TRAVEL (NORTH EAST) LTD.
Children and Young Peoples Services,Head of Education and Skills,Transport,230003,Contract Hire,04/06/2019,3597947-53242,"1,119.28",STANLEY TRAVEL (NORTH EAST) LTD.
Children and Young Peoples Services,Head of Education and Skills,Transport,230003,Contract Hire,04/06/2019,3597947-53243,"1,443.64",STANLEY TRAVEL (NORTH EAST) LTD.
Children and Young Peoples Services,Head of Education and Skills,Transport,230003,Contract Hire,04/06/2019,3597947-53244,"2,147.10",STANLEY TRAVEL (NORTH EAST) LTD.
Dedicated Schools Grant BG0015,DSG High Needs Block,Central Support and Other Recharges,689988,Unclassified E690,04/06/2019,3597948-CAS-05-2019-178,"4,802.47",STEPHENSON WAY ACADEMY & NURSERY SCHOOL.
Regeneration and Local Services,Technical Services CM0300,Supplies and Services,304221,Equipment and Materials,04/06/2019,3597951-1809,"1,078.00",SUPAMOLE DIRECTIONAL DRILLING SPECIALISTS.
Children and Young Peoples Services,Head of Education and Skills,Transport,230006,Contract Hire,04/06/2019,3597952-26405BC,637.00,T MOORE & SON.
Children and Young Peoples Services,Head of Education and Skills,Transport,230008,Contract Hire,04/06/2019,3597953-1589,"1,684.21",TALBOTS TAXIS.
Children and Young Peoples Services,Head of Education and Skills,Transport,230008,Contract Hire,04/06/2019,3597953-1590,"1,700.00",TALBOTS TAXIS.
Children and Young Peoples Services,Head of Education and Skills,Transport,230008,Contract Hire,04/06/2019,3597954-B992,"1,255.79",TALBOTS TRAVEL LTD.
Children and Young Peoples Services,Head of Education and Skills,Transport,230008,Contract Hire,04/06/2019,3597954-B993,"1,700.00",TALBOTS TRAVEL LTD.
Children and Young Peoples Services,Head of Education and Skills,Transport,230016,Contract Hire,04/06/2019,3597954-B994,933.66,TALBOTS TRAVEL LTD.
Children and Young Peoples Services,Head of Education and Skills,Transport,230008,Contract Hire,04/06/2019,3597955-04/2019/007,529.87,TARNS TAXIS LTD.
Children and Young Peoples Services,Head of Education and Skills,Transport,230008,Contract Hire,04/06/2019,3597955-05/2019/007,946.72,TARNS TAXIS LTD.
Children and Young Peoples Services,Head of Education and Skills,Transport,230008,Contract Hire,04/06/2019,3597957-DCC/2018/086,"3,241.16",TAYLOR`S TAXIS.
Children and Young Peoples Services,Head of Education and Skills,Transport,230008,Contract Hire,04/06/2019,3597957-DCC/2018/088,"1,583.72",TAYLOR`S TAXIS.
Children and Young Peoples Services,Head of Education and Skills,Transport,230008,Contract Hire,04/06/2019,3597957-DCC/2018/90,"1,989.17",TAYLOR`S TAXIS.
Children and Young Peoples Services,Head of Education and Skills,Transport,230007,Contract Hire,04/06/2019,3597960-B25-MAY,"1,410.75",TED WILFORD COACHES.
Dedicated Schools Grant BG0015,DSG High Needs Block,Central Support and Other Recharges,689988,Unclassified E690,04/06/2019,3597962-CAS-05-2019-206,"12,667.48",THE ACADEMY AT SHOTTON HALL.
Adult and Health Services,Head of Adults,Transport,230005,Contract Hire,04/06/2019,3597965-784-SED121,504.00,TONYS TAXIS (A BIRCH).
Children and Young Peoples Services,Head of Education and Skills,Transport,230008,Contract Hire,04/06/2019,3597966-TS-15/31,837.25,TOP STAR TRAVEL.
Children and Young Peoples Services,Head of Education and Skills,Transport,230012,Contract Hire,04/06/2019,3597966-TS-18/31,"1,448.96",TOP STAR TRAVEL.
Children and Young Peoples Services,Head of Education and Skills,Transport,230008,Contract Hire,04/06/2019,3597966-TS21/31,837.25,TOP STAR TRAVEL.
Children and Young Peoples Services,Head of Education and Skills,Transport,230012,Contract Hire,04/06/2019,3597966-TS22-20,941.80,TOP STAR TRAVEL.
Children and Young Peoples Services,Head of Education and Skills,Transport,230008,Contract Hire,04/06/2019,3597966-TS40/31,906.95,TOP STAR TRAVEL.
Children and Young Peoples Services,Head of Education and Skills,Transport,230007,Contract Hire,04/06/2019,3597967-030519,523.26,TRANSPORT.ADVENTURE.XI.
Children and Young Peoples Services,Head of Education and Skills,Transport,230008,Contract Hire,04/06/2019,3597968-AH10009,986.00,TRAVEL 6.
Children and Young Peoples Services,Head of Education and Skills,Transport,230007,Contract Hire,04/06/2019,3597968-SC10009,"1,020.00",TRAVEL 6.
Resources BK0010,Legal & Democratic Services,Supplies and Services,338042,Services,04/06/2019,3597971-261586/INVBM141,650.00,TRINITY CHAMBERS.
Regeneration and Local Services,Corporate Property and Land,Third Party Payments 4THIRD,430100,Rendered by Private Contractors,04/06/2019,3597973-DCC/GT/91,"1,039.91",TYNE VALLEY FLOORING & CARPETS.
Regeneration and Local Services,Corporate Property and Land,Third Party Payments 4THIRD,430100,Rendered by Private Contractors,04/06/2019,3597973-DCC/GT/94,732.32,TYNE VALLEY FLOORING & CARPETS.
Regeneration and Local Services,Culture Sport and Tourism,Supplies and Services,338047,Services,04/06/2019,3597976-22314280219-1,670.31,UNIVERSAL PICTURES INTERNATIONAL UK & EIRE LTD.
Dedicated Schools Grant BG0015,DSG High Needs Block,Central Support and Other Recharges,689988,Unclassified E690,04/06/2019,3597979-CAS-05-2019-177,"10,011.35",VICTORIA LANE ACADEMY.
Regeneration and Local Services,Culture Sport and Tourism,Supplies and Services,338047,Services,04/06/2019,3597981-1747611,987.13,WALT DISNEY CO LTD.
Regeneration and Local Services,Culture Sport and Tourism,Supplies and Services,338047,Services,04/06/2019,3597981-1749183,639.38,WALT DISNEY CO LTD.
Children and Young Peoples Services,Head of Childrens Social Care,Third Party Payments 4THIRD,440038,Other third party payments E440,04/06/2019,3597983-INV-0484,"4,753.93",WE CARE RECRUITMENT SOLUTIONS LTD.
Children and Young Peoples Services,Head of Childrens Social Care,Third Party Payments 4THIRD,440038,Other third party payments E440,04/06/2019,3597983-INV-0490.,"5,338.27",WE CARE RECRUITMENT SOLUTIONS LTD.
Children and Young Peoples Services,Head of Childrens Social Care,Third Party Payments 4THIRD,440038,Other third party payments E440,04/06/2019,3597983-INV-0524,"1,480.21",WE CARE RECRUITMENT SOLUTIONS LTD.
Children and Young Peoples Services,Head of Childrens Social Care,Third Party Payments 4THIRD,440038,Other third party payments E440,04/06/2019,3597983-INV-0842,"1,190.44",WE CARE RECRUITMENT SOLUTIONS LTD.
Children and Young Peoples Services,Head of Childrens Social Care,Third Party Payments 4THIRD,425021,Rendered by Voluntary Organisations,04/06/2019,3597983-INV-0527,"6,451.09",WE CARE RECRUITMENT SOLUTIONS LTD.
Children and Young Peoples Services,Head of Childrens Social Care,Third Party Payments 4THIRD,425021,Rendered by Voluntary Organisations,04/06/2019,3597983-INV-0566,"6,232.88",WE CARE RECRUITMENT SOLUTIONS LTD.
Children and Young Peoples Services,Head of Childrens Social Care,Third Party Payments 4THIRD,425021,Rendered by Voluntary Organisations,04/06/2019,3597983-INV-0798,"5,181.49",WE CARE RECRUITMENT SOLUTIONS LTD.
Children and Young Peoples Services,Head of Childrens Social Care,Third Party Payments 4THIRD,425021,Rendered by Voluntary Organisations,04/06/2019,3597983-INV-0844.,879.60,WE CARE RECRUITMENT SOLUTIONS LTD.
Children and Young Peoples Services,Head of Childrens Social Care,Third Party Payments 4THIRD,425021,Rendered by Voluntary Organisations,04/06/2019,3597983-INV-0887.,"2,953.59",WE CARE RECRUITMENT SOLUTIONS LTD.
Dedicated Schools Grant BG0015,DSG High Needs Block,Transport,230010,Contract Hire,04/06/2019,3597984-0519,"1,519.50",WEST AUCKLAND TOWN TRAVEL (WATT).
Dedicated Schools Grant BG0015,DSG High Needs Block,Central Support and Other Recharges,689988,Unclassified E690,04/06/2019,3597987-CAS-05-2019-198,"1,875.18",WHITWORTH PARK SCHOOL.
Adult and Health Services,Head of Adults,Third Party Payments 4THIRD,470101,Purchase of Care,04/06/2019,3597990-04839,"33,000.00",YOUNG FOUNDATIONS LTD.
Children and Young Peoples Services,Head of Education and Skills,Transport,230007,Contract Hire,05/06/2019,3597992-51903,"1,530.00",24/7 TAXI SERVICES LTD.
Children and Young Peoples Services,Head of Education and Skills,Transport,230008,Contract Hire,05/06/2019,3597992-51907,"1,960.00",24/7 TAXI SERVICES LTD.
Children and Young Peoples Services,Head of Education and Skills,Transport,230008,Contract Hire,05/06/2019,3597992-51909,"3,077.20",24/7 TAXI SERVICES LTD.
Children and Young Peoples Services,Head of Education and Skills,Transport,230008,Contract Hire,05/06/2019,3597996-X13/SK,"1,314.95",AABAT TAXIS.
Children and Young Peoples Services,Head of Education and Skills,Transport,230006,Contract Hire,05/06/2019,3597996-X17/SV,"1,586.61",AABAT TAXIS.
Children and Young Peoples Services,Head of Education and Skills,Transport,230008,Contract Hire,05/06/2019,3597996-X20/SP,"1,925.32",AABAT TAXIS.
Children and Young Peoples Services,Head of Education and Skills,Transport,230008,Contract Hire,05/06/2019,3597996-X21/SG,"1,276.50",AABAT TAXIS.
Children and Young Peoples Services,Head of Education and Skills,Transport,230008,Contract Hire,05/06/2019,3597996-X6/SA,"2,433.04",AABAT TAXIS.
Regeneration and Local Services,Technical Services CM0300,Supplies and Services,304221,Equipment and Materials,05/06/2019,3598004-28123345,908.98,AGGREGATE INDUSTRIES UK LTD.
Regeneration and Local Services,Technical Services CM0300,Supplies and Services,304221,Equipment and Materials,05/06/2019,3598004-28130461,932.64,AGGREGATE INDUSTRIES UK LTD.
Regeneration and Local Services,Technical Services CM0300,Supplies and Services,304221,Equipment and Materials,05/06/2019,3598004-28158520,"1,144.92",AGGREGATE INDUSTRIES UK LTD.
Regeneration and Local Services,Technical Services CM0300,Supplies and Services,304221,Equipment and Materials,05/06/2019,3598004-28158522,592.76,AGGREGATE INDUSTRIES UK LTD.
Regeneration and Local Services,Technical Services CM0300,Supplies and Services,304221,Equipment and Materials,05/06/2019,3598004-28158523,"2,058.00",AGGREGATE INDUSTRIES UK LTD.
Regeneration and Local Services,Technical Services CM0300,Supplies and Services,304221,Equipment and Materials,05/06/2019,3598004-28158524,944.24,AGGREGATE INDUSTRIES UK LTD.
Regeneration and Local Services,Technical Services CM0300,Supplies and Services,304221,Equipment and Materials,05/06/2019,3598004-28190567,"1,148.40",AGGREGATE INDUSTRIES UK LTD.
Regeneration and Local Services,Technical Services CM0300,Supplies and Services,304221,Equipment and Materials,05/06/2019,3598004-28190568,"1,702.72",AGGREGATE INDUSTRIES UK LTD.
Regeneration and Local Services,Technical Services CM0300,Supplies and Services,304221,Equipment and Materials,05/06/2019,3598004-28190569,"1,596.92",AGGREGATE INDUSTRIES UK LTD.
Regeneration and Local Services,Technical Services CM0300,Supplies and Services,304221,Equipment and Materials,05/06/2019,3598004-28190570,577.40,AGGREGATE INDUSTRIES UK LTD.
Regeneration and Local Services,Technical Services CM0300,Supplies and Services,304221,Equipment and Materials,05/06/2019,3598004-28190571,"1,001.08",AGGREGATE INDUSTRIES UK LTD.
Regeneration and Local Services,Technical Services CM0300,Supplies and Services,304221,Equipment and Materials,05/06/2019,3598004-28190572,845.12,AGGREGATE INDUSTRIES UK LTD.
Regeneration and Local Services,Technical Services CM0300,Supplies and Services,304221,Equipment and Materials,05/06/2019,3598004-28190573,674.12,AGGREGATE INDUSTRIES UK LTD.
Regeneration and Local Services,Technical Services CM0300,Supplies and Services,304221,Equipment and Materials,05/06/2019,3598004-28190575,744.64,AGGREGATE INDUSTRIES UK LTD.
Regeneration and Local Services,Technical Services CM0300,Supplies and Services,304221,Equipment and Materials,05/06/2019,3598004-28239935,633.64,AGGREGATE INDUSTRIES UK LTD.
Regeneration and Local Services,Technical Services CM0300,Supplies and Services,304221,Equipment and Materials,05/06/2019,3598004-28239936,"1,040.52",AGGREGATE INDUSTRIES UK LTD.
Regeneration and Local Services,Technical Services CM0300,Supplies and Services,304221,Equipment and Materials,05/06/2019,3598004-28239937,523.16,AGGREGATE INDUSTRIES UK LTD.
Regeneration and Local Services,Technical Services CM0300,Supplies and Services,304221,Equipment and Materials,05/06/2019,3598004-28239938,"1,163.48",AGGREGATE INDUSTRIES UK LTD.
Regeneration and Local Services,Technical Services CM0300,Supplies and Services,304221,Equipment and Materials,05/06/2019,3598004-28239939,580.00,AGGREGATE INDUSTRIES UK LTD.
Regeneration and Local Services,Technical Services CM0300,Supplies and Services,304221,Equipment and Materials,05/06/2019,3598004-28239940,523.16,AGGREGATE INDUSTRIES UK LTD.
Regeneration and Local Services,Technical Services CM0300,Supplies and Services,304221,Equipment and Materials,05/06/2019,3598004-28239941,690.56,AGGREGATE INDUSTRIES UK LTD.
Regeneration and Local Services,Culture Sport and Tourism,Supplies and Services,384999,Miscellaneous Expenses,05/06/2019,3597995-3427,"2,016.00",A-HA! DISTRIBUTION LTD.
Regeneration and Local Services,Environmental Services,Supplies and Services,384199,Miscellaneous Expenses,05/06/2019,3598010-HC/01/19,"1,500.00",ANGELA TOMLINSON.
Children and Young Peoples Services,Head of Education and Skills,Transport,230006,Contract Hire,05/06/2019,3598016-03970,915.15,ATLAS TAXIS CONSETT.
Children and Young Peoples Services,Head of Education and Skills,Transport,230009,Contract Hire,05/06/2019,3598016-03972,"1,790.80",ATLAS TAXIS CONSETT.
Regeneration and Local Services,Corporate Property and Land,Supplies and Services,304221,Equipment and Materials,05/06/2019,3598017-262009,828.47,AVIRE LTD.
Children and Young Peoples Services,Head of Education and Skills,Construction work A908,908105,Construction work,05/06/2019,3598018-1910354,740.00,BATES WELLS & BRAITHWAITE LONDON LLP.
Regeneration and Local Services,Environmental Services,Third Party Payments 4THIRD,430100,Rendered by Private Contractors,05/06/2019,3598020-46057680,"1,050.40",BELL TRUCK SALES LTD T/A BELL TRUCK & VAN.
Regeneration and Local Services,Environmental Services,Transport,210057,Repair and Maintenance of Vehicles,05/06/2019,3598020-35160112,875.55,BELL TRUCK SALES LTD T/A BELL TRUCK & VAN.
Regeneration and Local Services,Environmental Services,Transport,210057,Repair and Maintenance of Vehicles,05/06/2019,3598020-35164829,758.14,BELL TRUCK SALES LTD T/A BELL TRUCK & VAN.
Adult and Health Services,Commissioning inc Supporting People,Third Party Payments 4THIRD,442002,Supporting People E442,05/06/2019,3598022-1969181,"16,448.04",BID SERVICES.
Adult and Health Services,Head of Adults,Transport,230005,Contract Hire,05/06/2019,3598025-0148,591.04,BIRDS TAXIS LTD.
Adult and Health Services,Head of Adults,Transport,230005,Contract Hire,05/06/2019,3598025-0149,603.33,BIRDS TAXIS LTD.
Adult and Health Services,Head of Adults,Transport,230005,Contract Hire,05/06/2019,3598025-0150,729.53,BIRDS TAXIS LTD.
Children and Young Peoples Services,Head of Education and Skills,Transport,230008,Contract Hire,05/06/2019,3598027-80,"1,190.00",BOBS TAXIS.
Children and Young Peoples Services,Head of Education and Skills,Transport,230013,Contract Hire,05/06/2019,3598030-004-2071,960.00,BOWBURN TAXIS.
Transformation and Partnerships,Partnerships & Community Engagement Div.,Supplies and Services,384086,Miscellaneous Expenses,05/06/2019,3598034-VOUCHERCARJ01-19,500.00,BURNOPFIELD AMBULANCE STATION.
Regeneration and Local Services,Environmental Services,Transport,210057,Repair and Maintenance of Vehicles,05/06/2019,3598043-232810,602.00,CARRS BILLINGTON AGRICULTURE.
Regeneration and Local Services,Environmental Services,Transport,210057,Repair and Maintenance of Vehicles,05/06/2019,3598043-233048,723.00,CARRS BILLINGTON AGRICULTURE.
Children and Young Peoples Services,Head of Education and Skills,Transport,230007,Contract Hire,05/06/2019,3598051-46700,"2,040.00",CHRISTOPHER JAMES GRIERSON T/A GRIERSONS COACHES.
Children and Young Peoples Services,Head of Education and Skills,Transport,230006,Contract Hire,05/06/2019,3598052-09,"1,088.00",CHRISTOPHER MADDISON (TAXI).
Children and Young Peoples Services,Head of Education and Skills,Transport,230007,Contract Hire,05/06/2019,3598052-5254/04,880.00,CHRISTOPHER MADDISON (TAXI).
Adult and Health Services,Commissioning inc Supporting People,Third Party Payments 4THIRD,442002,Supporting People E442,05/06/2019,3598064-1969161,"19,868.48",CREATIVE SUPPORT LTD.
Children and Young Peoples Services,Head of Education and Skills,Transport,230008,Contract Hire,05/06/2019,3598065-109184,"1,697.79",CROFT BUSINESS SERVICES (UK) LTD T/A CROFT TAXIS.
Children and Young Peoples Services,Head of Education and Skills,Transport,230008,Contract Hire,05/06/2019,3598065-109186,"3,672.34",CROFT BUSINESS SERVICES (UK) LTD T/A CROFT TAXIS.
Children and Young Peoples Services,Head of Education and Skills,Transport,230008,Contract Hire,05/06/2019,3598065-109189,"2,251.31",CROFT BUSINESS SERVICES (UK) LTD T/A CROFT TAXIS.
Children and Young Peoples Services,Head of Education and Skills,Transport,230008,Contract Hire,05/06/2019,3598065-109196,"2,580.34",CROFT BUSINESS SERVICES (UK) LTD T/A CROFT TAXIS.
Adult and Health Services,Public Health CC0450,Third Party Payments 4THIRD,460803,Contract Payments,05/06/2019,3598066-61196,"10,000.00",CRUSE BEREAVEMENT CARE.
Children and Young Peoples Services,Head of Education and Skills,Transport,230009,Contract Hire,05/06/2019,3598071-3437,850.00,DAVES MINIBUSES.
Children and Young Peoples Services,Head of Education and Skills,Transport,230008,Contract Hire,05/06/2019,3598071-3441,"1,870.00",DAVES MINIBUSES.
Adult and Health Services,Head of Adults,Transport,230005,Contract Hire,05/06/2019,3598072-NCL017/5,"1,290.00",DAVES TAXIS (BLACKHALL).
Children and Young Peoples Services,Head of Education and Skills,Transport,230009,Contract Hire,05/06/2019,3598074-105-7367,"1,008.00",DAVID FOREMAN T/A DAVES TAXIS.
Children and Young Peoples Services,Head of Education and Skills,Transport,230007,Contract Hire,05/06/2019,312326-59,"1,472.21",DAVID WILKINSON...
Resources BK0010,Digital and Customer Services,Stock A926,926900,Stock in hand-Inventory system,05/06/2019,3598075-7402528434,"12,048.00",DELL COMPUTER CORPORATION LTD.
Adult and Health Services,Public Health CC0450,Third Party Payments 4THIRD,460803,Contract Payments,05/06/2019,3598078-21108,"1,830.00",DESIGNEASE LTD.
Adult and Health Services,Public Health CC0450,Third Party Payments 4THIRD,460803,Contract Payments,05/06/2019,3598078-21113,"3,195.00",DESIGNEASE LTD.
Adult and Health Services,Public Health CC0450,Third Party Payments 4THIRD,460803,Contract Payments,05/06/2019,94-P1258,"5,355.00",DESIGNEASE LTD.
Children and Young Peoples Services,Head of Education and Skills,Transport,230012,Contract Hire,05/06/2019,3598079-012,"1,129.31",DEXTERS PRIVATE HIRE.
Regeneration and Local Services,Environmental Services,Third Party Payments 4THIRD,430101,Rendered by Private Contractors,05/06/2019,3598081-IV1122967,"2,883.88",DIRECT TYRE MANAGEMENT LTD (DTM).
Adult and Health Services,Commissioning inc Supporting People,Third Party Payments 4THIRD,441001,Supporting People E441,05/06/2019,3598084-1969202,"20,819.76",DURHAM ACTION ON SINGLE HOUSING LTD.
Adult and Health Services,Commissioning inc Supporting People,Third Party Payments 4THIRD,443001,Supporting People E443,05/06/2019,3598084-1969218,"4,427.76",DURHAM ACTION ON SINGLE HOUSING LTD.
Regeneration and Local Services,Culture Sport and Tourism,Supplies and Services,338047,Services,05/06/2019,3598085-18052019,785.00,DURHAM CHORAL SOCIETY.
Adult and Health Services,Commissioning inc Supporting People,Third Party Payments 4THIRD,441001,Supporting People E441,05/06/2019,3598091-1969179,"5,483.40",EAST DURHAM COMMUNITY INITIATIVES LTD.
Resources BK0010,Legal & Democratic Services,Supplies and Services,338102,Services,05/06/2019,3598092-JANUARY2019-APRIL2019,"2,350.00",EAST DURHAM FUNERAL SERVICE LTD.
Regeneration and Local Services,Corporate Property and Land,Third Party Payments 4THIRD,430100,Rendered by Private Contractors,05/06/2019,3598094-1797,"25,000.00",ECO FACILITIES SOLUTIONS LTD.
Dedicated Schools Grant BG0015,DSG High Needs Block,Central Support and Other Recharges,615208,Support Services,05/06/2019,3598096-RES-06-2019-005,"1,649.62",EDEN LEARNING TRUST T/A FERRYHILL BUSINESS & ENTERPRISE COLLEGE.
Dedicated Schools Grant BG0015,DSG High Needs Block,Central Support and Other Recharges,615208,Support Services,05/06/2019,3598096-RES-06-2019-006,709.98,EDEN LEARNING TRUST T/A FERRYHILL BUSINESS & ENTERPRISE COLLEGE.
Regeneration and Local Services,Corporate Property and Land,Third Party Payments 4THIRD,430100,Rendered by Private Contractors,05/06/2019,3598098-20732,"3,000.00",EDSB FIRE & SECURITY LTD.
Regeneration and Local Services,Corporate Property and Land,Third Party Payments 4THIRD,430100,Rendered by Private Contractors,05/06/2019,3598098-20734,"2,000.00",EDSB FIRE & SECURITY LTD.
Children and Young Peoples Services,Head of Education and Skills,Transport,230008,Contract Hire,05/06/2019,3598102-E019/0519,"1,627.75",ELLIOTTS OF TRIMDON.
Regeneration and Local Services,Environmental Services,Supplies and Services,384956,Miscellaneous Expenses,05/06/2019,3598105-Y00002724T,"2,370.25",ENVIRONMENT AGENCY.
Children and Young Peoples Services,Head of Education and Skills,Transport,230007,Contract Hire,05/06/2019,3598108-3347-009,527.00,FERRYHILL VILLAGE TRAVEL.
Dedicated Schools Grant BG0015,DSG High Needs Block,Transport,230010,Contract Hire,05/06/2019,3598108-B001-009,"1,824.00",FERRYHILL VILLAGE TRAVEL.
Children and Young Peoples Services,Head of Education and Skills,Transport,230008,Contract Hire,05/06/2019,3598108-M107-009,"1,728.00",FERRYHILL VILLAGE TRAVEL.
Children and Young Peoples Services,Head of Education and Skills,Transport,230008,Contract Hire,05/06/2019,3598108-N060-031,"1,020.00",FERRYHILL VILLAGE TRAVEL.
Children and Young Peoples Services,Head of Education and Skills,Transport,230008,Contract Hire,05/06/2019,3598108-W053-031,"1,619.25",FERRYHILL VILLAGE TRAVEL.
Regeneration and Local Services,Corporate Property and Land,Supplies and Services,304221,Equipment and Materials,05/06/2019,3598110-1905-006024,"1,256.56",FLAME HEATING SPARES LTD.
Children and Young Peoples Services,Head of Childrens Social Care,Supplies and Services,338044,Services,05/06/2019,3598112-39537,563.60,FORENSIC TESTING SERVICE LTD.
Adult and Health Services,Commissioning inc Supporting People,Third Party Payments 4THIRD,442002,Supporting People E442,05/06/2019,3598113-1969213,"19,776.44",FOUNDATION.
Adult and Health Services,Commissioning inc Supporting People,Third Party Payments 4THIRD,442002,Supporting People E442,05/06/2019,3598113-1969233,"3,567.12",FOUNDATION.
Children and Young Peoples Services,Head of Education and Skills,Transport,230009,Contract Hire,05/06/2019,3598116-101259,"1,105.00",G & P JOHNSON LTD T/A NIGHTINGALE COACHES.
Adult and Health Services,Head of Adults,Transport,230005,Contract Hire,05/06/2019,3598116-101281,"1,176.00",G & P JOHNSON LTD T/A NIGHTINGALE COACHES.
Adult and Health Services,Head of Adults,Transport,230005,Contract Hire,05/06/2019,3598116-101282,911.04,G & P JOHNSON LTD T/A NIGHTINGALE COACHES.
Adult and Health Services,Head of Adults,Transport,230005,Contract Hire,05/06/2019,3598116-101283,"1,321.42",G & P JOHNSON LTD T/A NIGHTINGALE COACHES.
Adult and Health Services,Head of Adults,Transport,230005,Contract Hire,05/06/2019,3598116-101284,"1,218.00",G & P JOHNSON LTD T/A NIGHTINGALE COACHES.
Adult and Health Services,Head of Adults,Transport,230005,Contract Hire,05/06/2019,3598116-101285,"1,299.00",G & P JOHNSON LTD T/A NIGHTINGALE COACHES.
Adult and Health Services,Head of Adults,Transport,230005,Contract Hire,05/06/2019,3598116-101286,840.21,G & P JOHNSON LTD T/A NIGHTINGALE COACHES.
Adult and Health Services,Head of Adults,Transport,230005,Contract Hire,05/06/2019,3598116-101287,966.00,G & P JOHNSON LTD T/A NIGHTINGALE COACHES.
Adult and Health Services,Head of Adults,Transport,230005,Contract Hire,05/06/2019,3598116-101288,804.32,G & P JOHNSON LTD T/A NIGHTINGALE COACHES.
Children and Young Peoples Services,Head of Education and Skills,Transport,230007,Contract Hire,05/06/2019,3598119-21413,"2,058.19",GARNETTS LTD (COACHES).
Children and Young Peoples Services,Head of Education and Skills,Transport,230007,Contract Hire,05/06/2019,3598119-21415-4034,"2,172.26",GARNETTS LTD (COACHES).
Children and Young Peoples Services,Head of Education and Skills,Transport,230007,Contract Hire,05/06/2019,3598119-21415-4035,"2,002.26",GARNETTS LTD (COACHES).
Children and Young Peoples Services,Head of Education and Skills,Transport,230007,Contract Hire,05/06/2019,3598119-21415-4036,"2,172.26",GARNETTS LTD (COACHES).
Children and Young Peoples Services,Head of Education and Skills,Transport,230007,Contract Hire,05/06/2019,3598119-21415-4037,"4,004.69",GARNETTS LTD (COACHES).
Children and Young Peoples Services,Head of Education and Skills,Transport,230007,Contract Hire,05/06/2019,3598119-21415-4038,"2,002.26",GARNETTS LTD (COACHES).
Children and Young Peoples Services,Head of Education and Skills,Transport,230007,Contract Hire,05/06/2019,3598119-21419,"3,113.38",GARNETTS LTD (COACHES).
Children and Young Peoples Services,Head of Education and Skills,Transport,230007,Contract Hire,05/06/2019,3598120-EW03,884.00,GARY JACKSON PRIVATE HIRE.
Resources BK0010,Legal & Democratic Services,Employees,080025,Agency Staff,05/06/2019,3598124-2429580,"110,729.34",GEOMETRIC RESULTS INTERNATIONAL.
Children and Young Peoples Services,Head of Education and Skills,Transport,230007,Contract Hire,05/06/2019,3598125-6,"1,870.00",GERARD MCLOUGHLIN T/A GMAC TAXIS.
Adult and Health Services,Head of Adults,Transport,230005,Contract Hire,05/06/2019,3598126-007-SED110,525.00,GMC TAXIS NORTH EAST.
Children and Young Peoples Services,Head of Education and Skills,Transport,230008,Contract Hire,05/06/2019,3598126-074,"1,731.11",GMC TAXIS NORTH EAST.
Regeneration and Local Services,Transport and Contracted Services,Third Party Payments 4THIRD,430106,Rendered by Private Contractors,05/06/2019,3598127-69689,"78,774.03",GO GATESHEAD LTD.
Children and Young Peoples Services,Head of Education and Skills,Transport,230007,Contract Hire,05/06/2019,3598129-GT006-3343,850.00,GORDON`S TAXIS.
Regeneration and Local Services,Corporate Property and Land,Premises,145023,Cleaning and Domestic Supplies,05/06/2019,3598132-06/799293,"1,205.40",GREENHAM TRADING LTD.
Regeneration and Local Services,Technical Services CM0300,Stock A926,926900,Stock in hand-Inventory system,05/06/2019,3598132-06/799295,"1,114.48",GREENHAM TRADING LTD.
Regeneration and Local Services,Environmental Services,Transport,210057,Repair and Maintenance of Vehicles,05/06/2019,3598133-152828,516.06,GREENLAY (GRASS MACHINERY) LTD.
Regeneration and Local Services,EnvironmentHealth & Consumer Protection,Supplies and Services,338027,Services,05/06/2019,3598134-0000013103,"5,775.00",GROUNDWORK NORTH EAST.
Dedicated Schools Grant BG0015,DSG High Needs Block,Transport,230010,Contract Hire,05/06/2019,3598135-003-B023,"1,270.00",GUY`S TAXIS.
Children and Young Peoples Services,Head of Education and Skills,Transport,230006,Contract Hire,05/06/2019,3598135-009-F724,805.00,GUY`S TAXIS.
Regeneration and Local Services,Culture Sport and Tourism,Supplies and Services,338047,Services,05/06/2019,3598138-0039/19,"6,595.14",HANDSHAKE LTD.
Adult and Health Services,Commissioning inc Supporting People,Third Party Payments 4THIRD,442002,Supporting People E442,05/06/2019,3598139-1969224,"3,297.48",HANOVER HOUSING ASSOCIATION.
Adult and Health Services,Commissioning inc Supporting People,Third Party Payments 4THIRD,441001,Supporting People E441,05/06/2019,3598140-1969162,"18,082.80",HARBOUR SUPPORT SERVICES.
Children and Young Peoples Services,Head of Education and Skills,Transport,230009,Contract Hire,05/06/2019,3598144-HT400,"2,040.00",HARRY`S TAXI`S.
Children and Young Peoples Services,Head of Education and Skills,Transport,230016,Contract Hire,05/06/2019,3598144-HT401,"1,190.00",HARRY`S TAXI`S.
Children and Young Peoples Services,Head of Education and Skills,Transport,230008,Contract Hire,05/06/2019,3598144-HT402,"2,380.00",HARRY`S TAXI`S.
Children and Young Peoples Services,Head of Education and Skills,Transport,230008,Contract Hire,05/06/2019,3598144-HT403,"1,779.05",HARRY`S TAXI`S.
Children and Young Peoples Services,Head of Education and Skills,Transport,230008,Contract Hire,05/06/2019,3598144-HT404,"2,879.46",HARRY`S TAXI`S.
Children and Young Peoples Services,Head of Education and Skills,Transport,230007,Contract Hire,05/06/2019,3598150-15733,947.98,HODGSONS COACH OPERATORS LTD.
Children and Young Peoples Services,Head of Education and Skills,Transport,230007,Contract Hire,05/06/2019,3598150-15735,"1,066.56",HODGSONS COACH OPERATORS LTD.
Children and Young Peoples Services,Head of Education and Skills,Transport,230007,Contract Hire,05/06/2019,3598150-15736,888.14,HODGSONS COACH OPERATORS LTD.
Children and Young Peoples Services,Head of Education and Skills,Transport,230007,Contract Hire,05/06/2019,3598150-15738,"1,121.78",HODGSONS COACH OPERATORS LTD.
Children and Young Peoples Services,Head of Education and Skills,Transport,230007,Contract Hire,05/06/2019,3598150-15739,536.69,HODGSONS COACH OPERATORS LTD.
Children and Young Peoples Services,Head of Education and Skills,Transport,230007,Contract Hire,05/06/2019,3598150-15741,671.55,HODGSONS COACH OPERATORS LTD.
Children and Young Peoples Services,Head of Education and Skills,Transport,230007,Contract Hire,05/06/2019,3598150-15742,897.27,HODGSONS COACH OPERATORS LTD.
Children and Young Peoples Services,Head of Education and Skills,Transport,230007,Contract Hire,05/06/2019,3598150-15743,"1,638.45",HODGSONS COACH OPERATORS LTD.
Children and Young Peoples Services,Head of Education and Skills,Transport,230007,Contract Hire,05/06/2019,3598150-15744,"1,659.02",HODGSONS COACH OPERATORS LTD.
Children and Young Peoples Services,Head of Education and Skills,Transport,230007,Contract Hire,05/06/2019,3598150-15745,897.27,HODGSONS COACH OPERATORS LTD.
Children and Young Peoples Services,Head of Education and Skills,Transport,230007,Contract Hire,05/06/2019,3598150-15746,"1,613.92",HODGSONS COACH OPERATORS LTD.
Children and Young Peoples Services,Head of Education and Skills,Transport,230007,Contract Hire,05/06/2019,3598150-15747,"1,241.46",HODGSONS COACH OPERATORS LTD.
Regeneration and Local Services,Environmental Services,Third Party Payments 4THIRD,430100,Rendered by Private Contractors,05/06/2019,3598151-77903,"1,985.75",HOGARTH COACHWORKS LTD.
Adult and Health Services,Commissioning inc Supporting People,Third Party Payments 4THIRD,441001,Supporting People E441,05/06/2019,3598152-1969205,"54,465.72",HOME GROUP LTD FORMERLY STONHAM HOUSING ASSOCIATION LTD.
Adult and Health Services,Commissioning inc Supporting People,Third Party Payments 4THIRD,441001,Supporting People E441,05/06/2019,3598152-1969232,"15,342.48",HOME GROUP LTD FORMERLY STONHAM HOUSING ASSOCIATION LTD.
Adult and Health Services,Commissioning inc Supporting People,Third Party Payments 4THIRD,442002,Supporting People E442,05/06/2019,3598152-1969159,"113,942.68",HOME GROUP LTD FORMERLY STONHAM HOUSING ASSOCIATION LTD.
Adult and Health Services,Commissioning inc Supporting People,Third Party Payments 4THIRD,442002,Supporting People E442,05/06/2019,3598152-1969231,"27,962.72",HOME GROUP LTD FORMERLY STONHAM HOUSING ASSOCIATION LTD.
Adult and Health Services,Commissioning inc Supporting People,Third Party Payments 4THIRD,443001,Supporting People E443,05/06/2019,3598152-1969184,868.32,HOME GROUP LTD FORMERLY STONHAM HOUSING ASSOCIATION LTD.
Adult and Health Services,Commissioning inc Supporting People,Third Party Payments 4THIRD,443001,Supporting People E443,05/06/2019,3598152-1969228,"11,506.84",HOME GROUP LTD FORMERLY STONHAM HOUSING ASSOCIATION LTD.
Children and Young Peoples Services,Head of Education and Skills,Transport,230008,Contract Hire,05/06/2019,3598155-6029,"1,360.51",HORNDALE TAXIS LTD.
Children and Young Peoples Services,Head of Education and Skills,Transport,230007,Contract Hire,05/06/2019,3598155-6030,"1,530.00",HORNDALE TAXIS LTD.
Children and Young Peoples Services,Head of Education and Skills,Transport,230006,Contract Hire,05/06/2019,3598155-6031,"1,041.30",HORNDALE TAXIS LTD.
Adult and Health Services,Head of Adults,Transport,230005,Contract Hire,05/06/2019,3598155-6033,589.92,HORNDALE TAXIS LTD.
Adult and Health Services,Commissioning inc Supporting People,Third Party Payments 4THIRD,442002,Supporting People E442,05/06/2019,3598156-1969160,"5,668.48",HUMANKIND CHARITY.
Adult and Health Services,Commissioning inc Supporting People,Third Party Payments 4THIRD,442002,Supporting People E442,05/06/2019,3598156-1969212,"27,885.68",HUMANKIND CHARITY.
Adult and Health Services,Head of Adults,Transport,230005,Contract Hire,05/06/2019,3598157-IR1905005,"1,190.16",I & R EXECUTIVE TRAVEL.
Regeneration and Local Services,Technical Services CM0300,Third Party Payments 4THIRD,430128,Rendered by Private Contractors,05/06/2019,3598161-C385,"2,480.00",IAN WILSON.
Regeneration and Local Services,Technical Services CM0300,Third Party Payments 4THIRD,430128,Rendered by Private Contractors,05/06/2019,3598161-C386,"1,600.00",IAN WILSON.
Regeneration and Local Services,Culture Sport and Tourism,Supplies and Services,336005,Advertising E336,05/06/2019,3598165-13270,527.29,ISAPPHIRE LTD.
Regeneration and Local Services,Technical Services CM0300,Third Party Payments 4THIRD,430100,Rendered by Private Contractors,05/06/2019,3598169-22934,"1,201.13",JACK COUPE & SONS LTD T/A COUPE LINE.
Children and Young Peoples Services,Head of Education and Skills,Transport,230006,Contract Hire,05/06/2019,3598172-DCC0009,671.50,JANICE BRADSHAW T/A JAN PRIVATE HIRE.
Children and Young Peoples Services,Head of Education and Skills,Transport,230007,Contract Hire,05/06/2019,3598174-24-5-19G,"1,020.00",JL EBDON. T/A DIAL-A-CAB.
Children and Young Peoples Services,Head of Education and Skills,Transport,230008,Contract Hire,05/06/2019,3598174-24/05/19A,"2,407.03",JL EBDON. T/A DIAL-A-CAB.
Children and Young Peoples Services,Head of Education and Skills,Transport,230008,Contract Hire,05/06/2019,3598174-24/05/19B,"1,858.27",JL EBDON. T/A DIAL-A-CAB.
Children and Young Peoples Services,Head of Education and Skills,Transport,230008,Contract Hire,05/06/2019,3598174-24/05/19C,"1,046.52",JL EBDON. T/A DIAL-A-CAB.
Children and Young Peoples Services,Head of Education and Skills,Transport,230008,Contract Hire,05/06/2019,3598174-24/05/19E,"1,534.93",JL EBDON. T/A DIAL-A-CAB.
Children and Young Peoples Services,Head of Education and Skills,Transport,230012,Contract Hire,05/06/2019,3598174-24/05/19F,"1,046.52",JL EBDON. T/A DIAL-A-CAB.
Children and Young Peoples Services,Head of Education and Skills,Transport,230008,Contract Hire,05/06/2019,3598174-24/5/19D,"1,709.35",JL EBDON. T/A DIAL-A-CAB.
Children and Young Peoples Services,Head of Education and Skills,Transport,230009,Contract Hire,05/06/2019,3598175-26,588.00,JOHN GARLAND.
Regeneration and Local Services,Environmental Services,Third Party Payments 4THIRD,430100,Rendered by Private Contractors,05/06/2019,3598176-65307502,"1,129.65",JOHNSTON SWEEPERS LTD.
Regeneration and Local Services,Corporate Property and Land,Supplies and Services,304221,Equipment and Materials,05/06/2019,3598178-BII286064,836.99,JT DOVE LTD.
Regeneration and Local Services,Technical Services CM0300,Supplies and Services,304221,Equipment and Materials,05/06/2019,3598178-CTI10240,766.80,JT DOVE LTD.
Regeneration and Local Services,Technical Services CM0300,Stock A926,926900,Stock in hand-Inventory system,05/06/2019,3598178-STI500535,"2,310.60",JT DOVE LTD.
Children and Young Peoples Services,Head of Education and Skills,Transport,230008,Contract Hire,05/06/2019,3598182-00984,584.80,KENNAS CABS.
Children and Young Peoples Services,Head of Education and Skills,Transport,230009,Contract Hire,05/06/2019,3598183-CTD013/19,850.00,KEVIN WALKER T/A CENTRAL TAXIS.
Children and Young Peoples Services,Head of Education and Skills,Transport,230006,Contract Hire,05/06/2019,3598183-CTD107/19,594.00,KEVIN WALKER T/A CENTRAL TAXIS.
Children and Young Peoples Services,Head of Education and Skills,Transfer Payments,510027,School Children,05/06/2019,3598185-EYSUPPORT7-31/1/19,"1,053.00",KIDZONE.
Children and Young Peoples Services,Head of Childrens Social Care,Supplies and Services,338045,Services,05/06/2019,3598186-CW/CJF/14445/2,620.66,KIRKUP LASCELLES & CREED.
Regeneration and Local Services,Environmental Services,Supplies and Services,338027,Services,05/06/2019,3598188-17350,"1,390.00",LANDFORM SURVEYS LTD.
Children and Young Peoples Services,Head of Education and Skills,Transfer Payments,510027,School Children,05/06/2019,3598189-EARLYYEARSSUPPORTFUNDING-LB,"1,600.95",LEADGATE CHILD CENTRE LTD.
Children and Young Peoples Services,Head of Education and Skills,Transport,230008,Contract Hire,05/06/2019,3598191-261,"2,275.00",LEE`S TAXIS (SACRISTON).
Children and Young Peoples Services,Head of Education and Skills,Transport,230013,Contract Hire,05/06/2019,3598192-HS0519,"1,512.00",LEE`S TAXIS..
Adult and Health Services,Head of Adults,Transport,230005,Contract Hire,05/06/2019,312338-PEACO009,"1,090.00",LETS TRAVEL.
Resources BK0010,Corporate Finance & Commercial Services,Supplies and Services,338066,Services,05/06/2019,312339-DFE80200431,"2,917.00",LINK ASSET SERVICES.
Children and Young Peoples Services,Head of Education and Skills,Transport,230008,Contract Hire,05/06/2019,3598194-MAYA071,"2,106.00",LION CABS.
Children and Young Peoples Services,Head of Education and Skills,Transport,230012,Contract Hire,05/06/2019,3598197-34,"1,395.36",MARK HUSBAND T/A TEAK`S TAXIS.
Children and Young Peoples Services,Head of Education and Skills,Transport,230008,Contract Hire,05/06/2019,3598198-KW947,615.00,MARK O`NEILL T/A KWIK CABS.
Children and Young Peoples Services,Head of Education and Skills,Transport,230008,Contract Hire,05/06/2019,3598198-KW948,510.00,MARK O`NEILL T/A KWIK CABS.
Children and Young Peoples Services,Head of Education and Skills,Transport,230008,Contract Hire,05/06/2019,3598198-KW950,959.31,MARK O`NEILL T/A KWIK CABS.
Children and Young Peoples Services,Head of Education and Skills,Transport,230008,Contract Hire,05/06/2019,3598198-KW951,872.10,MARK O`NEILL T/A KWIK CABS.
Regeneration and Local Services,Culture Sport and Tourism,Supplies and Services,384302,Miscellaneous Expenses,05/06/2019,3598201-AW1028,"4,341.00",MBC ARTS WELLBEING CIC.
Adult and Health Services,Head of Adults,Transport,230005,Contract Hire,05/06/2019,3598202-DM112/5,747.00,MCDONALD TRAVEL.
Regeneration and Local Services,Development and Housing,Cap Exp on Grants & Other Financial Assistance (REFCUS),918501,Exp assets not owned by authority,05/06/2019,3598203-RED-06-2019-021,"5,020.00",MDS JOINERY & BUILDING LTD.
Adult and Health Services,Commissioning inc Supporting People,Third Party Payments 4THIRD,442002,Supporting People E442,05/06/2019,3598205-1969163,"5,469.72",MENTAL HEALTH MATTERS.
Adult and Health Services,Commissioning inc Supporting People,Third Party Payments 4THIRD,442002,Supporting People E442,05/06/2019,3598210-1969225,"2,620.48",MOVING ON.
Children and Young Peoples Services,Head of Education and Skills,Transport,230008,Contract Hire,05/06/2019,3598211-20-W028,"1,046.52",MR BW YOUNG T/A ESH TAXIS.
Children and Young Peoples Services,Head of Education and Skills,Transport,230008,Contract Hire,05/06/2019,3598213-OAK105-19,"1,640.08",MR CT WALKER T/A CW TAXIS.
Adult and Health Services,Head of Adults,Supplies and Services,338042,Services,05/06/2019,3598216-2687/CR1055973,"2,875.00",MR JOSEPH O`BRIEN.
Adult and Health Services,Head of Adults,Transport,230005,Contract Hire,05/06/2019,3598217-201919,615.60,MR JR FORT T/A JRF TAXIS.
Adult and Health Services,Head of Adults,Transport,230005,Contract Hire,05/06/2019,3598217-201920,644.00,MR JR FORT T/A JRF TAXIS.
Children and Young Peoples Services,Head of Education and Skills,Transport,230008,Contract Hire,05/06/2019,3598219-1726,"1,529.50",MR PETER YOUNG.
Children and Young Peoples Services,Head of Education and Skills,Transport,230007,Contract Hire,05/06/2019,3598219-1727,"1,415.50",MR PETER YOUNG.
Children and Young Peoples Services,Head of Education and Skills,Transport,230006,Contract Hire,05/06/2019,3598222-THORN0519,612.00,MR STUART SCOTT T/A AIRPORT CARS DURHAM
Regeneration and Local Services,Technical Services CM0300,Supplies and Services,304221,Equipment and Materials,05/06/2019,3598228-0000079594,586.12,NAL LTD.
Regeneration and Local Services,Environmental Services,Third Party Payments 4THIRD,430100,Rendered by Private Contractors,05/06/2019,3598229-I6501V250,528.20,NATIONAL WINDSCREENS (TEESSIDE) LTD.
Children and Young Peoples Services,Head of Early Help Inclusion & Vulnerable Children.,Supplies and Services,340001,Postages E340,05/06/2019,3598232-CAS-05-2019-143A,600.00,NEOPOST CREDIFON.
Dedicated Schools Grant BG0015,DSG High Needs Block,Central Support and Other Recharges,615208,Support Services,05/06/2019,3598233-RES-06-2019-004,"21,680.72",NEW COLLEGE ACADEMIES TRUST - CONSETT ACADEMY.
Regeneration and Local Services,Environmental Services,Supplies and Services,304221,Equipment and Materials,05/06/2019,3598234-064561,"1,319.80",NEW ROW FARM NURSERIES.
Regeneration and Local Services,Environmental Services,Premises,145023,Cleaning and Domestic Supplies,05/06/2019,3598237-SI/04414629,501.00,NOMIX ENVIRO LTD.
Regeneration and Local Services,Technical Services CM0300,Third Party Payments 4THIRD,430100,Rendered by Private Contractors,05/06/2019,3598244-DI20319584,"4,519.27",NORTHERN POWERGRID (NORTHEAST) LTD.
Regeneration and Local Services,Technical Services CM0300,Third Party Payments 4THIRD,430100,Rendered by Private Contractors,05/06/2019,3598244-DI20319590,"1,482.11",NORTHERN POWERGRID (NORTHEAST) LTD.
Regeneration and Local Services,Technical Services CM0300,Third Party Payments 4THIRD,430100,Rendered by Private Contractors,05/06/2019,3598244-DI20319594,"1,026.76",NORTHERN POWERGRID (NORTHEAST) LTD.
Regeneration and Local Services,Environmental Services,Third Party Payments 4THIRD,430100,Rendered by Private Contractors,05/06/2019,3598245-IW04486511,"2,202.35",NORTHGATE VEHICLE HIRE LTD.
Regeneration and Local Services,Environmental Services,Third Party Payments 4THIRD,430100,Rendered by Private Contractors,05/06/2019,3598248-914517325,"1,536.00",NORTHUMBRIAN WATER LTD.
Regeneration and Local Services,EnvironmentHealth & Consumer Protection,Third Party Payments 4THIRD,430100,Rendered by Private Contractors,05/06/2019,3598248-914541455,849.99,NORTHUMBRIAN WATER LTD.
Regeneration and Local Services,Environmental Services,Transport,215005,Running Costs of Vehicles,05/06/2019,3598252-421588,"18,492.90",OIL NRG LTD.
Regeneration and Local Services,Environmental Services,Transport,215005,Running Costs of Vehicles,05/06/2019,3598252-426234,"16,593.60",OIL NRG LTD.
Regeneration and Local Services,Technical Services CM0300,Stock A926,926900,Stock in hand-Inventory system,05/06/2019,3598258-XL239959,"1,342.00",PARK ELECTRICAL DISTRIBUTORS LTD.
Resources BK0010,Legal & Democratic Services,Supplies and Services,338042,Services,05/06/2019,3598260-309757,"1,300.00",PARKLANE PLOWDEN CHAMBERS (BARRISTERS).
Children and Young Peoples Services,Head of Education and Skills,Transport,230008,Contract Hire,05/06/2019,3598261-DCC248,"2,568.53",PAUL`S TAXIS..
Resources BK0010,Digital and Customer Services,Supplies and Services,352001,Conference Expenses,05/06/2019,3598263-INV002468,"1,250.00",PENDULUM MEDIA LTD.
Dedicated Schools Grant BG0015,DSG High Needs Block,Transport,230010,Contract Hire,05/06/2019,3598266-619,"2,125.00",PETERLEE EXECUTIVE CARS.
Children and Young Peoples Services,Head of Education and Skills,Transport,230007,Contract Hire,05/06/2019,3598266-621,680.00,PETERLEE EXECUTIVE CARS.
Regeneration and Local Services,Corporate Property and Land,Supplies and Services,304221,Equipment and Materials,05/06/2019,3598268-329467,521.19,PEW ELECTRICAL DISTRIBUTORS LTD.
Children and Young Peoples Services,Head of Education and Skills,Transport,230008,Contract Hire,05/06/2019,3598269-13A-C,"1,570.00",PHILS TAXIS.
Regeneration and Local Services,Technical Services CM0300,Third Party Payments 4THIRD,430100,Rendered by Private Contractors,05/06/2019,3598277-159236,"14,029.70",PREMIER TRAFFIC MANAGEMENT LTD.
Children and Young Peoples Services,Head of Education and Skills,Transport,230008,Contract Hire,05/06/2019,3598283-20A,"2,160.36",RAYNERS COACHES.
Children and Young Peoples Services,Head of Education and Skills,Transport,230007,Contract Hire,05/06/2019,3598283-20A/5,"3,523.25",RAYNERS COACHES.
Children and Young Peoples Services,Head of Education and Skills,Transport,230007,Contract Hire,05/06/2019,3598283-73A,"1,116.22",RAYNERS COACHES.
Children and Young Peoples Services,Head of Education and Skills,Transport,230007,Contract Hire,05/06/2019,3598283-73C,"2,023.34",RAYNERS COACHES.
Resources BK0010,Digital and Customer Services,Supplies and Services,342051,Computers and Communications,05/06/2019,3598287-INV-35712,880.00,REDSTOR LTD.
Adult and Health Services,Commissioning inc Supporting People,Third Party Payments 4THIRD,441001,Supporting People E441,05/06/2019,3598289-1969178,"9,423.88",RICHMOND FELLOWSHIP.
Adult and Health Services,Commissioning inc Supporting People,Third Party Payments 4THIRD,442002,Supporting People E442,05/06/2019,3598289-1969165,"7,356.72",RICHMOND FELLOWSHIP.
Adult and Health Services,Commissioning inc Supporting People,Third Party Payments 4THIRD,444002,Supporting People E444,05/06/2019,3598289-1969166,"4,438.08",RICHMOND FELLOWSHIP.
Regeneration and Local Services,Environmental Services,Supplies and Services,304259,Equipment and Materials,05/06/2019,3598291-RSIN0300098,"1,590.00",RIGBY TAYLOR LTD.
Adult and Health Services,Head of Adults,Transport,230005,Contract Hire,05/06/2019,3598295-1786,"1,210.00",RON`S TAXIS (FISHBURN).
Children and Young Peoples Services,Head of Education and Skills,Transport,230007,Contract Hire,05/06/2019,3598295-1787,"1,008.00",RON`S TAXIS (FISHBURN).
Children and Young Peoples Services,Head of Education and Skills,Transport,230008,Contract Hire,05/06/2019,3598295-1788,"2,855.00",RON`S TAXIS (FISHBURN).
Resources BK0010,Legal & Democratic Services,Supplies and Services,340001,Postages E340,05/06/2019,3598296-9058780736,"1,396.10",ROYAL MAIL GROUP PLC.
Children and Young Peoples Services,Head of Education and Skills,Transport,230006,Contract Hire,05/06/2019,3598299-F725/21,"1,560.00",S & S TRAVEL LTD.
Adult and Health Services,Head of Adults,Transport,230005,Contract Hire,05/06/2019,3598299-SED022/08,"4,200.00",S & S TRAVEL LTD.
Adult and Health Services,Head of Adults,Transport,230005,Contract Hire,05/06/2019,3598299-SED112/09,"1,280.00",S & S TRAVEL LTD.
Children and Young Peoples Services,Head of Education and Skills,Transport,230007,Contract Hire,05/06/2019,3598300-5145-MAY,"1,615.00",S DUNCAN PRIVATE HIRE.
Regeneration and Local Services,Environmental Services,Supplies and Services,304999,Equipment and Materials,05/06/2019,3598303-RED-06-2019-023,"1,337.10",S&A FABRICATIONS LTD.
Regeneration and Local Services,Environmental Services,Supplies and Services,384194,Miscellaneous Expenses,05/06/2019,3598306-4750,660.16,SAFE STRIP UK LTD.
Regeneration and Local Services,Environmental Services,Supplies and Services,384194,Miscellaneous Expenses,05/06/2019,3598306-4753,555.16,SAFE STRIP UK LTD.
Children and Young Peoples Services,Head of Education and Skills,Transport,230008,Contract Hire,05/06/2019,3598307-W112240519,979.55,SAFELINE TRAVEL.
Transformation and Partnerships,Communications Management,Supplies and Services,336005,Advertising E336,05/06/2019,3598309-3911,500.00,SAVILLS UK LTD.
Regeneration and Local Services,Environmental Services,Third Party Payments 4THIRD,430100,Rendered by Private Contractors,05/06/2019,3598311-2019.1000011452,"1,769.02",SCARAB SWEEPERS LTD.
Regeneration and Local Services,Environmental Services,Transport,210057,Repair and Maintenance of Vehicles,05/06/2019,3598310-2019.1000010830,"1,335.33",SCARAB SWEEPERS LTD.
Transformation and Partnerships,Partnerships & Community Engagement Div.,Supplies and Services,384086,Miscellaneous Expenses,05/06/2019,3598314-VOUCHERBROD01-19,728.00,SEDGEFIELD MEMORY CAFE.
Transformation and Partnerships,Partnerships & Community Engagement Div.,Cap Exp on Grants & Other Financial Assistance (REFCUS),918004,Contributions to other bodies 918004,05/06/2019,3598315-VOUCHER18NB-EDRC031,"1,553.79",SEDGEFIELD PLAYERS.
Regeneration and Local Services,Environmental Services,Third Party Payments 4THIRD,430100,Rendered by Private Contractors,05/06/2019,3598317-24898,"8,450.00",SHB HIRE LTD.
Children and Young Peoples Services,Head of Education and Skills,Transport,230008,Contract Hire,05/06/2019,3598320-75124,"1,488.00",SHOTTON PRIVATE HIRE.
Adult and Health Services,Head of Adults,Transport,230005,Contract Hire,05/06/2019,3598324-1400,"1,312.00",SIMONS TAXIS.
Adult and Health Services,Commissioning inc Supporting People,Third Party Payments 4THIRD,442002,Supporting People E442,05/06/2019,3598326-1969200,"6,331.08",SINGLE HOMELESS ACTION INITIATIVE IN DURHAM LTD.
Resources BK0010,Resources Management CK0450,Supplies and Services,372009,Subscriptions E372,05/06/2019,3598328-SCT1920/12,"3,287.00",SOCIETY OF COUNTY TREASURERS.
Transformation and Partnerships,Partnerships & Community Engagement Div.,Supplies and Services,384086,Miscellaneous Expenses,05/06/2019,3598329-VOUCHERGARA03-19,950.00,SPENNYMOOR AGED PERSONS GALA & TREAT FUND.
Dedicated Schools Grant BG0015,DSG High Needs Block,Transport,230010,Contract Hire,05/06/2019,3598332-34281,800.70,STANLEY TRAVEL (NORTH EAST) LTD.
Dedicated Schools Grant BG0015,DSG High Needs Block,Transport,230010,Contract Hire,05/06/2019,3598332-34282,714.00,STANLEY TRAVEL (NORTH EAST) LTD.
Children and Young Peoples Services,Head of Education and Skills,Transport,230009,Contract Hire,05/06/2019,3598332-34283,508.30,STANLEY TRAVEL (NORTH EAST) LTD.
Children and Young Peoples Services,Head of Education and Skills,Transport,230008,Contract Hire,05/06/2019,3598332-34285,845.92,STANLEY TRAVEL (NORTH EAST) LTD.
Children and Young Peoples Services,Head of Education and Skills,Transport,230008,Contract Hire,05/06/2019,3598332-34286,781.32,STANLEY TRAVEL (NORTH EAST) LTD.
Children and Young Peoples Services,Head of Education and Skills,Transport,230007,Contract Hire,05/06/2019,3598332-34287,578.00,STANLEY TRAVEL (NORTH EAST) LTD.
Children and Young Peoples Services,Head of Education and Skills,Transport,230008,Contract Hire,05/06/2019,3598332-34288,"1,407.39",STANLEY TRAVEL (NORTH EAST) LTD.
Children and Young Peoples Services,Head of Education and Skills,Transport,230008,Contract Hire,05/06/2019,3598332-34289,"1,702.00",STANLEY TRAVEL (NORTH EAST) LTD.
Children and Young Peoples Services,Head of Education and Skills,Transport,230006,Contract Hire,05/06/2019,3598332-34290,935.00,STANLEY TRAVEL (NORTH EAST) LTD.
Children and Young Peoples Services,Head of Education and Skills,Transport,230009,Contract Hire,05/06/2019,3598332-34291,"1,020.00",STANLEY TRAVEL (NORTH EAST) LTD.
Children and Young Peoples Services,Head of Education and Skills,Transport,230008,Contract Hire,05/06/2019,3598332-34293,"1,494.81",STANLEY TRAVEL (NORTH EAST) LTD.
Children and Young Peoples Services,Head of Education and Skills,Transport,230009,Contract Hire,05/06/2019,3598332-34294,521.56,STANLEY TRAVEL (NORTH EAST) LTD.
Children and Young Peoples Services,Head of Education and Skills,Transport,230008,Contract Hire,05/06/2019,3598332-34295,"1,077.30",STANLEY TRAVEL (NORTH EAST) LTD.
Children and Young Peoples Services,Head of Education and Skills,Transport,230007,Contract Hire,05/06/2019,3598332-34296,910.52,STANLEY TRAVEL (NORTH EAST) LTD.
Children and Young Peoples Services,Head of Education and Skills,Transport,230008,Contract Hire,05/06/2019,3598332-34297,"1,807.68",STANLEY TRAVEL (NORTH EAST) LTD.
Children and Young Peoples Services,Head of Education and Skills,Transport,230008,Contract Hire,05/06/2019,3598332-34299,"1,785.00",STANLEY TRAVEL (NORTH EAST) LTD.
Children and Young Peoples Services,Head of Education and Skills,Transport,230008,Contract Hire,05/06/2019,3598332-34300,"2,788.00",STANLEY TRAVEL (NORTH EAST) LTD.
Children and Young Peoples Services,Head of Education and Skills,Transport,230008,Contract Hire,05/06/2019,3598334-30-E002MAY19,"1,560.94",STEELYS TAXIS.
Children and Young Peoples Services,Head of Education and Skills,Transport,230008,Contract Hire,05/06/2019,3598336-1905000,"1,662.12",STEVEN PRATT T/A PTL TAXIS DURHAM.
Regeneration and Local Services,Transport and Contracted Services,Third Party Payments 4THIRD,430108,Rendered by Private Contractors,05/06/2019,3598342-90013142,808.98,SWARCO TRAFFIC LTD.
Adult and Health Services,Head of Adults,Transport,230005,Contract Hire,05/06/2019,3598344-B995,"1,539.00",TALBOTS TRAVEL LTD.
Children and Young Peoples Services,Head of Education and Skills,Transport,230008,Contract Hire,05/06/2019,3598348-DCC/2018/087,"1,452.00",TAYLOR`S TAXIS.
Dedicated Schools Grant BG0015,DSG High Needs Block,Transport,230010,Contract Hire,05/06/2019,3598348-DCC/2018/089,"1,569.54",TAYLOR`S TAXIS.
Regeneration and Local Services,Environmental Services,Third Party Payments 4THIRD,430100,Rendered by Private Contractors,05/06/2019,3598349-25561492,"1,042.07",TC HARRISON JCB.
Regeneration and Local Services,Environmental Services,Third Party Payments 4THIRD,430103,Rendered by Private Contractors,05/06/2019,3598351-NEI-EXP-05-2019-008,"15,248.68",TEESDALE CONSERVATION VOLUNTEERS.
Adult and Health Services,Commissioning inc Supporting People,Third Party Payments 4THIRD,441001,Supporting People E441,05/06/2019,3598352-1969182,"19,231.20",THE CYRENIANS LTD T/A CHANGING LIVES.
Regeneration and Local Services,Culture Sport and Tourism,Supplies and Services,338047,Services,05/06/2019,3598355-SINRNT1005387,670.33,THE ROYAL NATIONAL THEATRE.
Adult and Health Services,Head of Adults,Transport,230005,Contract Hire,05/06/2019,3598356-203,919.32,THE TAXI COMPANY (MURTON) LTD.
Adult and Health Services,Commissioning inc Supporting People,Third Party Payments 4THIRD,441001,Supporting People E441,05/06/2019,3598358-1969197,"7,776.68",THIRTEEN HOUSING GROUP LTD.
Adult and Health Services,Commissioning inc Supporting People,Third Party Payments 4THIRD,441001,Supporting People E441,05/06/2019,3598358-1969198,"22,933.96",THIRTEEN HOUSING GROUP LTD.
Adult and Health Services,Commissioning inc Supporting People,Third Party Payments 4THIRD,442002,Supporting People E442,05/06/2019,3598358-1969203,"5,088.84",THIRTEEN HOUSING GROUP LTD.
Resources BK0010,Legal & Democratic Services,Supplies and Services,338099,Services,05/06/2019,3598359-I240385,"1,954.11",THOMAS FATTORINI LTD.
Dedicated Schools Grant BG0015,DSG High Needs Block,Transport,230010,Contract Hire,05/06/2019,3598366-WLI0002,"1,264.00",TRAVEL 6.
Children and Young Peoples Services,Head of Education and Skills,Transport,230008,Contract Hire,05/06/2019,3598367-06/05,782.00,TRIDENT TAXIS.
Children and Young Peoples Services,Head of Education and Skills,Transport,230008,Contract Hire,05/06/2019,3598367-9,"1,344.00",TRIDENT TAXIS.
Children and Young Peoples Services,Head of Education and Skills,Construction work A908,908105,Construction work,05/06/2019,3598374-1488,"2,275.00",UNIVERSAL POOL SERVICES LTD.
Adult and Health Services,Commissioning inc Supporting People,Third Party Payments 4THIRD,441001,Supporting People E441,05/06/2019,3598377-1969180,"2,367.20",WADDINGTON STREET CENTRE LTD.
Adult and Health Services,Commissioning inc Supporting People,Third Party Payments 4THIRD,444002,Supporting People E444,05/06/2019,3598377-1969207,567.36,WADDINGTON STREET CENTRE LTD.
Transformation and Partnerships,Partnerships & Community Engagement Div.,Supplies and Services,384086,Miscellaneous Expenses,05/06/2019,3598378-VOUCHERBAIA03-19,500.00,WALDRIDGE PARK FOOTBALL CLUB.
Regeneration and Local Services,Culture Sport and Tourism,Supplies and Services,338047,Services,05/06/2019,3598379-1748647,547.48,WALT DISNEY CO LTD.
Regeneration and Local Services,Technical Services CM0300,Supplies and Services,304221,Equipment and Materials,05/06/2019,3598380-22874,"2,938.00",WARD TIMBER LTD.
Children and Young Peoples Services,Head of Education and Skills,Transport,230008,Contract Hire,05/06/2019,3598381-2365,"1,308.15",WATSON OF SPENNYMOOR.
Children and Young Peoples Services,Head of Childrens Social Care,Third Party Payments 4THIRD,440038,Other third party payments E440,05/06/2019,3598382-INV-0686,"1,551.99",WE CARE RECRUITMENT SOLUTIONS LTD.
Children and Young Peoples Services,Head of Childrens Social Care,Third Party Payments 4THIRD,440038,Other third party payments E440,05/06/2019,3598382-INV-0738,"1,222.80",WE CARE RECRUITMENT SOLUTIONS LTD.
Children and Young Peoples Services,Head of Childrens Social Care,Third Party Payments 4THIRD,440038,Other third party payments E440,05/06/2019,3598382-INV-0803,"1,383.35",WE CARE RECRUITMENT SOLUTIONS LTD.
Children and Young Peoples Services,Head of Childrens Social Care,Third Party Payments 4THIRD,425021,Rendered by Voluntary Organisations,05/06/2019,3598382-INV-0682,"6,515.04",WE CARE RECRUITMENT SOLUTIONS LTD.
Children and Young Peoples Services,Head of Childrens Social Care,Third Party Payments 4THIRD,425021,Rendered by Voluntary Organisations,05/06/2019,3598382-INV-0683,"4,887.79",WE CARE RECRUITMENT SOLUTIONS LTD.
Children and Young Peoples Services,Head of Childrens Social Care,Third Party Payments 4THIRD,425021,Rendered by Voluntary Organisations,05/06/2019,3598382-INV-0688,870.23,WE CARE RECRUITMENT SOLUTIONS LTD.
Children and Young Peoples Services,Head of Childrens Social Care,Third Party Payments 4THIRD,425021,Rendered by Voluntary Organisations,05/06/2019,3598382-INV-0736,"5,052.95",WE CARE RECRUITMENT SOLUTIONS LTD.
Children and Young Peoples Services,Head of Childrens Social Care,Third Party Payments 4THIRD,425021,Rendered by Voluntary Organisations,05/06/2019,3598382-INV-0737,"4,083.44",WE CARE RECRUITMENT SOLUTIONS LTD.
Adult and Health Services,Commissioning inc Supporting People,Third Party Payments 4THIRD,441001,Supporting People E441,05/06/2019,3598383-1969164,"7,157.00",WEAR VALLEY WOMENS AID LTD.
Children and Young Peoples Services,Head of Education and Skills,Transport,230008,Contract Hire,05/06/2019,3598384-7162/5,"2,730.64",WEARDALE PRIVATE HIRE.
Children and Young Peoples Services,Head of Education and Skills,Transport,230007,Contract Hire,05/06/2019,3598384-7168,705.50,WEARDALE PRIVATE HIRE.
Children and Young Peoples Services,Head of Education and Skills,Transport,230007,Contract Hire,05/06/2019,3598384-7169,816.00,WEARDALE PRIVATE HIRE.
Children and Young Peoples Services,Head of Education and Skills,Transport,230007,Contract Hire,05/06/2019,3598384-7170,"1,568.08",WEARDALE PRIVATE HIRE.
Children and Young Peoples Services,Head of Education and Skills,Transport,230007,Contract Hire,05/06/2019,3598384-7170/5,"1,274.10",WEARDALE PRIVATE HIRE.
Children and Young Peoples Services,Head of Education and Skills,Transport,230007,Contract Hire,05/06/2019,3598385-1539018,742.50,WENDYS` TAXIS.
Regeneration and Local Services,Development and Housing,Supplies and Services,384437,Miscellaneous Expenses,05/06/2019,3598388-UOTR4526861,723.07,WESTERN UNION BUSINESS SOLUTIONS.
Transformation and Partnerships,Partnerships & Community Engagement Div.,Supplies and Services,384086,Miscellaneous Expenses,05/06/2019,3598390-VOUCHERSAVA02-19,500.00,WOLSINGHAM RECREATION ASSOCIATION.
Transformation and Partnerships,Partnerships & Community Engagement Div.,Supplies and Services,384086,Miscellaneous Expenses,05/06/2019,3598391-VOUCHERHUGS01-19,670.00,WOODLAND PARISH COUNCIL.
Children and Young Peoples Services,Head of Education and Skills,Transport,230008,Contract Hire,06/06/2019,3598395-N0580519,"2,210.00",1ST AID COMMERCIALS LTD.
Children and Young Peoples Services,Head of Education and Skills,Transport,230008,Contract Hire,06/06/2019,3598396-51911,"2,460.00",24/7 TAXI SERVICES LTD.
Regeneration and Local Services,Environmental Services,Third Party Payments 4THIRD,430115,Rendered by Private Contractors,06/06/2019,3598398-DCCPG001,792.00,A WILLEY T/A GREENTECH RECYCLING.
Children and Young Peoples Services,Head of Education and Skills,Transport,230012,Contract Hire,06/06/2019,3598401-O417,"1,636.08",ABC & OUSTON CABS.
Children and Young Peoples Services,Head of Education and Skills,Transport,230008,Contract Hire,06/06/2019,3598401-O418,"1,761.71",ABC & OUSTON CABS.
Children and Young Peoples Services,Head of Education and Skills,Transport,230012,Contract Hire,06/06/2019,3598401-O419,"2,316.93",ABC & OUSTON CABS.
Children and Young Peoples Services,Head of Education and Skills,Transport,230006,Contract Hire,06/06/2019,3598402-824,"1,246.00",AC TAXIS.
Regeneration and Local Services,Technical Services CM0300,Supplies and Services,304221,Equipment and Materials,06/06/2019,3598405-28107435,"1,976.64",AGGREGATE INDUSTRIES UK LTD.
Regeneration and Local Services,Technical Services CM0300,Supplies and Services,304221,Equipment and Materials,06/06/2019,3598405-28107437,726.88,AGGREGATE INDUSTRIES UK LTD.
Regeneration and Local Services,Technical Services CM0300,Supplies and Services,304221,Equipment and Materials,06/06/2019,3598405-28114427,820.12,AGGREGATE INDUSTRIES UK LTD.
Regeneration and Local Services,Technical Services CM0300,Supplies and Services,304221,Equipment and Materials,06/06/2019,3598405-28123341,589.64,AGGREGATE INDUSTRIES UK LTD.
Regeneration and Local Services,Technical Services CM0300,Supplies and Services,304221,Equipment and Materials,06/06/2019,3598405-28123343,"1,385.04",AGGREGATE INDUSTRIES UK LTD.
Regeneration and Local Services,Technical Services CM0300,Supplies and Services,304221,Equipment and Materials,06/06/2019,3598405-28130460,701.24,AGGREGATE INDUSTRIES UK LTD.
Regeneration and Local Services,Environmental Services,Supplies and Services,304221,Equipment and Materials,06/06/2019,3598405-28159417,"2,144.06",AGGREGATE INDUSTRIES UK LTD.
Regeneration and Local Services,Technical Services CM0300,Supplies and Services,304221,Equipment and Materials,06/06/2019,3598405-28247470,559.60,AGGREGATE INDUSTRIES UK LTD.
Regeneration and Local Services,Technical Services CM0300,Supplies and Services,304221,Equipment and Materials,06/06/2019,3598405-28247471,"1,566.00",AGGREGATE INDUSTRIES UK LTD.
Regeneration and Local Services,Technical Services CM0300,Supplies and Services,304221,Equipment and Materials,06/06/2019,3598405-28247473,665.60,AGGREGATE INDUSTRIES UK LTD.
Adult and Health Services,Head of Adults,Transport,230005,Contract Hire,06/06/2019,3598408-0021,"1,292.76",AIRPORT TAXIS 4U.
Regeneration and Local Services,Corporate Property and Land,Supplies and Services,304221,Equipment and Materials,06/06/2019,3598409-165323,"10,537.00",ALBANY OFFICE EQUIPMENT (WHOLESALE) LTD.
Regeneration and Local Services,Corporate Property and Land,Supplies and Services,304221,Equipment and Materials,06/06/2019,3598409-165324,"9,001.90",ALBANY OFFICE EQUIPMENT (WHOLESALE) LTD.
Children and Young Peoples Services,Head of Education and Skills,Transport,230007,Contract Hire,06/06/2019,3598418-03960,"1,215.51",ATLAS TAXIS CONSETT.
Regeneration and Local Services,Corporate Property and Land,Third Party Payments 4THIRD,430100,Rendered by Private Contractors,06/06/2019,3598423-6434,"2,200.00",BELL CONTROL SOLUTIONS LTD.
Children and Young Peoples Services,Head of Education and Skills,Transport,230007,Contract Hire,06/06/2019,3598424-9-4379,"1,273.00",BENNETTS TAXIS.
Children and Young Peoples Services,Head of Education and Skills,Transport,230012,Contract Hire,06/06/2019,3598427-19002,807.50,BLUELINE TAXIS.
Children and Young Peoples Services,Head of Education and Skills,Transport,230012,Contract Hire,06/06/2019,3598427-20194,"1,800.00",BLUELINE TAXIS.
Children and Young Peoples Services,Head of Education and Skills,Transport,230016,Contract Hire,06/06/2019,3598427-20207,"1,140.00",BLUELINE TAXIS.
Children and Young Peoples Services,Head of Education and Skills,Transport,230016,Contract Hire,06/06/2019,3598427-20809,"1,216.00",BLUELINE TAXIS.
Adult and Health Services,Head of Adults,Transport,230005,Contract Hire,06/06/2019,3598428-7038-31/5/19,"1,139.50",BOBBY DOVE PRIVATE HIRE.
Children and Young Peoples Services,Head of Early Help Inclusion & Vulnerable Children.,Transport,230007,Contract Hire,06/06/2019,3598429-80B,"2,080.00",BOBS TAXIS.
Regeneration and Local Services,Transport and Contracted Services,Construction work A908,908105,Construction work,06/06/2019,3598431-CM190986,"2,235.00",BP CHARGEMASTER.
Regeneration and Local Services,Culture Sport and Tourism,Premises,145023,Cleaning and Domestic Supplies,06/06/2019,3598434-22SI2248461,803.00,BRENNTAG UK LTD.
Regeneration and Local Services,Technical Services CM0300,Third Party Payments 4THIRD,430100,Rendered by Private Contractors,06/06/2019,3598436-AI5685/1,"7,244.17",BT PAYPHONE CUSTOMER SERVICES.
Dedicated Schools Grant BG0015,DSG High Needs Block,Third Party Payments 4THIRD,440080,Other third party payments E440,06/06/2019,3598439-WHI010561,"1,572.58",CAMBIAN WHINFELL SCHOOL LTD.
Dedicated Schools Grant BG0015,DSG High Needs Block,Third Party Payments 4THIRD,440080,Other third party payments E440,06/06/2019,3598439-WHI010649,"3,250.00",CAMBIAN WHINFELL SCHOOL LTD.
Regeneration and Local Services,Corporate Property and Land,Supplies and Services,304221,Equipment and Materials,06/06/2019,3598442-851901392,"5,098.50",CARLISLE CONSTRUCTION MATERIALS LTD.
Regeneration and Local Services,Environmental Services,Transport,210057,Repair and Maintenance of Vehicles,06/06/2019,3598445-233049,654.80,CARRS BILLINGTON AGRICULTURE.
Regeneration and Local Services,Development and Housing,Cap Exp on Grants & Other Financial Assistance (REFCUS),918004,Contributions to other bodies 918004,06/06/2019,3598456-RED-06-2019-035,"10,000.00",CHOCOLATE FAYRE.
Children and Young Peoples Services,Head of Education and Skills,Transport,230003,Contract Hire,06/06/2019,3598457-46703,"2,267.46",CHRISTOPHER JAMES GRIERSON T/A GRIERSONS COACHES.
Regeneration and Local Services,Technical Services CM0300,Premises,120009,Energy Costs,06/06/2019,3598468-2019DCC01,"3,175.29",CONSETT & DISTRICT RUGBY FOOTBALL CLUB.
Regeneration and Local Services,Culture Sport and Tourism,Supplies and Services,384199,Miscellaneous Expenses,06/06/2019,3598477-SEAHAMFOODFESTIVAL,"1,000.00",CRABSTOCK FESTIVALS LTD.
Children and Young Peoples Services,Head of Education and Skills,Transport,230007,Contract Hire,06/06/2019,3598479-109180,"2,369.12",CROFT BUSINESS SERVICES (UK) LTD T/A CROFT TAXIS.
Children and Young Peoples Services,Head of Early Help Inclusion & Vulnerable Children.,Transport,230007,Contract Hire,06/06/2019,3598479-109181,"1,125.69",CROFT BUSINESS SERVICES (UK) LTD T/A CROFT TAXIS.
Children and Young Peoples Services,Head of Education and Skills,Transport,230009,Contract Hire,06/06/2019,3598479-109182,"1,697.79",CROFT BUSINESS SERVICES (UK) LTD T/A CROFT TAXIS.
Adult and Health Services,Head of Adults,Transport,230005,Contract Hire,06/06/2019,3598479-109191,"1,478.10",CROFT BUSINESS SERVICES (UK) LTD T/A CROFT TAXIS.
Children and Young Peoples Services,Head of Education and Skills,Transport,230008,Contract Hire,06/06/2019,3598479-109192,"2,681.55",CROFT BUSINESS SERVICES (UK) LTD T/A CROFT TAXIS.
Dedicated Schools Grant BG0015,DSG High Needs Block,Transport,230010,Contract Hire,06/06/2019,3598479-109198,"2,089.80",CROFT BUSINESS SERVICES (UK) LTD T/A CROFT TAXIS.
Transformation and Partnerships,Partnerships & Community Engagement Div.,Supplies and Services,384086,Miscellaneous Expenses,06/06/2019,3598480-VOUCHER18NB-SPEN016,"2,240.00",CROXDALE & HETT PARISH COUNCIL.
Children and Young Peoples Services,Head of Education and Skills,Supplies and Services,336005,Advertising E336,06/06/2019,3598482-2863,840.00,CURIOUS 12 LTD.
Adult and Health Services,Head of Adults,Third Party Payments 4THIRD,478151,Purchase of Care,06/06/2019,3598488-INV-0084,"3,523.52",DEACONSTAR LTD.
Adult and Health Services,Head of Adults,Third Party Payments 4THIRD,478151,Purchase of Care,06/06/2019,3598488-INV-0085,"1,612.80",DEACONSTAR LTD.
Adult and Health Services,Head of Adults,Third Party Payments 4THIRD,478151,Purchase of Care,06/06/2019,3598488-INV-0086,"2,016.00",DEACONSTAR LTD.
Transformation and Partnerships,Partnerships & Community Engagement Div.,Cap Exp on Grants & Other Financial Assistance (REFCUS),918004,Contributions to other bodies 918004,06/06/2019,3598500-VOUCHER18NB-EDUR057,"2,000.00",EAST DURHAM ARTISTS NETWORK (EDAN) LTD.
Resources - C A C,Welfare Assistance Fund,Third Party Payments 4THIRD,440999,Other third party payments E440,06/06/2019,3598501-5880,"1,350.00",EAST DURHAM COMMUNITY DEVELOPMENT TRUST LTD T/A EAST DURHAM TRUST.
Regeneration and Local Services,Environmental Services,Transport,230005,Contract Hire,06/06/2019,3598511-8150787,576.00,ENTERPRISE FLEX-E-RENT T/A BURNT TREE GROUP LTD.
Regeneration and Local Services,Environmental Services,Transport,230005,Contract Hire,06/06/2019,3598512-8151394,"1,191.29",ENTERPRISE FLEX-E-RENT T/A BURNT TREE GROUP LTD.
Regeneration and Local Services,Environmental Services,Transport,230005,Contract Hire,06/06/2019,3598512-8151395,637.71,ENTERPRISE FLEX-E-RENT T/A BURNT TREE GROUP LTD.
Regeneration and Local Services,Environmental Services,Transport,230005,Contract Hire,06/06/2019,3598512-8151403,"1,191.29",ENTERPRISE FLEX-E-RENT T/A BURNT TREE GROUP LTD.
Regeneration and Local Services,Environmental Services,Supplies and Services,384956,Miscellaneous Expenses,06/06/2019,3598513-034661YT,718.00,ENVIRONMENT AGENCY.
Transformation and Partnerships,Partnerships & Community Engagement Div.,Cap Exp on Grants & Other Financial Assistance (REFCUS),918004,Contributions to other bodies 918004,06/06/2019,3598516-VOUCHER18NB-4TOG018,"3,040.00",FERRYHILL TOWN COUNCIL.
Dedicated Schools Grant BG0015,DSG Early Years Block,Transfer Payments,510032,School Children,06/06/2019,3598520-14228,"1,479.00",FIRST FOUR KIDZ CHILDCARE.
Dedicated Schools Grant BG0015,DSG Early Years Block,Transfer Payments,510030,School Children,06/06/2019,3598520-14231,"1,540.50",FIRST FOUR KIDZ CHILDCARE.
Regeneration and Local Services,Development and Housing,Cap Exp on Grants & Other Financial Assistance (REFCUS),918004,Contributions to other bodies 918004,06/06/2019,3598523-RED-06-2019-036,"10,850.00",GA CARTER LTD.
Children and Young Peoples Services,Head of Education and Skills,Transport,230007,Contract Hire,06/06/2019,3598524-21409-3042,"2,694.84",GARNETTS LTD (COACHES).
Children and Young Peoples Services,Head of Education and Skills,Transport,230007,Contract Hire,06/06/2019,3598524-21409-3195,"2,433.21",GARNETTS LTD (COACHES).
Children and Young Peoples Services,Head of Education and Skills,Transport,230007,Contract Hire,06/06/2019,3598524-21410,"2,424.37",GARNETTS LTD (COACHES).
Children and Young Peoples Services,Head of Education and Skills,Transport,230007,Contract Hire,06/06/2019,3598524-21418,"3,235.44",GARNETTS LTD (COACHES).
Children and Young Peoples Services,Head of Education and Skills,Transport,230007,Contract Hire,06/06/2019,3598524-21421,"5,066.00",GARNETTS LTD (COACHES).
Children and Young Peoples Services,Head of Education and Skills,Transport,230008,Contract Hire,06/06/2019,3598526-106629084,608.00,GATESHEAD COUNCIL.
Children and Young Peoples Services,Head of Education and Skills,Transport,230008,Contract Hire,06/06/2019,3598526-106629084-A,"1,280.00",GATESHEAD COUNCIL.
Regeneration and Local Services,Corporate Property and Land,Supplies and Services,304221,Equipment and Materials,06/06/2019,3598531-SI774260,"1,808.67",GLASDON UK LTD.
Regeneration and Local Services,Corporate Property and Land,Premises,145023,Cleaning and Domestic Supplies,06/06/2019,3598535-06/799529,513.70,GREENHAM TRADING LTD.
Regeneration and Local Services,Culture Sport and Tourism,Premises,145023,Cleaning and Domestic Supplies,06/06/2019,3598535-06/799894,618.94,GREENHAM TRADING LTD.
Regeneration and Local Services,Technical Services CM0300,Stock A926,926900,Stock in hand-Inventory system,06/06/2019,3598535-06/000021,523.05,GREENHAM TRADING LTD.
Resources BK0010,Digital and Customer Services,Supplies and Services,304303,Equipment and Materials,06/06/2019,3598540-INV0175058,600.00,GV MULTIMEDIA LTD.
Dedicated Schools Grant BG0015,DSG Early Years Block,Transfer Payments,510032,School Children,06/06/2019,3598543-14227,841.50,HAPPYTIMES DAYCARE.
Resources BK0010,Corporate Finance & Commercial Services,Supplies and Services,338221,Services,06/06/2019,3598548-SF-034116,"1,019.34",HEALTH ASSURED LTD.
Children and Young Peoples Services,Head of Education and Skills,Supplies and Services,338027,Services,06/06/2019,3598549-0000000173,"4,736.10",HERMITAGE ACADEMY.
Dedicated Schools Grant BG0015,DSG Early Years Block,Transfer Payments,510032,School Children,06/06/2019,3598559-14229,"1,269.90",HORDEN YOUTH & COMMUNITY CENTRE NURSERY.
Adult and Health Services,Head of Adults,Supplies and Services,338365,Services,06/06/2019,3598560-D43/0081330,682.00,HOWDENS JOINERY LTD.
Children and Young Peoples Services,Head of Education and Skills,Transport,230008,Contract Hire,06/06/2019,3598563-IR1905002,"2,175.00",I & R EXECUTIVE TRAVEL.
Children and Young Peoples Services,Head of Education and Skills,Transport,230016,Contract Hire,06/06/2019,3598563-IR1905006,600.00,I & R EXECUTIVE TRAVEL.
Resources BK0010,Digital and Customer Services,Supplies and Services,344132,Telephones,06/06/2019,3598566-4356012,"56,539.00",INSIGHT DIRECT (UK) LTD.
Regeneration and Local Services,Technical Services CM0300,Third Party Payments 4THIRD,460109,Contract Payments,06/06/2019,3598567-INS1734,"2,440.00",INSPECTORATE LTD T/A ROCH NDT SERVICES.
Regeneration and Local Services,Transport and Contracted Services,Supplies and Services,336005,Advertising E336,06/06/2019,3598571-0064404,600.00,JAK HQ LTD.
Dedicated Schools Grant BG0015,DSG High Needs Block,Transport,230010,Contract Hire,06/06/2019,3598572-BL005-MAY,"1,160.00",JAY WILSON T/A BLACKS PRIVATE HIRE.
Regeneration and Local Services,Technical Services CM0300,Supplies and Services,304221,Equipment and Materials,06/06/2019,3598581-GOI1489/D,"3,786.25",JT DOVE LTD.
Regeneration and Local Services,Technical Services CM0300,Supplies and Services,304221,Equipment and Materials,06/06/2019,3598581-GOI1503/D,"1,694.08",JT DOVE LTD.
Regeneration and Local Services,Technical Services CM0300,Supplies and Services,304221,Equipment and Materials,06/06/2019,3598581-GOI1527/D,"3,300.70",JT DOVE LTD.
Regeneration and Local Services,Corporate Property and Land,Supplies and Services,304221,Equipment and Materials,06/06/2019,3598581-PHBII44269,"1,955.79",JT DOVE LTD.
Children and Young Peoples Services,Head of Education and Skills,Transport,230007,Contract Hire,06/06/2019,3598593-6872,"5,232.60",LEE`S COACHES LTD.
Children and Young Peoples Services,Head of Education and Skills,Transport,230007,Contract Hire,06/06/2019,3598593-6872/5,"3,437.10",LEE`S COACHES LTD.
Children and Young Peoples Services,Head of Education and Skills,Transport,230007,Contract Hire,06/06/2019,3598593-6872/5/4227,"2,529.09",LEE`S COACHES LTD.
Children and Young Peoples Services,Head of Education and Skills,Transport,230003,Contract Hire,06/06/2019,3598593-6875,"2,249.95",LEE`S COACHES LTD.
Children and Young Peoples Services,Head of Education and Skills,Transport,230012,Contract Hire,06/06/2019,3598597-4023,"1,320.39",LINCAB TAXIS.
Children and Young Peoples Services,Head of Childrens Social Care,Third Party Payments 4THIRD,425040,Rendered by Voluntary Organisations,06/06/2019,3598599-ROTHIN/00001350,"5,040.83",LIVIN HOUSING LTD.
Children and Young Peoples Services,Head of Education and Skills,Transport,230008,Contract Hire,06/06/2019,3598608-MCD37996,"2,005.84",MCDONALD TRAVEL.
Regeneration and Local Services,Environmental Services,Transport,230005,Contract Hire,06/06/2019,3598611-418076,688.40,MINSTER SELF DRIVE.
Children and Young Peoples Services,Head of Education and Skills,Transport,230008,Contract Hire,06/06/2019,3598616-KDK/MAY19,"1,098.50",MR IAN KELSEY T/A KDK TAXIS.
Regeneration and Local Services,EnvironmentHealth & Consumer Protection,Supplies and Services,372009,Subscriptions E372,06/06/2019,3598630-SI\016240,535.00,NATIONAL CRIME AGENCY.
Children and Young Peoples Services,Head of Education and Skills,Supplies and Services,384199,Miscellaneous Expenses,06/06/2019,3598632-5397/116,750.00,NATIONAL YOUTH JAZZ ORCHESTRA.
Adult and Health Services,Head of Adults,Transport,230005,Contract Hire,06/06/2019,3598633-017,750.00,ND TAXIS.
Regeneration and Local Services,Culture Sport and Tourism,Supplies and Services,304259,Equipment and Materials,06/06/2019,3598638-16698,"2,612.11",NICOLL INDUSTRIES LTD.
Regeneration and Local Services,Environmental Services,Transport,210057,Repair and Maintenance of Vehicles,06/06/2019,3598641-21827631,708.09,NORTH EAST TRUCK & VAN LTD.
Regeneration and Local Services,Technical Services CM0300,Third Party Payments 4THIRD,430100,Rendered by Private Contractors,06/06/2019,3598644-DI20319779,"1,654.08",NORTHERN POWERGRID (NORTHEAST) LTD.
Regeneration and Local Services,Technical Services CM0300,Third Party Payments 4THIRD,430100,Rendered by Private Contractors,06/06/2019,3598644-DI20319799,"3,076.11",NORTHERN POWERGRID (NORTHEAST) LTD.
Regeneration and Local Services,Corporate Property and Land,Supplies and Services,304999,Equipment and Materials,06/06/2019,3598645-127054,"1,200.00",NORTHERN TOOLS & ACCESSORIES.
Regeneration and Local Services,Corporate Property and Land,Supplies and Services,304999,Equipment and Materials,06/06/2019,3598645-127282,658.00,NORTHERN TOOLS & ACCESSORIES.
Children and Young Peoples Services,Head of Childrens Social Care,Third Party Payments 4THIRD,440999,Other third party payments E440,06/06/2019,3598648-SINCC3F47021,"2,835.00",OFSTED.
Regeneration and Local Services,Environmental Services,Transport,215005,Running Costs of Vehicles,06/06/2019,3598649-426275,"14,548.44",OIL NRG LTD.
Regeneration and Local Services,Environmental Services,Transport,215022,Running Costs of Vehicles,06/06/2019,3598649-426276,"2,311.42",OIL NRG LTD.
Regeneration and Local Services,Environmental Services,Transport,215005,Running Costs of Vehicles,06/06/2019,3598649-426278,"5,220.50",OIL NRG LTD.
Regeneration and Local Services,Culture Sport and Tourism,Construction work A908,908105,Construction work,06/06/2019,3598650-8795,"4,442.00",OMEGA SECURITY SYSTEMS LTD.
Regeneration and Local Services,Corporate Property and Land,Supplies and Services,304245,Equipment and Materials,06/06/2019,3598655-XL239588,600.30,PARK ELECTRICAL DISTRIBUTORS LTD.
Regeneration and Local Services,Technical Services CM0300,Stock A926,926900,Stock in hand-Inventory system,06/06/2019,3598655-XL240115,797.22,PARK ELECTRICAL DISTRIBUTORS LTD.
Regeneration and Local Services,Technical Services CM0300,Stock A926,926900,Stock in hand-Inventory system,06/06/2019,3598655-XL240116,"3,650.00",PARK ELECTRICAL DISTRIBUTORS LTD.
Regeneration and Local Services,Technical Services CM0300,Stock A926,926900,Stock in hand-Inventory system,06/06/2019,3598655-XL240120,520.00,PARK ELECTRICAL DISTRIBUTORS LTD.
Children and Young Peoples Services,Head of Education and Skills,Transport,230008,Contract Hire,06/06/2019,3598656-SC-409,573.44,PAUL BURRELL T/A PAUL BURRELL TAXIS.
Adult and Health Services,Head of Adults,Transport,230005,Contract Hire,06/06/2019,3598663-0766,"1,586.00",PETER`S PRIVATE HIRE/PETER BEST.
Children and Young Peoples Services,Head of Education and Skills,Transport,230008,Contract Hire,06/06/2019,3598663-0767,"1,734.00",PETER`S PRIVATE HIRE/PETER BEST.
Adult and Health Services,Head of Adults,Transport,230005,Contract Hire,06/06/2019,3598663-0768,"1,394.00",PETER`S PRIVATE HIRE/PETER BEST.
Children and Young Peoples Services,Head of Education and Skills,Transport,230008,Contract Hire,06/06/2019,3598663-0769,"1,496.00",PETER`S PRIVATE HIRE/PETER BEST.
Children and Young Peoples Services,Head of Education and Skills,Transport,230008,Contract Hire,06/06/2019,3598663-0770,"2,074.00",PETER`S PRIVATE HIRE/PETER BEST.
Children and Young Peoples Services,Head of Education and Skills,Transport,230007,Contract Hire,06/06/2019,3598663-0771,"1,853.00",PETER`S PRIVATE HIRE/PETER BEST.
Children and Young Peoples Services,Head of Education and Skills,Transport,230006,Contract Hire,06/06/2019,3598663-0772,"1,938.00",PETER`S PRIVATE HIRE/PETER BEST.
Regeneration and Local Services,Technical Services CM0300,Third Party Payments 4THIRD,430100,Rendered by Private Contractors,06/06/2019,3598669-5495,"1,369.98",PINKNEY BUILDING CONTRACTORS LTD.
Regeneration and Local Services,Technical Services CM0300,Third Party Payments 4THIRD,430100,Rendered by Private Contractors,06/06/2019,3598669-5508,"4,514.28",PINKNEY BUILDING CONTRACTORS LTD.
Regeneration and Local Services,Environmental Services,Supplies and Services,304221,Equipment and Materials,06/06/2019,3598670-0000035431,588.36,PLAYDALE PLAYGROUNDS LTD.
Regeneration and Local Services,Technical Services CM0300,Third Party Payments 4THIRD,430100,Rendered by Private Contractors,06/06/2019,3598673-157700,"28,396.40",PREMIER TRAFFIC MANAGEMENT LTD.
Regeneration and Local Services,Technical Services CM0300,Third Party Payments 4THIRD,430100,Rendered by Private Contractors,06/06/2019,3598673-158664,"8,349.75",PREMIER TRAFFIC MANAGEMENT LTD.
Regeneration and Local Services,Technical Services CM0300,Third Party Payments 4THIRD,430100,Rendered by Private Contractors,06/06/2019,3598673-158665,"12,491.48",PREMIER TRAFFIC MANAGEMENT LTD.
Regeneration and Local Services,Technical Services CM0300,Third Party Payments 4THIRD,430100,Rendered by Private Contractors,06/06/2019,3598676-120864,550.00,PROTECTOR SECURITY GROUP LTD.
Regeneration and Local Services,EnvironmentHealth & Consumer Protection,Third Party Payments 4THIRD,430100,Rendered by Private Contractors,06/06/2019,3598678-IN-19-WP-001280,838.24,PUBLIC ANALYST SCIENTIFIC SERVICES LTD.
Regeneration and Local Services,Transport and Contracted Services,Third Party Payments 4THIRD,430109,Rendered by Private Contractors,06/06/2019,3598679-IN13850QTDC,"2,700.00",Q-FREE (BRISTOL) UK LTD.
Children and Young Peoples Services,Head of Education and Skills,Supplies and Services,384199,Miscellaneous Expenses,06/06/2019,3598682-INV-0076,"4,875.00",RAW DIGITAL TRAINING LTD.
Regeneration and Local Services,Environmental Services,Supplies and Services,304259,Equipment and Materials,06/06/2019,3598687-RSIN0300440,"1,649.80",RIGBY TAYLOR LTD.
Transformation and Partnerships,Business Support,Supplies and Services,304252,Equipment and Materials,06/06/2019,3598690-I010519,"1,750.00",RN SERVICE ENGINEERS LTD.
Children and Young Peoples Services,Head of Education and Skills,Transport,230007,Contract Hire,06/06/2019,3598692-4398/5,907.50,ROGERS TAXIS.
Dedicated Schools Grant BG0015,DSG High Needs Block,Transport,230010,Contract Hire,06/06/2019,3598705-L001-MAY,905.00,SHAUN MILLS T/A ASM TRAVEL.
Children and Young Peoples Services,Head of Childrens Social Care,Third Party Payments 4THIRD,425041,Rendered by Voluntary Organisations,06/06/2019,3598715-996524,"2,425.46",ST FRANCIS CHILDRENS SOCIETY.
Regeneration and Local Services,Development and Housing,Supplies and Services,384437,Miscellaneous Expenses,06/06/2019,3598716-53149,"2,745.00",STANLEY TRAVEL (NORTH EAST) LTD.
Regeneration and Local Services,Environmental Services,Supplies and Services,338066,Services,06/06/2019,3598718-4100658547,"4,000.00",STEVE MESSAM.
Regeneration and Local Services,Corporate Property and Land,Supplies and Services,304221,Equipment and Materials,06/06/2019,3598723-163531,540.00,T CROSSLING & CO LTD.
Regeneration and Local Services,Environmental Services,Supplies and Services,338066,Services,06/06/2019,3598730-INV066,"3,300.00",TELFORD`S COUNTRYSIDE & LANDSCAPE CONTRACTORS.
Regeneration and Local Services,Technical Services CM0300,Stock A926,926900,Stock in hand-Inventory system,06/06/2019,3598734-NSIN00012522,691.01,THOMAS OWEN & SONS (NEWCASTLE) LTD.
Regeneration and Local Services,Technical Services CM0300,Stock A926,926900,Stock in hand-Inventory system,06/06/2019,3598734-NSIN00012524,734.40,THOMAS OWEN & SONS (NEWCASTLE) LTD.
Regeneration and Local Services,Technical Services CM0300,Supplies and Services,304221,Equipment and Materials,06/06/2019,3598736-110238,"1,425.16",TOFCO LTD.
Regeneration and Local Services,Technical Services CM0300,Supplies and Services,342051,Computers and Communications,06/06/2019,3598738-92024372,"3,094.00",TRIMBLE SOLUTIONS (UK) LTD.
Resources BK0010,Legal & Democratic Services,Supplies and Services,338042,Services,06/06/2019,3598739-262106/INVEM28,650.00,TRINITY CHAMBERS.
Children and Young Peoples Services,Head of Education and Skills,Transport,230008,Contract Hire,06/06/2019,3598742-20-MAY,"1,232.45",TW TINKLER T/A TT TAXIS.
Regeneration and Local Services,Technical Services CM0300,Supplies and Services,304221,Equipment and Materials,06/06/2019,3598743-199596,738.52,TYNEDALE ROADSTONE LTD.
Regeneration and Local Services,Culture Sport and Tourism,Supplies and Services,384199,Miscellaneous Expenses,06/06/2019,3598744-INV-3234,"1,500.00",UKINBOUND LTD.
Regeneration and Local Services,Business Durham CL0850,Premises,135005,Water Services,06/06/2019,3598750-31337960001,876.15,WAVE (AWBN).
Regeneration and Local Services,Environmental Services,Premises,150015,Apportioned Exps of Operational Blds,06/06/2019,3598751-891712,697.82,WERNICK HIRE LTD.
Children and Young Peoples Services,Head of Education and Skills,Transport,230008,Contract Hire,06/06/2019,3598752-WESTLEA240519,"1,046.52",WESTLEA TAXIS.
Children and Young Peoples Services,Head of Education and Skills,Transport,230016,Contract Hire,06/06/2019,3598754-139,"1,360.00",WHITTONSTALL TAXIS SERVICE.
Regeneration and Local Services,Culture Sport and Tourism,Supplies and Services,336005,Advertising E336,07/06/2019,3598760-3672,573.50,100 HANDS LTD.
Adult and Health Services,Head of Adults,Transport,230005,Contract Hire,07/06/2019,3598763-X22/SM-MAY,"1,442.67",AABAT TAXIS.
Adult and Health Services,Head of Adults,Transport,230005,Contract Hire,07/06/2019,3598763-X23/SJ,841.00,AABAT TAXIS.
Regeneration and Local Services,Technical Services CM0300,Third Party Payments 4THIRD,410037,Rendered by Other Local Authorities,07/06/2019,3598765-28387923,"2,520.00",AECOM LTD.
Regeneration and Local Services,Technical Services CM0300,Supplies and Services,304221,Equipment and Materials,07/06/2019,3598766-28091922,"4,238.64",AGGREGATE INDUSTRIES UK LTD.
Regeneration and Local Services,Technical Services CM0300,Supplies and Services,304221,Equipment and Materials,07/06/2019,3598766-28190574,"1,146.08",AGGREGATE INDUSTRIES UK LTD.
Regeneration and Local Services,Technical Services CM0300,Supplies and Services,304221,Equipment and Materials,07/06/2019,3598766-28254070,"1,733.04",AGGREGATE INDUSTRIES UK LTD.
Regeneration and Local Services,Technical Services CM0300,Supplies and Services,304221,Equipment and Materials,07/06/2019,3598766-28254071,"1,068.80",AGGREGATE INDUSTRIES UK LTD.
Regeneration and Local Services,Technical Services CM0300,Supplies and Services,304221,Equipment and Materials,07/06/2019,3598766-28254072,716.52,AGGREGATE INDUSTRIES UK LTD.
Children and Young Peoples Services,Head of Education and Skills,Transport,230007,Contract Hire,07/06/2019,3598767-199,959.31,ALANS TAXIS BARNARD CASTLE.
Children and Young Peoples Services,Head of Education and Skills,Transport,230007,Contract Hire,07/06/2019,3598767-201,"1,665.66",ALANS TAXIS BARNARD CASTLE.
Children and Young Peoples Services,Head of Education and Skills,Transport,230007,Contract Hire,07/06/2019,3598767-202,"1,482.57",ALANS TAXIS BARNARD CASTLE.
Children and Young Peoples Services,Head of Education and Skills,Transport,230007,Contract Hire,07/06/2019,3598767-203,"1,534.93",ALANS TAXIS BARNARD CASTLE.
Children and Young Peoples Services,Head of Education and Skills,Transport,230007,Contract Hire,07/06/2019,3598767-204,846.00,ALANS TAXIS BARNARD CASTLE.
Regeneration and Local Services,Environmental Services,Supplies and Services,336005,Advertising E336,07/06/2019,3598772-63242,514.00,ALLWAG PROMOTIONS LTD.
Regeneration and Local Services,Culture Sport and Tourism,Supplies and Services,384199,Miscellaneous Expenses,07/06/2019,3598775-4100658726,900.00,AMY ODENE (THEATRE CONTRACTOR).
Regeneration and Local Services,Culture Sport and Tourism,Supplies and Services,338047,Services,07/06/2019,3598782-2927,"3,255.40",ARTISTES INTERNATIONAL MANAGEMENT LTD T/A AIM.
Children and Young Peoples Services,Head of Education and Skills,Supplies and Services,312009,Newspapers books and periodicals E312,07/06/2019,3598785-6037350,905.46,ASKEWS & HOLTS LIBRARY SERVICES LTD.
Children and Young Peoples Services,Head of Education and Skills,Supplies and Services,312009,Newspapers books and periodicals E312,07/06/2019,3598785-6037351,532.64,ASKEWS & HOLTS LIBRARY SERVICES LTD.
Adult and Health Services,Head of Adults,Transport,230005,Contract Hire,07/06/2019,3598786-DCC2MAY19,861.84,ATLAS TAXIS BISHOP AUCKLAND.
Dedicated Schools Grant BG0015,DSG High Needs Block,Transport,230010,Contract Hire,07/06/2019,3598787-03966,"1,446.40",ATLAS TAXIS CONSETT.
Regeneration and Local Services,Transport and Contracted Services,Third Party Payments 4THIRD,440999,Other third party payments E440,07/06/2019,3598792-68782,"6,514.32",BAYDALE CONTROL SYSTEMS LTD.
Children and Young Peoples Services,Head of Education and Skills,Transport,230003,Contract Hire,07/06/2019,3598795-STJOHNSRC0419-3003,"2,232.61",BELL BROTHERS TRAVEL.
Children and Young Peoples Services,Head of Education and Skills,Transport,230003,Contract Hire,07/06/2019,3598795-STJOHNSRC0419-3005,"4,325.65",BELL BROTHERS TRAVEL.
Regeneration and Local Services,Culture Sport and Tourism,Third Party Payments 4THIRD,430131,Rendered by Private Contractors,07/06/2019,3598797-BEC-13-15052019,525.00,BETHANY ELEN COYLE (MUSICIAN).
Dedicated Schools Grant BG0015,DSG High Needs Block,Transport,230010,Contract Hire,07/06/2019,3598800-B006-MAY,"1,360.00",BIG MAMA`S TAXI.
Regeneration and Local Services,Development and Housing,Supplies and Services,338066,Services,07/06/2019,3598801-SIN007418,"91,438.42",BLOOM PROCUREMENT SERVICES LTD (FORMERLY NEPRO LTD).
Regeneration and Local Services,Business Durham CL0850,Third Party Payments 4THIRD,460305,Contract Payments,07/06/2019,3598809-13397,"39,087.50",BUSINESS & ENTERPRISE COMMERCIAL LTD T/A BE GROUP.
Children and Young Peoples Services,Head of Early Help Inclusion & Vulnerable Children.,Employees,080025,Agency Staff,07/06/2019,3598815-04049381,756.00,CER (A DIVISION OF AFFINITY WORKFORCE SOL LTD).
Children and Young Peoples Services,Head of Education and Skills,Transfer Payments,510027,School Children,07/06/2019,3598834-156,"1,560.00",CRAGHEAD DEVELOPMENT TRUST.
Dedicated Schools Grant BG0015,DSG High Needs Block,Third Party Payments 4THIRD,440080,Other third party payments E440,07/06/2019,3598840-SLINV/00002505,"1,416.60",DARLINGTON COLLEGE.
Resources BK0010,Digital and Customer Services,Stock A926,926900,Stock in hand-Inventory system,07/06/2019,3598843-7402529239,524.34,DELL COMPUTER CORPORATION LTD.
Regeneration and Local Services,Corporate Property and Land,Supplies and Services,338027,Services,07/06/2019,3598851-9544,725.00,DUNELM GEOTECHNICAL & ENVIRONMENTAL LTD.
Regeneration and Local Services,Environmental Services,Supplies and Services,384199,Miscellaneous Expenses,07/06/2019,3598856-19014,"4,000.00",DURHAM WILDLIFE TRUST LTD.
Regeneration and Local Services,Corporate Property and Land,Supplies and Services,304245,Equipment and Materials,07/06/2019,3598859-059-241889,767.04,EDMUNDSON ELECTRICAL LTD.
Regeneration and Local Services,Corporate Property and Land,Supplies and Services,304221,Equipment and Materials,07/06/2019,3598859-059-244197,569.60,EDMUNDSON ELECTRICAL LTD.
Regeneration and Local Services,Corporate Property and Land,Supplies and Services,304221,Equipment and Materials,07/06/2019,3598859-059-244438,893.73,EDMUNDSON ELECTRICAL LTD.
Regeneration and Local Services,Environmental Services,Supplies and Services,338027,Services,07/06/2019,3598863-1606-1,"35,000.00",ELEMENT ENERGY LTD.
Regeneration and Local Services,Culture Sport and Tourism,Supplies and Services,384199,Miscellaneous Expenses,07/06/2019,3598865-008,662.50,EMILY LEWIS.
Regeneration and Local Services,Business Durham CL0850,Supplies and Services,338027,Services,07/06/2019,3598868-24217,"4,999.00",EXCELPOINT LTD.
Children and Young Peoples Services,Head of Education and Skills,Third Party Payments 4THIRD,440999,Other third party payments E440,07/06/2019,3598871-6431,"2,893.40",FANE LTD.
Children and Young Peoples Services,Head of Education and Skills,Transport,230007,Contract Hire,07/06/2019,3598872-53,"1,615.00",FIGGY BUS (TAXI).
Children and Young Peoples Services,Head of Education and Skills,Transport,230007,Contract Hire,07/06/2019,3598872-54,"1,275.00",FIGGY BUS (TAXI).
Regeneration and Local Services,Corporate Property and Land,Supplies and Services,304221,Equipment and Materials,07/06/2019,3598875-1905-008082,"1,870.00",FLAME HEATING SPARES LTD.
Adult and Health Services,Head of Adults,Supplies and Services,338365,Services,07/06/2019,3598880-DHP0048,"25,068.28",FOUR HOUSING GROUP LTD.
Adult and Health Services,Head of Adults,Transport,230005,Contract Hire,07/06/2019,3598888-101290,"1,764.00",G & P JOHNSON LTD T/A NIGHTINGALE COACHES.
Adult and Health Services,Head of Adults,Transport,230005,Contract Hire,07/06/2019,3598888-101291,"1,748.00",G & P JOHNSON LTD T/A NIGHTINGALE COACHES.
Adult and Health Services,Public Health CC0450,Third Party Payments 4THIRD,460803,Contract Payments,07/06/2019,3598896-2510026608,"4,271.63",HARROGATE & DISTRICT NHS FOUNDATION TRUST.
Adult and Health Services,Public Health CC0450,Third Party Payments 4THIRD,460803,Contract Payments,07/06/2019,3598896-2510027021,"4,271.63",HARROGATE & DISTRICT NHS FOUNDATION TRUST.
Adult and Health Services,Public Health CC0450,Third Party Payments 4THIRD,460803,Contract Payments,07/06/2019,3598896-2510028170,"954,094.42",HARROGATE & DISTRICT NHS FOUNDATION TRUST.
Transformation and Partnerships,Communications Management,Supplies and Services,372009,Subscriptions E372,07/06/2019,3598898-157926,952.00,HEMMING GROUP LTD.
Adult and Health Services,Head of Adults,Third Party Payments 4THIRD,478151,Purchase of Care,07/06/2019,3598900-HLC52/2019,"4,012.64",HIGHLEA CARE LTD.
Adult and Health Services,Head of Adults,Third Party Payments 4THIRD,478151,Purchase of Care,07/06/2019,3598901-HLC53/2019,"2,526.50",HIGHLEA CARE LTD.
Children and Young Peoples Services,Head of Education and Skills,Transport,230008,Contract Hire,07/06/2019,3598907-299,"2,023.34",I CLYDESDALE T/A BURNOPFIELD TAXIS.
Adult and Health Services,Head of Adults,Transport,230005,Contract Hire,07/06/2019,3598907-300,840.00,I CLYDESDALE T/A BURNOPFIELD TAXIS.
Resources BK0010,Digital and Customer Services,Supplies and Services,304303,Equipment and Materials,07/06/2019,3598908-4373771,"4,766.09",INSIGHT DIRECT (UK) LTD.
Regeneration and Local Services,Technical Services CM0300,Supplies and Services,304221,Equipment and Materials,07/06/2019,3598925-BII288148,"1,110.44",JT DOVE LTD.
Regeneration and Local Services,Corporate Property and Land,Supplies and Services,304221,Equipment and Materials,07/06/2019,3598925-PHBII44297,507.34,JT DOVE LTD.
Regeneration and Local Services,Technical Services CM0300,Stock A926,926900,Stock in hand-Inventory system,07/06/2019,3598925-BII288139,"1,599.48",JT DOVE LTD.
Regeneration and Local Services,Environmental Services,Supplies and Services,384199,Miscellaneous Expenses,07/06/2019,3598928-2036,"5,305.98",KEVIN DOONAN ARCHITECT LTD.
Children and Young Peoples Services,Head of Education and Skills,Transport,230007,Contract Hire,07/06/2019,3598934-6873-4006,"1,726.69",LEE`S COACHES LTD.
Children and Young Peoples Services,Head of Education and Skills,Transport,230007,Contract Hire,07/06/2019,3598934-6873-4371,"3,366.00",LEE`S COACHES LTD.
Children and Young Peoples Services,Head of Education and Skills,Transport,230007,Contract Hire,07/06/2019,3598934-6873-4372,"3,366.00",LEE`S COACHES LTD.
Children and Young Peoples Services,Head of Education and Skills,Transport,230007,Contract Hire,07/06/2019,3598934-6873-4373,"1,683.00",LEE`S COACHES LTD.
Children and Young Peoples Services,Head of Education and Skills,Transport,230007,Contract Hire,07/06/2019,3598937-4028,984.30,LINCAB TAXIS.
Resources BK0010,Finance & Transactional Services,Supplies and Services,384180,Miscellaneous Expenses,07/06/2019,3598941-0312534,"5,559.87",LOOMIS UK LTD.
Children and Young Peoples Services,Head of Education and Skills,Transport,230008,Contract Hire,07/06/2019,3598942-155,"1,050.00",M BUTCHER T/A M & M`S TAXIS.
Children and Young Peoples Services,Head of Education and Skills,Transport,230008,Contract Hire,07/06/2019,3598943-30,"1,919.64",M&C`S CABS LTD.
Children and Young Peoples Services,Head of Education and Skills,Transport,230008,Contract Hire,07/06/2019,3598950-0007,"1,360.00",MGD TAXIS.
Children and Young Peoples Services,Head of Education and Skills,Transport,230008,Contract Hire,07/06/2019,3598958-222,"2,421.60",MR G FREELAND T/A HUNWICK CARS.
Dedicated Schools Grant BG0015,DSG High Needs Block,Transport,230010,Contract Hire,07/06/2019,3598962-9PL005,"1,003.00",MR M FARREY T/A TK TAXIS.
Children and Young Peoples Services,Head of Education and Skills,Transport,230008,Contract Hire,07/06/2019,3598963-18A-N031,"1,325.66",MR RAYMOND RENWICK T/A RAY`S TAXIS & MINIBUSES.
Children and Young Peoples Services,Head of Education and Skills,Transport,230008,Contract Hire,07/06/2019,3598963-18B-MAY,"1,395.36",MR RAYMOND RENWICK T/A RAY`S TAXIS & MINIBUSES.
Children and Young Peoples Services,Head of Education and Skills,Transport,230006,Contract Hire,07/06/2019,3598971-F693-9,506.00,MRS LISA JANE NATTRASS T/A LISA`S TAXIS.
Regeneration and Local Services,Environmental Services,Supplies and Services,384199,Miscellaneous Expenses,07/06/2019,3598983-97,500.00,NICOLA BALFOUR T/A THE BARN AT EASINGTON.
Dedicated Schools Grant BG0015,DSG High Needs Block,Third Party Payments 4THIRD,440080,Other third party payments E440,07/06/2019,3598985-0000038298,"1,020.00",NORTH EAST AUTISM SOCIETY.
Dedicated Schools Grant BG0015,DSG High Needs Block,Third Party Payments 4THIRD,440080,Other third party payments E440,07/06/2019,3598985-0000039552,"1,020.00",NORTH EAST AUTISM SOCIETY.
Regeneration and Local Services,Technical Services CM0300,Third Party Payments 4THIRD,430100,Rendered by Private Contractors,07/06/2019,3598989-DI20319583,"3,104.07",NORTHERN POWERGRID (NORTHEAST) LTD.
Regeneration and Local Services,Environmental Services,Transport,215022,Running Costs of Vehicles,07/06/2019,3598995-426052,530.86,OIL NRG LTD.
Regeneration and Local Services,Environmental Services,Transport,215022,Running Costs of Vehicles,07/06/2019,3598995-426587,577.18,OIL NRG LTD.
Regeneration and Local Services,Environmental Services,Transport,215022,Running Costs of Vehicles,07/06/2019,3598995-426588,634.84,OIL NRG LTD.
Regeneration and Local Services,Environmental Services,Transport,215022,Running Costs of Vehicles,07/06/2019,3598995-426589,528.74,OIL NRG LTD.
Children and Young Peoples Services,Head of Education and Skills,Transport,230007,Contract Hire,07/06/2019,3599006-30259,704.00,PHOENIX TAXIS T/A PRATT`S TAXIS.
Children and Young Peoples Services,Head of Education and Skills,Transport,230008,Contract Hire,07/06/2019,3599009-1316,"2,341.41",PODA TAXIS LTD.
Children and Young Peoples Services,Head of Education and Skills,Transport,230008,Contract Hire,07/06/2019,3599009-1317,"1,046.52",PODA TAXIS LTD.
Children and Young Peoples Services,Head of Education and Skills,Transport,230012,Contract Hire,07/06/2019,3599009-1318,"1,081.37",PODA TAXIS LTD.
Regeneration and Local Services,Transport and Contracted Services,Third Party Payments 4THIRD,430100,Rendered by Private Contractors,07/06/2019,3599014-119628,"6,269.94",QW SECURITY LTD.
Children and Young Peoples Services,Head of Education and Skills,Transport,230008,Contract Hire,07/06/2019,3599018-072-W026,"1,275.00",REDZ PRIVATE HIRE.
Regeneration and Local Services,Environmental Services,Supplies and Services,304221,Equipment and Materials,07/06/2019,3599022-719676,644.26,RICKERBY LTD.
Children and Young Peoples Services,Head of Education and Skills,Transport,230008,Contract Hire,07/06/2019,3599024-266,867.00,ROBBIE`S PRIVATE HIRE.
Children and Young Peoples Services,Head of Education and Skills,Transport,230008,Contract Hire,07/06/2019,3599024-267,"1,088.00",ROBBIE`S PRIVATE HIRE.
Children and Young Peoples Services,Head of Education and Skills,Transport,230016,Contract Hire,07/06/2019,3599024-268,"1,453.00",ROBBIE`S PRIVATE HIRE.
Children and Young Peoples Services,Head of Education and Skills,Transport,230008,Contract Hire,07/06/2019,3599024-269,558.45,ROBBIE`S PRIVATE HIRE.
Adult and Health Services,Head of Adults,Transport,230005,Contract Hire,07/06/2019,3599026-009-DM149,"1,020.00",RONS TAXI (CHESTER LE ST).
Children and Young Peoples Services,Head of Education and Skills,Transport,230008,Contract Hire,07/06/2019,3599026-009-N050,"1,852.50",RONS TAXI (CHESTER LE ST).
Children and Young Peoples Services,Head of Education and Skills,Transport,230008,Contract Hire,07/06/2019,3599034-75131,"2,040.00",SHOTTON PRIVATE HIRE.
Dedicated Schools Grant BG0015,DSG High Needs Block,Transport,230010,Contract Hire,07/06/2019,3599034-75132,"2,040.00",SHOTTON PRIVATE HIRE.
Dedicated Schools Grant BG0015,DSG High Needs Block,Transport,230010,Contract Hire,07/06/2019,3599034-75134,"2,210.00",SHOTTON PRIVATE HIRE.
Children and Young Peoples Services,Head of Education and Skills,Transport,230012,Contract Hire,07/06/2019,3599038-765A,"2,093.04",SJ MACKENZIE T/A SCOTTS TAXIS.
Children and Young Peoples Services,Head of Education and Skills,Transport,230008,Contract Hire,07/06/2019,3599038-770A,"1,808.32",SJ MACKENZIE T/A SCOTTS TAXIS.
Children and Young Peoples Services,Head of Education and Skills,Transport,230008,Contract Hire,07/06/2019,3599038-771A,"1,308.15",SJ MACKENZIE T/A SCOTTS TAXIS.
Children and Young Peoples Services,Head of Education and Skills,Transport,230008,Contract Hire,07/06/2019,3599038-772A,"1,744.20",SJ MACKENZIE T/A SCOTTS TAXIS.
Children and Young Peoples Services,Head of Education and Skills,Transport,230007,Contract Hire,07/06/2019,3599055-05/2019/006,558.11,TARNS TAXIS LTD.
Children and Young Peoples Services,Head of Early Help Inclusion & Vulnerable Children.,Employees,080025,Agency Staff,07/06/2019,3599057-2291309,849.12,TEACHING PERSONNEL LTD.
Children and Young Peoples Services,Head of Education and Skills,Supplies and Services,338094,Services,07/06/2019,3599058-5906,571.25,THE DURHAM CENTRE LTD.
Regeneration and Local Services,Technical Services CM0300,Stock A926,926900,Stock in hand-Inventory system,07/06/2019,3599062-NSIN00012612,754.34,THOMAS OWEN & SONS (NEWCASTLE) LTD.
Dedicated Schools Grant BG0015,DSG High Needs Block,Third Party Payments 4THIRD,440080,Other third party payments E440,07/06/2019,3599067-SLINV/70004759,"5,266.58",TYNE COAST COLLEGE.
Children and Young Peoples Services,Head of Childrens Social Care,Third Party Payments 4THIRD,440038,Other third party payments E440,07/06/2019,3599079-INV-0251,"1,302.33",WE CARE RECRUITMENT SOLUTIONS LTD.
Children and Young Peoples Services,Head of Childrens Social Care,Third Party Payments 4THIRD,440038,Other third party payments E440,07/06/2019,3599079-INV-0254,"1,249.80",WE CARE RECRUITMENT SOLUTIONS LTD.
Children and Young Peoples Services,Head of Childrens Social Care,Third Party Payments 4THIRD,440038,Other third party payments E440,07/06/2019,3599079-INV-0288,"2,426.16",WE CARE RECRUITMENT SOLUTIONS LTD.
Children and Young Peoples Services,Head of Childrens Social Care,Third Party Payments 4THIRD,440038,Other third party payments E440,07/06/2019,3599079-INV-0291,"1,991.83",WE CARE RECRUITMENT SOLUTIONS LTD.
Children and Young Peoples Services,Head of Childrens Social Care,Third Party Payments 4THIRD,440038,Other third party payments E440,07/06/2019,3599079-INV-0294,"1,207.03",WE CARE RECRUITMENT SOLUTIONS LTD.
Children and Young Peoples Services,Head of Childrens Social Care,Third Party Payments 4THIRD,440038,Other third party payments E440,07/06/2019,3599079-INV-0296,"3,171.13",WE CARE RECRUITMENT SOLUTIONS LTD.
Children and Young Peoples Services,Head of Childrens Social Care,Third Party Payments 4THIRD,425021,Rendered by Voluntary Organisations,07/06/2019,3599079-INV-0249,"4,673.21",WE CARE RECRUITMENT SOLUTIONS LTD.
Children and Young Peoples Services,Head of Childrens Social Care,Third Party Payments 4THIRD,425021,Rendered by Voluntary Organisations,07/06/2019,3599079-INV-0252,"2,446.77",WE CARE RECRUITMENT SOLUTIONS LTD.
Children and Young Peoples Services,Head of Childrens Social Care,Third Party Payments 4THIRD,425021,Rendered by Voluntary Organisations,07/06/2019,3599079-INV-0275,645.24,WE CARE RECRUITMENT SOLUTIONS LTD.
Children and Young Peoples Services,Head of Childrens Social Care,Third Party Payments 4THIRD,425021,Rendered by Voluntary Organisations,07/06/2019,3599079-INV-0289,"2,728.33",WE CARE RECRUITMENT SOLUTIONS LTD.
Children and Young Peoples Services,Head of Childrens Social Care,Third Party Payments 4THIRD,425021,Rendered by Voluntary Organisations,07/06/2019,3599079-INV-0292,585.59,WE CARE RECRUITMENT SOLUTIONS LTD.
Children and Young Peoples Services,Head of Childrens Social Care,Third Party Payments 4THIRD,425021,Rendered by Voluntary Organisations,07/06/2019,3599079-INV-0299,"5,141.09",WE CARE RECRUITMENT SOLUTIONS LTD.
Children and Young Peoples Services,Head of Childrens Social Care,Third Party Payments 4THIRD,425021,Rendered by Voluntary Organisations,07/06/2019,3599079-INV10726,"5,051.19",WE CARE RECRUITMENT SOLUTIONS LTD.
Regeneration and Local Services,Corporate Property and Land,Premises,150015,Apportioned Exps of Operational Blds,07/06/2019,3599080-891775,690.69,WERNICK HIRE LTD.
Regeneration and Local Services,Corporate Property and Land,Supplies and Services,304221,Equipment and Materials,07/06/2019,3599084-60546428,"5,784.26",WOLSELEY UK LTD.
Regeneration and Local Services,Technical Services CM0300,Stock A926,926900,Stock in hand-Inventory system,07/06/2019,3599084-60546429,"1,049.16",WOLSELEY UK LTD.
Resources BK0010,Digital and Customer Services,Vehicles Equipment Furniture and Fittings,912701,Computer equipment,07/06/2019,3599087-KR42446,"4,252.60",XMA LTD.
Dedicated Schools Grant BG0015,DSG High Needs Block,Transport,230009,Contract Hire,10/06/2019,3599093-51917,"1,410.00",24/7 TAXI SERVICES LTD.
Regeneration and Local Services,Environmental Services,Supplies and Services,304221,Equipment and Materials,10/06/2019,3599102-009067,845.70,A HILL & SONS LTD.
Regeneration and Local Services,Technical Services CM0300,Supplies and Services,304221,Equipment and Materials,10/06/2019,3599105-28130455,"1,469.42",AGGREGATE INDUSTRIES UK LTD.
Regeneration and Local Services,Technical Services CM0300,Supplies and Services,304221,Equipment and Materials,10/06/2019,3599105-28130456,"1,135.64",AGGREGATE INDUSTRIES UK LTD.
Regeneration and Local Services,Technical Services CM0300,Supplies and Services,304221,Equipment and Materials,10/06/2019,3599105-28158521,"1,327.92",AGGREGATE INDUSTRIES UK LTD.
Regeneration and Local Services,Technical Services CM0300,Supplies and Services,304221,Equipment and Materials,10/06/2019,3599105-28190565,573.70,AGGREGATE INDUSTRIES UK LTD.
Regeneration and Local Services,Technical Services CM0300,Supplies and Services,304221,Equipment and Materials,10/06/2019,3599105-28209072,770.80,AGGREGATE INDUSTRIES UK LTD.
Regeneration and Local Services,Technical Services CM0300,Supplies and Services,304221,Equipment and Materials,10/06/2019,3599105-28254068,"1,075.40",AGGREGATE INDUSTRIES UK LTD.
Regeneration and Local Services,Technical Services CM0300,Supplies and Services,304221,Equipment and Materials,10/06/2019,3599105-28260522,915.56,AGGREGATE INDUSTRIES UK LTD.
Regeneration and Local Services,Technical Services CM0300,Supplies and Services,304221,Equipment and Materials,10/06/2019,3599105-28260523,"1,003.40",AGGREGATE INDUSTRIES UK LTD.
Regeneration and Local Services,Technical Services CM0300,Supplies and Services,304221,Equipment and Materials,10/06/2019,3599105-28260524,583.48,AGGREGATE INDUSTRIES UK LTD.
Regeneration and Local Services,Technical Services CM0300,Supplies and Services,304221,Equipment and Materials,10/06/2019,3599105-28260525,"1,155.36",AGGREGATE INDUSTRIES UK LTD.
Regeneration and Local Services,Technical Services CM0300,Supplies and Services,304221,Equipment and Materials,10/06/2019,3599105-28260526,987.16,AGGREGATE INDUSTRIES UK LTD.
Regeneration and Local Services,Technical Services CM0300,Supplies and Services,304221,Equipment and Materials,10/06/2019,3599105-28267709,"1,692.96",AGGREGATE INDUSTRIES UK LTD.
Regeneration and Local Services,Corporate Property and Land,Supplies and Services,304221,Equipment and Materials,10/06/2019,3599110-17244,"1,866.61",AMBIC LTD.
Children and Young Peoples Services,Head of Early Help Inclusion & Vulnerable Children.,Premises,108099,Service Repairs and Maintenance,10/06/2019,3599110-17240,850.00,AMBIC LTD.
Regeneration and Local Services,Technical Services CM0300,Supplies and Services,304221,Equipment and Materials,10/06/2019,3599115-13843,"4,843.80",APOLLO PRODUCTS LTD.
Regeneration and Local Services,Technical Services CM0300,Supplies and Services,304221,Equipment and Materials,10/06/2019,3599131-BMPR/251/BJW,"2,040.00",BISHOP MIDDLEHAM PLANT & RECYCLING LTD.
Children and Young Peoples Services,Head of Education and Skills,Transport,230008,Contract Hire,10/06/2019,3599133-031,"2,960.00",BL CARS.
Children and Young Peoples Services,Head of Education and Skills,Supplies and Services,342053,Computers and Communications,10/06/2019,3599134-1319393,"1,199.99",BLACKBOARD INTERNATIONAL BV.
Children and Young Peoples Services,Head of Education and Skills,Transport,230008,Contract Hire,10/06/2019,3599136-7085-6/6/19,"1,826.99",BOBBY DOVE PRIVATE HIRE.
Adult and Health Services,Head of Adults,Third Party Payments 4THIRD,470101,Purchase of Care,10/06/2019,3599147-289/19,"1,110.00",BUTTERWICK LTD..
Adult and Health Services,Head of Adults,Third Party Payments 4THIRD,470101,Purchase of Care,10/06/2019,3599147-321/19,"1,480.00",BUTTERWICK LTD..
Children and Young Peoples Services,Head of Childrens Social Care,Third Party Payments 4THIRD,425020,Rendered by Voluntary Organisations,10/06/2019,3599147-014/20,740.00,BUTTERWICK LTD..
Children and Young Peoples Services,Head of Childrens Social Care,Third Party Payments 4THIRD,425020,Rendered by Voluntary Organisations,10/06/2019,3599147-015/20,"1,110.00",BUTTERWICK LTD..
Children and Young Peoples Services,Head of Childrens Social Care,Third Party Payments 4THIRD,425020,Rendered by Voluntary Organisations,10/06/2019,3599147-281/19,740.00,BUTTERWICK LTD..
Children and Young Peoples Services,Head of Childrens Social Care,Third Party Payments 4THIRD,425020,Rendered by Voluntary Organisations,10/06/2019,3599147-282/19,"2,960.00",BUTTERWICK LTD..
Children and Young Peoples Services,Head of Childrens Social Care,Third Party Payments 4THIRD,425020,Rendered by Voluntary Organisations,10/06/2019,3599147-284/19,740.00,BUTTERWICK LTD..
Children and Young Peoples Services,Head of Childrens Social Care,Third Party Payments 4THIRD,425020,Rendered by Voluntary Organisations,10/06/2019,3599147-286/19,"1,110.00",BUTTERWICK LTD..
Children and Young Peoples Services,Head of Childrens Social Care,Third Party Payments 4THIRD,425020,Rendered by Voluntary Organisations,10/06/2019,3599147-287/19,740.00,BUTTERWICK LTD..
Children and Young Peoples Services,Head of Childrens Social Care,Third Party Payments 4THIRD,425020,Rendered by Voluntary Organisations,10/06/2019,3599147-288/19,740.00,BUTTERWICK LTD..
Children and Young Peoples Services,Head of Childrens Social Care,Third Party Payments 4THIRD,425020,Rendered by Voluntary Organisations,10/06/2019,3599147-290/19,740.00,BUTTERWICK LTD..
Children and Young Peoples Services,Head of Childrens Social Care,Third Party Payments 4THIRD,425020,Rendered by Voluntary Organisations,10/06/2019,3599147-291/19,"1,480.00",BUTTERWICK LTD..
Children and Young Peoples Services,Head of Childrens Social Care,Third Party Payments 4THIRD,425020,Rendered by Voluntary Organisations,10/06/2019,3599147-320/19,740.00,BUTTERWICK LTD..
Children and Young Peoples Services,Head of Childrens Social Care,Third Party Payments 4THIRD,425020,Rendered by Voluntary Organisations,10/06/2019,3599147-322/19,740.00,BUTTERWICK LTD..
Children and Young Peoples Services,Head of Childrens Social Care,Third Party Payments 4THIRD,425020,Rendered by Voluntary Organisations,10/06/2019,3599147-323/19,740.00,BUTTERWICK LTD..
Children and Young Peoples Services,Head of Childrens Social Care,Third Party Payments 4THIRD,425020,Rendered by Voluntary Organisations,10/06/2019,3599147-324/19,740.00,BUTTERWICK LTD..
Children and Young Peoples Services,Head of Childrens Social Care,Third Party Payments 4THIRD,425020,Rendered by Voluntary Organisations,10/06/2019,3599147-325/19,"2,220.00",BUTTERWICK LTD..
Children and Young Peoples Services,Head of Childrens Social Care,Third Party Payments 4THIRD,425020,Rendered by Voluntary Organisations,10/06/2019,3599147-326/19,"1,110.00",BUTTERWICK LTD..
Children and Young Peoples Services,Head of Childrens Social Care,Third Party Payments 4THIRD,425020,Rendered by Voluntary Organisations,10/06/2019,3599147-327/19,740.00,BUTTERWICK LTD..
Adult and Health Services,Commissioning inc Supporting People,Third Party Payments 4THIRD,479111,Purchase of Care,10/06/2019,3599153-4066,"5,599.85",CARERS FEDERATION LTD.
Regeneration and Local Services,Technical Services CM0300,Stock A926,926900,Stock in hand-Inventory system,10/06/2019,3599164-519180,"1,440.00",CMT EQUIPMENT LTD.
Regeneration and Local Services,Technical Services CM0300,Stock A926,926900,Stock in hand-Inventory system,10/06/2019,3599164-528967,574.92,CMT EQUIPMENT LTD.
Regeneration and Local Services,Corporate Property and Land,Supplies and Services,304259,Equipment and Materials,10/06/2019,3599174-32225,"1,238.10",COUNT UP LTD.
Regeneration and Local Services,Environmental Services,Supplies and Services,304221,Equipment and Materials,10/06/2019,3599176-3022038,"11,856.00",CRAEMER UK LTD.
Regeneration and Local Services,Environmental Services,Supplies and Services,304221,Equipment and Materials,10/06/2019,3599176-3022039,"11,856.00",CRAEMER UK LTD.
Regeneration and Local Services,Environmental Services,Supplies and Services,304221,Equipment and Materials,10/06/2019,3599176-3022040,"11,856.00",CRAEMER UK LTD.
Regeneration and Local Services,Environmental Services,Supplies and Services,304221,Equipment and Materials,10/06/2019,3599176-3022041,"1,450.00",CRAEMER UK LTD.
Resources BK0010,Digital and Customer Services,Vehicles Equipment Furniture and Fittings,912701,Computer equipment,10/06/2019,3599182-7402529530,"2,290.12",DELL COMPUTER CORPORATION LTD.
Dedicated Schools Grant BG0015,DSG High Needs Block,Transport,230010,Contract Hire,10/06/2019,3599192-01062019/6,"3,871.00",EAST DURHAM TAXIS.
Regeneration and Local Services,Corporate Property and Land,Supplies and Services,304221,Equipment and Materials,10/06/2019,3599196-059-243745,933.50,EDMUNDSON ELECTRICAL LTD.
Regeneration and Local Services,Corporate Property and Land,Supplies and Services,304221,Equipment and Materials,10/06/2019,3599196-059-244489,551.78,EDMUNDSON ELECTRICAL LTD.
Regeneration and Local Services,Corporate Property and Land,Supplies and Services,304221,Equipment and Materials,10/06/2019,3599205-SIN017640,"3,743.69",ENERGY CONSERVATION SOLUTIONS LTD T/A ENERGYS.
Dedicated Schools Grant BG0015,DSG High Needs Block,Supplies and Services,304259,Equipment and Materials,10/06/2019,3599218-168743,540.00,G & S SMIRTHWAITE LTD.
Regeneration and Local Services,Technical Services CM0300,Supplies and Services,304357,Equipment and Materials,10/06/2019,3599219-DCC260519,"16,798.04",GAP GROUP LTD.
Regeneration and Local Services,Technical Services CM0300,Supplies and Services,304221,Equipment and Materials,10/06/2019,3599225-SI774746,"2,068.00",GLASDON UK LTD.
Regeneration and Local Services,Technical Services CM0300,Supplies and Services,304221,Equipment and Materials,10/06/2019,3599225-SI774763,"3,365.44",GLASDON UK LTD.
Regeneration and Local Services,Corporate Property and Land,Supplies and Services,304221,Equipment and Materials,10/06/2019,3599225-SI774901,"1,264.78",GLASDON UK LTD.
Regeneration and Local Services,Technical Services CM0300,Stock A926,926900,Stock in hand-Inventory system,10/06/2019,3599225-SI774940,994.00,GLASDON UK LTD.
Regeneration and Local Services,Culture Sport and Tourism,Supplies and Services,384199,Miscellaneous Expenses,10/06/2019,3599233-009,"1,375.00",HARAMBEE PASADIA CIC.
Regeneration and Local Services,Culture Sport and Tourism,Supplies and Services,384302,Miscellaneous Expenses,10/06/2019,3599233-010,500.00,HARAMBEE PASADIA CIC.
Children and Young Peoples Services,Head of Education and Skills,Transport,230008,Contract Hire,10/06/2019,3599237-602,"1,530.00",HEPWORTHS TRAVEL.
Children and Young Peoples Services,Head of Education and Skills,Transport,230008,Contract Hire,10/06/2019,3599237-603,"1,530.00",HEPWORTHS TRAVEL.
Children and Young Peoples Services,Head of Education and Skills,Transport,230008,Contract Hire,10/06/2019,3599237-604,"1,918.62",HEPWORTHS TRAVEL.
Resources BK0010,Digital and Customer Services,Supplies and Services,304303,Equipment and Materials,10/06/2019,3599244-SIN446995,531.00,INFORMATION & DATA NETWORK SUPPLIES LTD (IDN).
Resources BK0010,Digital and Customer Services,Stock A926,926900,Stock in hand-Inventory system,10/06/2019,3599244-SIN446983,900.00,INFORMATION & DATA NETWORK SUPPLIES LTD (IDN).
Resources BK0010,Digital and Customer Services,Vehicles Equipment Furniture and Fittings,912701,Computer equipment,10/06/2019,3599245-4375517,600.00,INSIGHT DIRECT (UK) LTD.
Resources BK0010,Finance & Transactional Services,Supplies and Services,304259,Equipment and Materials,10/06/2019,3599245-4378061,"1,556.60",INSIGHT DIRECT (UK) LTD.
Regeneration and Local Services,Technical Services CM0300,Third Party Payments 4THIRD,460109,Contract Payments,10/06/2019,3599246-INS1745,"1,840.00",INSPECTORATE LTD T/A ROCH NDT SERVICES.
Regeneration and Local Services,Technical Services CM0300,Third Party Payments 4THIRD,430100,Rendered by Private Contractors,10/06/2019,3599250-22935,703.53,JACK COUPE & SONS LTD T/A COUPE LINE.
Regeneration and Local Services,Technical Services CM0300,Stock A926,926900,Stock in hand-Inventory system,10/06/2019,3599259-BII288230,776.62,JT DOVE LTD.
Regeneration and Local Services,Technical Services CM0300,Stock A926,926900,Stock in hand-Inventory system,10/06/2019,3599259-G0I1626/D,539.36,JT DOVE LTD.
Regeneration and Local Services,Technical Services CM0300,Supplies and Services,384199,Miscellaneous Expenses,10/06/2019,3599268-82378,831.00,KING SCIENTIFIC.
Regeneration and Local Services,Development and Housing,Supplies and Services,338094,Services,10/06/2019,3599273-18003106,700.00,LEISURE IN THE COMMUNITY LTD.*
Children and Young Peoples Services,Head of Education and Skills,Supplies and Services,384199,Miscellaneous Expenses,10/06/2019,3599279-054,"6,750.00",LK HEALTH & WELLBEING.
Regeneration and Local Services,Corporate Property and Land,Supplies and Services,304221,Equipment and Materials,10/06/2019,3599282-4534779,"1,067.30",LONDON GENERAL SALES LTD.
Regeneration and Local Services,Technical Services CM0300,Supplies and Services,304221,Equipment and Materials,10/06/2019,3599291-Z000308768,"3,922.68",MARSHALLS MONO LTD.
Regeneration and Local Services,Technical Services CM0300,Supplies and Services,304221,Equipment and Materials,10/06/2019,3599291-Z000309945,"3,683.50",MARSHALLS MONO LTD.
Regeneration and Local Services,Technical Services CM0300,Supplies and Services,304221,Equipment and Materials,10/06/2019,3599291-Z000310337,"3,653.50",MARSHALLS MONO LTD.
Regeneration and Local Services,Corporate Property and Land,Third Party Payments 4THIRD,430100,Rendered by Private Contractors,10/06/2019,3599293-43439,"1,004.50",MCVICKERS LTD.
Children and Young Peoples Services,Head of Education and Skills,Supplies and Services,338027,Services,10/06/2019,3599294-DCC03,"1,425.00",MIKE REDSHAW EDUCATION CONSULTANT.
Children and Young Peoples Services,Head of Education and Skills,Transport,230006,Contract Hire,10/06/2019,3599300-COLL05-19,"1,264.80",MR CT WALKER T/A CW TAXIS.
Adult and Health Services,Head of Adults,Transport,230005,Contract Hire,10/06/2019,3599301-0519,872.10,MR D DONNELLY.
Dedicated Schools Grant BG0015,DSG High Needs Block,Transport,230010,Contract Hire,10/06/2019,3599304-WOOD0419,702.00,MR STUART SCOTT T/A AIRPORT CARS DURHAM
Dedicated Schools Grant BG0015,DSG High Needs Block,Transport,230010,Contract Hire,10/06/2019,3599304-WOOD0519,702.00,MR STUART SCOTT T/A AIRPORT CARS DURHAM
Resources BK0010,Finance & Transactional Services,Supplies and Services,332029,Printing Stationery and Gen Off Exps,10/06/2019,3599312-92572113,"2,685.00",NEOPOST LTD.
Adult and Health Services,Public Health CC0450,Supplies and Services,384155,Miscellaneous Expenses,10/06/2019,3599315-1000060131,"71,116.51",NHS BUSINESS SERVICES AUTHORITY (NHSBSA).
Regeneration and Local Services,Environmental Services,Supplies and Services,338066,Services,10/06/2019,3599321-1363,"9,970.20",NORTH EAST ENVIRONMENT NETWORK LTD T/A (OASES).
Regeneration and Local Services,Development and Housing,Supplies and Services,384437,Miscellaneous Expenses,10/06/2019,3599336-F66590350/2,770.00,P & O FERRIES HOLDINGS LTD.
Regeneration and Local Services,Technical Services CM0300,Stock A926,926900,Stock in hand-Inventory system,10/06/2019,3599340-XL240325,611.06,PARK ELECTRICAL DISTRIBUTORS LTD.
Regeneration and Local Services,Business Durham CL0850,Supplies and Services,384071,Miscellaneous Expenses,10/06/2019,3599341-25653303,507.50,PARK RETAIL LTD.
Resources BK0010,Legal & Democratic Services,Supplies and Services,338042,Services,10/06/2019,3599342-298951-17/5/19,750.00,PARKLANE PLOWDEN CHAMBERS (BARRISTERS).
Children and Young Peoples Services,Head of Education and Skills,Transport,230008,Contract Hire,10/06/2019,3599348-0764,590.96,PETER`S PRIVATE HIRE/PETER BEST.
Children and Young Peoples Services,Head of Education and Skills,Transport,230008,Contract Hire,10/06/2019,3599348-0765,612.00,PETER`S PRIVATE HIRE/PETER BEST.
Children and Young Peoples Services,Head of Education and Skills,Transport,230008,Contract Hire,10/06/2019,3599348-0773,"1,343.00",PETER`S PRIVATE HIRE/PETER BEST.
Regeneration and Local Services,Corporate Property and Land,Supplies and Services,304221,Equipment and Materials,10/06/2019,3599353-INV232262,"1,061.76",POINTER FIRE LTD.
Regeneration and Local Services,Technical Services CM0300,Stock A926,926900,Stock in hand-Inventory system,10/06/2019,3599354-73572,656.40,POLLOCK LIFTS.
Regeneration and Local Services,Culture Sport and Tourism,Supplies and Services,338047,Services,10/06/2019,3599365-RED248,"2,684.96",RED ENTS LTD.
Children and Young Peoples Services,Head of Education and Skills,Transport,230008,Contract Hire,10/06/2019,3599370-32353,662.83,RICHARD SHANKS T/A RICHIES TAXIS.
Regeneration and Local Services,Environmental Services,Supplies and Services,304221,Equipment and Materials,10/06/2019,3599371-RSIN0300813,"2,650.00",RIGBY TAYLOR LTD.
Regeneration and Local Services,Environmental Services,Supplies and Services,304221,Equipment and Materials,10/06/2019,3599371-RSIN0300884,530.00,RIGBY TAYLOR LTD.
Regeneration and Local Services,Environmental Services,Supplies and Services,304221,Equipment and Materials,10/06/2019,3599371-RSIN0301040,"1,649.80",RIGBY TAYLOR LTD.
Regeneration and Local Services,Corporate Property and Land,Third Party Payments 4THIRD,430100,Rendered by Private Contractors,10/06/2019,3599375-51565,"2,545.00",RJ UTILITY SERVICES LTD.
Regeneration and Local Services,Corporate Property and Land,Third Party Payments 4THIRD,430100,Rendered by Private Contractors,10/06/2019,3599375-51568,"3,645.00",RJ UTILITY SERVICES LTD.
Regeneration and Local Services,Culture Sport and Tourism,Third Party Payments 4THIRD,430131,Rendered by Private Contractors,10/06/2019,3599386-197A,580.00,SANDRA WATSON T/A HEART & SOLE FITNESS.
Children and Young Peoples Services,Head of Education and Skills,Transport,230008,Contract Hire,10/06/2019,3599400-75136,"1,836.00",SHOTTON PRIVATE HIRE.
Children and Young Peoples Services,Head of Education and Skills,Transport,230008,Contract Hire,10/06/2019,3599400-75137,"2,875.28",SHOTTON PRIVATE HIRE.
Regeneration and Local Services,Culture Sport and Tourism,Supplies and Services,304259,Equipment and Materials,10/06/2019,3599407-00360276,"2,999.06",STAGE ELECTRICS PARTNERSHIP LTD.
Regeneration and Local Services,Culture Sport and Tourism,Supplies and Services,304259,Equipment and Materials,10/06/2019,3599407-00360277,941.00,STAGE ELECTRICS PARTNERSHIP LTD.
Regeneration and Local Services,Culture Sport and Tourism,Supplies and Services,304259,Equipment and Materials,10/06/2019,3599407-00360278,559.32,STAGE ELECTRICS PARTNERSHIP LTD.
Children and Young Peoples Services,Head of Early Help Inclusion & Vulnerable Children.,Supplies and Services,384871,Miscellaneous Expenses,10/06/2019,3599412-17,"1,260.00",STEVEN SINCLAIR T/A SINCLAIR MECHANICAL SERVICES.
Children and Young Peoples Services,Head of Early Help Inclusion & Vulnerable Children.,Transport,240045,Car allowances E240,10/06/2019,3599416-9678,942.34,SUPPORTIVE SRC LTD.
Regeneration and Local Services,Technical Services CM0300,Stock A926,926900,Stock in hand-Inventory system,10/06/2019,3599421-9040128347,705.29,TARMAC TRADING LTD.
Dedicated Schools Grant BG0015,DSG High Needs Block,Transport,230010,Contract Hire,10/06/2019,3599422-05/2019/009,"1,140.00",TARNS TAXIS LTD.
Adult and Health Services,Commissioning inc Supporting People,Third Party Payments 4THIRD,479102,Purchase of Care,10/06/2019,3599430-39218,"4,926.25",THE APPROPRIATE ADULT SERVICE LTD.
Regeneration and Local Services,Development and Housing,Supplies and Services,384999,Miscellaneous Expenses,10/06/2019,3599433-SI1000001539,"1,106.00",THE CYRENIANS LTD T/A CHANGING LIVES.
Regeneration and Local Services,Environmental Services,Premises,108099,Service Repairs and Maintenance,10/06/2019,3599435-0247,"1,383.34",THE SKILL MILL LTD.
Regeneration and Local Services,Environmental Services,Premises,108099,Service Repairs and Maintenance,10/06/2019,3599435-0248,"1,970.83",THE SKILL MILL LTD.
Children and Young Peoples Services,Head of Education and Skills,Supplies and Services,384199,Miscellaneous Expenses,10/06/2019,3599438-RITHIR/00012013,581.07,THIRTEEN HOUSING GROUP LTD.
Resources BK0010,Digital and Customer Services,Supplies and Services,304303,Equipment and Materials,10/06/2019,3599447-127224,"1,110.30",TP ELECTRICAL SUPPLIES & FIXINGS LTD.
Regeneration and Local Services,Culture Sport and Tourism,Supplies and Services,304259,Equipment and Materials,10/06/2019,3599454-US2570,560.00,ULTIMATE SUPPLIES (NORTH) LTD.
Regeneration and Local Services,Technical Services CM0300,Supplies and Services,304221,Equipment and Materials,10/06/2019,3599465-PSI-778756,"1,044.00",WATCO UK LTD.
Regeneration and Local Services,Development and Housing,Supplies and Services,384437,Miscellaneous Expenses,10/06/2019,3599468-UOTR4528413,"8,429.50",WESTERN UNION BUSINESS SOLUTIONS.
Regeneration and Local Services,Technical Services CM0300,Stock A926,926900,Stock in hand-Inventory system,10/06/2019,3599472-60597589,"1,140.83",WOLSELEY UK LTD.
Regeneration and Local Services,Technical Services CM0300,Stock A926,926900,Stock in hand-Inventory system,10/06/2019,3599472-60613150,715.89,WOLSELEY UK LTD.
Resources BK0010,Digital and Customer Services,Stock A926,926900,Stock in hand-Inventory system,10/06/2019,3599475-KR48159,800.00,XMA LTD.
Adult and Health Services,Head of Adults,Third Party Payments 4THIRD,470101,Purchase of Care,11/06/2019,3600511-2554178,"2,369.64",A CHARLES THOMAS (CARE) LTD.
Adult and Health Services,Head of Adults,Third Party Payments 4THIRD,470101,Purchase of Care,11/06/2019,3600511-2554179,592.41,A CHARLES THOMAS (CARE) LTD.
Adult and Health Services,Head of Adults,Third Party Payments 4THIRD,470101,Purchase of Care,11/06/2019,3600511-2554180,846.30,A CHARLES THOMAS (CARE) LTD.
Adult and Health Services,Head of Adults,Third Party Payments 4THIRD,470101,Purchase of Care,11/06/2019,3600511-2554181,"2,369.64",A CHARLES THOMAS (CARE) LTD.
Adult and Health Services,Head of Adults,Third Party Payments 4THIRD,470101,Purchase of Care,11/06/2019,3600511-2554182,"2,369.64",A CHARLES THOMAS (CARE) LTD.
Adult and Health Services,Head of Adults,Third Party Payments 4THIRD,470101,Purchase of Care,11/06/2019,3600511-2554183,"2,369.64",A CHARLES THOMAS (CARE) LTD.
Adult and Health Services,Head of Adults,Third Party Payments 4THIRD,470101,Purchase of Care,11/06/2019,3600511-2554184,"2,369.64",A CHARLES THOMAS (CARE) LTD.
Adult and Health Services,Head of Adults,Third Party Payments 4THIRD,470101,Purchase of Care,11/06/2019,3600511-2554185,"2,369.64",A CHARLES THOMAS (CARE) LTD.
Adult and Health Services,Head of Adults,Third Party Payments 4THIRD,470101,Purchase of Care,11/06/2019,3600511-2554187,"2,369.64",A CHARLES THOMAS (CARE) LTD.
Adult and Health Services,Head of Adults,Third Party Payments 4THIRD,470101,Purchase of Care,11/06/2019,3600511-2554188,"1,269.45",A CHARLES THOMAS (CARE) LTD.
Adult and Health Services,Head of Adults,Third Party Payments 4THIRD,470101,Purchase of Care,11/06/2019,3600511-2554189,"1,015.56",A CHARLES THOMAS (CARE) LTD.
Adult and Health Services,Head of Adults,Third Party Payments 4THIRD,470101,Purchase of Care,11/06/2019,3600511-2554190,"1,100.19",A CHARLES THOMAS (CARE) LTD.
Adult and Health Services,Head of Adults,Third Party Payments 4THIRD,470101,Purchase of Care,11/06/2019,3600511-2554191,"2,369.64",A CHARLES THOMAS (CARE) LTD.
Adult and Health Services,Head of Adults,Third Party Payments 4THIRD,470101,Purchase of Care,11/06/2019,3600511-2554192,"1,354.08",A CHARLES THOMAS (CARE) LTD.
Adult and Health Services,Head of Adults,Third Party Payments 4THIRD,470101,Purchase of Care,11/06/2019,3600511-2554193,"2,369.64",A CHARLES THOMAS (CARE) LTD.
Adult and Health Services,Head of Adults,Third Party Payments 4THIRD,470101,Purchase of Care,11/06/2019,3600511-2554194,"2,369.64",A CHARLES THOMAS (CARE) LTD.
Adult and Health Services,Head of Adults,Third Party Payments 4THIRD,470101,Purchase of Care,11/06/2019,3600511-2554195,"2,369.64",A CHARLES THOMAS (CARE) LTD.
Adult and Health Services,Head of Adults,Third Party Payments 4THIRD,470101,Purchase of Care,11/06/2019,3600511-2554196,"2,369.64",A CHARLES THOMAS (CARE) LTD.
Adult and Health Services,Head of Adults,Third Party Payments 4THIRD,470101,Purchase of Care,11/06/2019,3600511-2554197,"2,369.64",A CHARLES THOMAS (CARE) LTD.
Adult and Health Services,Head of Adults,Third Party Payments 4THIRD,470101,Purchase of Care,11/06/2019,3600511-2554198,"2,657.20",A CHARLES THOMAS (CARE) LTD.
Adult and Health Services,Head of Adults,Third Party Payments 4THIRD,470101,Purchase of Care,11/06/2019,3600511-2554199,"2,369.64",A CHARLES THOMAS (CARE) LTD.
Adult and Health Services,Head of Adults,Third Party Payments 4THIRD,470101,Purchase of Care,11/06/2019,3600511-2554200,"2,369.64",A CHARLES THOMAS (CARE) LTD.
Adult and Health Services,Head of Adults,Third Party Payments 4THIRD,470101,Purchase of Care,11/06/2019,3600511-2554201,"2,369.64",A CHARLES THOMAS (CARE) LTD.
Adult and Health Services,Head of Adults,Third Party Payments 4THIRD,470101,Purchase of Care,11/06/2019,3600511-2554202,"2,369.64",A CHARLES THOMAS (CARE) LTD.
Adult and Health Services,Head of Adults,Third Party Payments 4THIRD,470101,Purchase of Care,11/06/2019,3600511-2554203,"2,369.64",A CHARLES THOMAS (CARE) LTD.
Adult and Health Services,Head of Adults,Third Party Payments 4THIRD,470101,Purchase of Care,11/06/2019,3600511-2554204,"2,369.64",A CHARLES THOMAS (CARE) LTD.
Adult and Health Services,Head of Adults,Third Party Payments 4THIRD,470101,Purchase of Care,11/06/2019,3600511-2554205,"2,369.64",A CHARLES THOMAS (CARE) LTD.
Adult and Health Services,Head of Adults,Third Party Payments 4THIRD,470101,Purchase of Care,11/06/2019,3600511-2554206,"2,369.64",A CHARLES THOMAS (CARE) LTD.
Adult and Health Services,Head of Adults,Third Party Payments 4THIRD,470101,Purchase of Care,11/06/2019,3600511-2558285,"1,523.34",A CHARLES THOMAS (CARE) LTD.
Children and Young Peoples Services,Head of Childrens Social Care,Transport,230005,Contract Hire,11/06/2019,3599483-X46/ZB,700.00,AABAT TAXIS.
Children and Young Peoples Services,Head of Childrens Social Care,Transport,230005,Contract Hire,11/06/2019,3599483-X48/ZC,"1,080.00",AABAT TAXIS.
Children and Young Peoples Services,Head of Childrens Social Care,Transport,230005,Contract Hire,11/06/2019,3599483-X48/ZE,515.00,AABAT TAXIS.
Children and Young Peoples Services,Head of Childrens Social Care,Transport,230005,Contract Hire,11/06/2019,3599483-X49/ZF,735.00,AABAT TAXIS.
Children and Young Peoples Services,Head of Childrens Social Care,Transport,230005,Contract Hire,11/06/2019,3599483-X54/ZL,595.00,AABAT TAXIS.
Children and Young Peoples Services,Head of Childrens Social Care,Transport,230005,Contract Hire,11/06/2019,3599483-X56/ZA,"1,190.00",AABAT TAXIS.
Children and Young Peoples Services,Head of Childrens Social Care,Transport,230005,Contract Hire,11/06/2019,3599483-X60/ZX,"1,260.00",AABAT TAXIS.
Children and Young Peoples Services,Head of Childrens Social Care,Transport,230005,Contract Hire,11/06/2019,3599483-Y54/ZKB,525.00,AABAT TAXIS.
Children and Young Peoples Services,Head of Childrens Social Care,Third Party Payments 4THIRD,425040,Rendered by Voluntary Organisations,11/06/2019,3600549-PIG_17287,"16,019.92",ACORN CARE (NE) LTD.
Children and Young Peoples Services,Head of Childrens Social Care,Third Party Payments 4THIRD,425040,Rendered by Voluntary Organisations,11/06/2019,3600550-PIG_17295,"35,041.44",ACORN HOUSE (FOSTERING SERVICES) LTD.
Children and Young Peoples Services,Head of Education and Skills,Supplies and Services,384199,Miscellaneous Expenses,11/06/2019,3599487-19004,"4,200.00",AE SPORTS COACHING.
Regeneration and Local Services,Technical Services CM0300,Supplies and Services,304221,Equipment and Materials,11/06/2019,3599488-28116419,"1,598.48",AGGREGATE INDUSTRIES UK LTD.
Regeneration and Local Services,Technical Services CM0300,Supplies and Services,304221,Equipment and Materials,11/06/2019,3599488-28130458,"1,070.68",AGGREGATE INDUSTRIES UK LTD.
Regeneration and Local Services,Technical Services CM0300,Supplies and Services,304221,Equipment and Materials,11/06/2019,3599488-28181574,"1,381.56",AGGREGATE INDUSTRIES UK LTD.
Regeneration and Local Services,Technical Services CM0300,Supplies and Services,304221,Equipment and Materials,11/06/2019,3599488-28190566,"1,160.00",AGGREGATE INDUSTRIES UK LTD.
Regeneration and Local Services,Technical Services CM0300,Supplies and Services,304221,Equipment and Materials,11/06/2019,3599488-28210803,"1,157.40",AGGREGATE INDUSTRIES UK LTD.
Adult and Health Services,Head of Adults,Third Party Payments 4THIRD,470101,Purchase of Care,11/06/2019,3600552-2555398,"2,369.64",AKARI CARE LTD.
Adult and Health Services,Head of Adults,Third Party Payments 4THIRD,470101,Purchase of Care,11/06/2019,3600552-2555399,"2,369.64",AKARI CARE LTD.
Adult and Health Services,Head of Adults,Third Party Payments 4THIRD,470101,Purchase of Care,11/06/2019,3600552-2555400,"1,354.08",AKARI CARE LTD.
Adult and Health Services,Head of Adults,Third Party Payments 4THIRD,470101,Purchase of Care,11/06/2019,3600552-2555401,"2,369.64",AKARI CARE LTD.
Adult and Health Services,Head of Adults,Third Party Payments 4THIRD,471101,Purchase of Care,11/06/2019,3600552-2555402,"2,457.00",AKARI CARE LTD.
Adult and Health Services,Head of Adults,Third Party Payments 4THIRD,471101,Purchase of Care,11/06/2019,3600552-2555403,"2,457.00",AKARI CARE LTD.
Adult and Health Services,Head of Adults,Third Party Payments 4THIRD,471101,Purchase of Care,11/06/2019,3600552-2555404,"2,457.00",AKARI CARE LTD.
Adult and Health Services,Head of Adults,Third Party Payments 4THIRD,471101,Purchase of Care,11/06/2019,3600552-2555405,"2,457.00",AKARI CARE LTD.
Adult and Health Services,Head of Adults,Third Party Payments 4THIRD,470101,Purchase of Care,11/06/2019,3600552-2555406,"1,607.97",AKARI CARE LTD.
Adult and Health Services,Head of Adults,Third Party Payments 4THIRD,471101,Purchase of Care,11/06/2019,3600552-2555407,"2,457.00",AKARI CARE LTD.
Adult and Health Services,Head of Adults,Third Party Payments 4THIRD,471101,Purchase of Care,11/06/2019,3600552-2555408,"2,457.00",AKARI CARE LTD.
Adult and Health Services,Head of Adults,Third Party Payments 4THIRD,471101,Purchase of Care,11/06/2019,3600552-2555409,"2,457.00",AKARI CARE LTD.
Adult and Health Services,Head of Adults,Third Party Payments 4THIRD,470101,Purchase of Care,11/06/2019,3600552-2555410,"2,369.64",AKARI CARE LTD.
Adult and Health Services,Head of Adults,Third Party Payments 4THIRD,470101,Purchase of Care,11/06/2019,3600552-2555411,"2,285.01",AKARI CARE LTD.
Adult and Health Services,Head of Adults,Third Party Payments 4THIRD,470101,Purchase of Care,11/06/2019,3600552-2555412,761.67,AKARI CARE LTD.
Adult and Health Services,Head of Adults,Third Party Payments 4THIRD,470101,Purchase of Care,11/06/2019,3600552-2555413,"2,369.64",AKARI CARE LTD.
Adult and Health Services,Head of Adults,Third Party Payments 4THIRD,470101,Purchase of Care,11/06/2019,3600552-2555414,507.78,AKARI CARE LTD.
Adult and Health Services,Head of Adults,Third Party Payments 4THIRD,471101,Purchase of Care,11/06/2019,3600552-2555415,"2,457.00",AKARI CARE LTD.
Adult and Health Services,Head of Adults,Third Party Payments 4THIRD,470101,Purchase of Care,11/06/2019,3600552-2555416,"2,369.64",AKARI CARE LTD.
Adult and Health Services,Head of Adults,Third Party Payments 4THIRD,471101,Purchase of Care,11/06/2019,3600552-2555417,"2,457.00",AKARI CARE LTD.
Adult and Health Services,Head of Adults,Third Party Payments 4THIRD,471101,Purchase of Care,11/06/2019,3600552-2555421,"2,457.00",AKARI CARE LTD.
Adult and Health Services,Head of Adults,Third Party Payments 4THIRD,470101,Purchase of Care,11/06/2019,3600552-2555422,"2,369.64",AKARI CARE LTD.
Adult and Health Services,Head of Adults,Third Party Payments 4THIRD,471101,Purchase of Care,11/06/2019,3600552-2555423,"2,457.00",AKARI CARE LTD.
Adult and Health Services,Head of Adults,Third Party Payments 4THIRD,470101,Purchase of Care,11/06/2019,3600552-2555424,"2,031.12",AKARI CARE LTD.
Adult and Health Services,Head of Adults,Third Party Payments 4THIRD,470101,Purchase of Care,11/06/2019,3600552-2555425,"2,369.64",AKARI CARE LTD.
Adult and Health Services,Head of Adults,Third Party Payments 4THIRD,470101,Purchase of Care,11/06/2019,3600552-2555426,"2,369.64",AKARI CARE LTD.
Adult and Health Services,Head of Adults,Third Party Payments 4THIRD,470101,Purchase of Care,11/06/2019,3600552-2555427,"2,369.64",AKARI CARE LTD.
Adult and Health Services,Head of Adults,Third Party Payments 4THIRD,471101,Purchase of Care,11/06/2019,3600552-2555428,"2,457.00",AKARI CARE LTD.
Adult and Health Services,Head of Adults,Third Party Payments 4THIRD,470101,Purchase of Care,11/06/2019,3600552-2555429,"2,369.64",AKARI CARE LTD.
Adult and Health Services,Head of Adults,Third Party Payments 4THIRD,470101,Purchase of Care,11/06/2019,3600552-2555430,"2,369.64",AKARI CARE LTD.
Adult and Health Services,Head of Adults,Third Party Payments 4THIRD,470101,Purchase of Care,11/06/2019,3600552-2555431,"2,369.64",AKARI CARE LTD.
Adult and Health Services,Head of Adults,Third Party Payments 4THIRD,471101,Purchase of Care,11/06/2019,3600552-2555432,"2,457.00",AKARI CARE LTD.
Adult and Health Services,Head of Adults,Third Party Payments 4THIRD,470101,Purchase of Care,11/06/2019,3600552-2555433,"2,369.64",AKARI CARE LTD.
Adult and Health Services,Head of Adults,Third Party Payments 4THIRD,471101,Purchase of Care,11/06/2019,3600552-2555434,"2,457.00",AKARI CARE LTD.
Adult and Health Services,Head of Adults,Third Party Payments 4THIRD,471101,Purchase of Care,11/06/2019,3600552-2555435,"2,457.00",AKARI CARE LTD.
Adult and Health Services,Head of Adults,Third Party Payments 4THIRD,471101,Purchase of Care,11/06/2019,3600552-2555436,"2,457.00",AKARI CARE LTD.
Adult and Health Services,Head of Adults,Third Party Payments 4THIRD,471101,Purchase of Care,11/06/2019,3600552-2555437,"2,457.00",AKARI CARE LTD.
Adult and Health Services,Head of Adults,Third Party Payments 4THIRD,470101,Purchase of Care,11/06/2019,3600552-2555438,"2,369.64",AKARI CARE LTD.
Adult and Health Services,Head of Adults,Third Party Payments 4THIRD,470101,Purchase of Care,11/06/2019,3600552-2555439,"2,369.64",AKARI CARE LTD.
